Body Name,Body,Service Area Categorisation,Service Division Categorisation,Responsible Unit,Expenses Type,Detailed Expenses Type,Payment Date,Transaction Number,Payment Amount,Supplier Type,Supplier Name,Supplier Id
Portsmouth City Council,PCC,Costs below Net Cost of Services,Trading,Regeneration,Premises-Related Expenditure,Rates,27-Oct-23,6745172,130,SUPPLIER,MANCHESTER CITY COUNCIL,300000112662644
Portsmouth City Council,PCC,Costs below Net Cost of Services,Trading,Regeneration,Premises-Related Expenditure,Rates,27-Oct-23,6745172,430,SUPPLIER,MANCHESTER CITY COUNCIL,300000112662644
Portsmouth City Council,PCC,Housing Revenue Account,"Rents, Rates, Taxes and Other Charges","Housing, Neighbourhood and Building Services",Premises-Related Expenditure,Rates,25-Oct-23,6744817,135,OTHER LOCAL AUTHORITY,HAVANT BOROUGH COUNCIL,300000020457057
Portsmouth City Council,PCC,Housing Revenue Account,"Rents, Rates, Taxes and Other Charges","Housing, Neighbourhood and Building Services",Premises-Related Expenditure,Rates,25-Oct-23,6744817,135,OTHER LOCAL AUTHORITY,HAVANT BOROUGH COUNCIL,300000020457057
Portsmouth City Council,PCC,Housing Revenue Account,"Rents, Rates, Taxes and Other Charges","Housing, Neighbourhood and Building Services",Premises-Related Expenditure,Rates,25-Oct-23,6744817,256,OTHER LOCAL AUTHORITY,HAVANT BOROUGH COUNCIL,300000020457057
Portsmouth City Council,PCC,Housing Revenue Account,"Rents, Rates, Taxes and Other Charges","Housing, Neighbourhood and Building Services",Premises-Related Expenditure,Rates,25-Oct-23,6744812,157,OTHER LOCAL AUTHORITY,HAVANT BOROUGH COUNCIL,300000020457057
Portsmouth City Council,PCC,Housing Revenue Account,"Rents, Rates, Taxes and Other Charges","Housing, Neighbourhood and Building Services",Premises-Related Expenditure,Rates,25-Oct-23,6744817,135,OTHER LOCAL AUTHORITY,HAVANT BOROUGH COUNCIL,300000020457057
Portsmouth City Council,PCC,Housing Revenue Account,"Rents, Rates, Taxes and Other Charges","Housing, Neighbourhood and Building Services",Premises-Related Expenditure,Rates,25-Oct-23,6744817,135,OTHER LOCAL AUTHORITY,HAVANT BOROUGH COUNCIL,300000020457057
Portsmouth City Council,PCC,Housing Revenue Account,"Rents, Rates, Taxes and Other Charges","Housing, Neighbourhood and Building Services",Premises-Related Expenditure,Rates,25-Oct-23,6744812,135,OTHER LOCAL AUTHORITY,HAVANT BOROUGH COUNCIL,300000020457057
Portsmouth City Council,PCC,Housing Revenue Account,"Rents, Rates, Taxes and Other Charges","Housing, Neighbourhood and Building Services",Premises-Related Expenditure,Rates,25-Oct-23,6744817,135,OTHER LOCAL AUTHORITY,HAVANT BOROUGH COUNCIL,300000020457057
Portsmouth City Council,PCC,Housing Revenue Account,"Rents, Rates, Taxes and Other Charges","Housing, Neighbourhood and Building Services",Premises-Related Expenditure,Rates,25-Oct-23,6744812,135,OTHER LOCAL AUTHORITY,HAVANT BOROUGH COUNCIL,300000020457057
Portsmouth City Council,PCC,Housing Revenue Account,"Rents, Rates, Taxes and Other Charges","Housing, Neighbourhood and Building Services",Premises-Related Expenditure,Rates,25-Oct-23,6744812,135,OTHER LOCAL AUTHORITY,HAVANT BOROUGH COUNCIL,300000020457057
Portsmouth City Council,PCC,Housing Revenue Account,"Rents, Rates, Taxes and Other Charges","Housing, Neighbourhood and Building Services",Premises-Related Expenditure,Rates,25-Oct-23,6744812,135,OTHER LOCAL AUTHORITY,HAVANT BOROUGH COUNCIL,300000020457057
Portsmouth City Council,PCC,Housing Revenue Account,"Rents, Rates, Taxes and Other Charges","Housing, Neighbourhood and Building Services",Premises-Related Expenditure,Rates,25-Oct-23,6744812,135,OTHER LOCAL AUTHORITY,HAVANT BOROUGH COUNCIL,300000020457057
Portsmouth City Council,PCC,Housing Revenue Account,"Rents, Rates, Taxes and Other Charges","Housing, Neighbourhood and Building Services",Premises-Related Expenditure,Rates,25-Oct-23,6744812,269,OTHER LOCAL AUTHORITY,HAVANT BOROUGH COUNCIL,300000020457057
Portsmouth City Council,PCC,Housing Revenue Account,"Rents, Rates, Taxes and Other Charges","Housing, Neighbourhood and Building Services",Premises-Related Expenditure,Rates,25-Oct-23,6744812,135,OTHER LOCAL AUTHORITY,HAVANT BOROUGH COUNCIL,300000020457057
Portsmouth City Council,PCC,Housing Revenue Account,"Rents, Rates, Taxes and Other Charges","Housing, Neighbourhood and Building Services",Premises-Related Expenditure,Rates,25-Oct-23,6744812,135,OTHER LOCAL AUTHORITY,HAVANT BOROUGH COUNCIL,300000020457057
Portsmouth City Council,PCC,Housing Revenue Account,"Rents, Rates, Taxes and Other Charges","Housing, Neighbourhood and Building Services",Premises-Related Expenditure,Rates,25-Oct-23,6744817,269,OTHER LOCAL AUTHORITY,HAVANT BOROUGH COUNCIL,300000020457057
Portsmouth City Council,PCC,Housing Revenue Account,"Rents, Rates, Taxes and Other Charges","Housing, Neighbourhood and Building Services",Premises-Related Expenditure,Rates,25-Oct-23,6744817,135,OTHER LOCAL AUTHORITY,HAVANT BOROUGH COUNCIL,300000020457057
Portsmouth City Council,PCC,Housing Revenue Account,"Rents, Rates, Taxes and Other Charges","Housing, Neighbourhood and Building Services",Premises-Related Expenditure,Rates,25-Oct-23,6744817,135,OTHER LOCAL AUTHORITY,HAVANT BOROUGH COUNCIL,300000020457057
Portsmouth City Council,PCC,Housing Services,Homelessness,"Housing, Neighbourhood and Building Services",Premises-Related Expenditure,Rents,25-Oct-23,6744438,"-6,180.00",SUPPLIER,K H PROPERTY INVESTMENT LIMITED,300000020467836
Portsmouth City Council,PCC,Housing Services,Homelessness,"Housing, Neighbourhood and Building Services",Premises-Related Expenditure,Rents,25-Oct-23,6744438,"6,180.00",SUPPLIER,K H PROPERTY INVESTMENT LIMITED,300000020467836
Portsmouth City Council,PCC,Housing Services,Homelessness,"Housing, Neighbourhood and Building Services",Premises-Related Expenditure,Rents,25-Oct-23,6744438,"6,180.00",SUPPLIER,K H PROPERTY INVESTMENT LIMITED,300000020467836
Portsmouth City Council,PCC,Housing Revenue Account,Supervision and Management,"Housing, Neighbourhood and Building Services",Premises-Related Expenditure,Rates,25-Oct-23,6744817,"1,297.00",OTHER LOCAL AUTHORITY,HAVANT BOROUGH COUNCIL,300000020457057
Portsmouth City Council,PCC,Housing Revenue Account,Special Services,"Housing, Neighbourhood and Building Services",Premises-Related Expenditure,Rates,25-Oct-23,6744817,267,OTHER LOCAL AUTHORITY,HAVANT BOROUGH COUNCIL,300000020457057
Portsmouth City Council,PCC,Housing Revenue Account,Special Services,"Housing, Neighbourhood and Building Services",Premises-Related Expenditure,Rates,25-Oct-23,6744817,394,OTHER LOCAL AUTHORITY,HAVANT BOROUGH COUNCIL,300000020457057
Portsmouth City Council,PCC,Housing Revenue Account,Supervision and Management,"Housing, Neighbourhood and Building Services",Premises-Related Expenditure,Rates,25-Oct-23,6744817,"3,507.00",OTHER LOCAL AUTHORITY,HAVANT BOROUGH COUNCIL,300000020457057
Portsmouth City Council,PCC,Housing Revenue Account,"Rents, Rates, Taxes and Other Charges","Housing, Neighbourhood and Building Services",Premises-Related Expenditure,Rates,25-Oct-23,6744817,133,OTHER LOCAL AUTHORITY,HAVANT BOROUGH COUNCIL,300000020457057
Portsmouth City Council,PCC,Children's and Education Services,Special Schools,Children's Services and Education,Third Party Payments,Other establishments,25-Oct-23,6744464,"123,346.00",SUPPLIER,SOLENT ACADEMIES TRUST,300000020477417
Portsmouth City Council,PCC,Children's and Education Services,Special Schools,Children's Services and Education,Third Party Payments,Other establishments,25-Oct-23,6744464,"8,218.72",SUPPLIER,SOLENT ACADEMIES TRUST,300000020477417
Portsmouth City Council,PCC,Children's and Education Services,Special Schools,Children's Services and Education,Third Party Payments,Other establishments,26-Oct-23,6745055,-1,SUPPLIER,SOLENT ACADEMIES TRUST,300000020477417
Portsmouth City Council,PCC,Children's and Education Services,Special Schools,Children's Services and Education,Third Party Payments,Other establishments,26-Oct-23,6745055,0.24,SUPPLIER,SOLENT ACADEMIES TRUST,300000020477417
Portsmouth City Council,PCC,Children's and Education Services,Special Schools,Children's Services and Education,Third Party Payments,Other establishments,26-Oct-23,6745055,"246,489.00",SUPPLIER,SOLENT ACADEMIES TRUST,300000020477417
Portsmouth City Council,PCC,Children's and Education Services,Special Schools,Children's Services and Education,Third Party Payments,Other establishments,26-Oct-23,6745055,"1,230.00",SUPPLIER,SOLENT ACADEMIES TRUST,300000020477417
Portsmouth City Council,PCC,Children's and Education Services,Special Schools,Children's Services and Education,Third Party Payments,Other establishments,26-Oct-23,6745055,666.64,SUPPLIER,SOLENT ACADEMIES TRUST,300000020477417
Portsmouth City Council,PCC,Children's and Education Services,Special Schools,Children's Services and Education,Third Party Payments,Other establishments,26-Oct-23,6745055,"12,848.72",SUPPLIER,SOLENT ACADEMIES TRUST,300000020477417
Portsmouth City Council,PCC,Children's and Education Services,Special Schools,Children's Services and Education,Third Party Payments,Other establishments,25-Oct-23,6744462,"247,247.76",SUPPLIER,SOLENT ACADEMIES TRUST,300000020477417
Portsmouth City Council,PCC,Children's and Education Services,Special Schools,Children's Services and Education,Third Party Payments,Other establishments,25-Oct-23,6744462,"18,809.84",SUPPLIER,SOLENT ACADEMIES TRUST,300000020477417
Portsmouth City Council,PCC,Children's and Education Services,Special Schools,Children's Services and Education,Third Party Payments,Other establishments,25-Oct-23,6744462,"10,800.00",SUPPLIER,SOLENT ACADEMIES TRUST,300000020477417
Portsmouth City Council,PCC,Children's and Education Services,Special Schools,Children's Services and Education,Third Party Payments,Other establishments,25-Oct-23,6744462,"12,828.40",SUPPLIER,SOLENT ACADEMIES TRUST,300000020477417
Portsmouth City Council,PCC,Children's and Education Services,Special Schools,Children's Services and Education,Third Party Payments,Other establishments,25-Oct-23,6744462,978,SUPPLIER,SOLENT ACADEMIES TRUST,300000020477417
Portsmouth City Council,PCC,Costs below Net Cost of Services,Trading,Regeneration,Premises-Related Expenditure,Rates,31-Oct-23,6745566,"10,119.00",OTHER LOCAL AUTHORITY,WARRINGTON BOROUGH COUNCIL,300000449627398
Portsmouth City Council,PCC,Children's and Education Services,Management and Support Services,Children's Services and Education,Third Party Payments,Other establishments,27-Oct-23,6745185,833.33,TRUST,Academy Trust - University of Portsmouth,300000316357634
Portsmouth City Council,PCC,Housing Revenue Account,"Rents, Rates, Taxes and Other Charges","Housing, Neighbourhood and Building Services",Premises-Related Expenditure,Rates,25-Oct-23,6744817,135,OTHER LOCAL AUTHORITY,HAVANT BOROUGH COUNCIL,300000020457057
Portsmouth City Council,PCC,Housing Revenue Account,"Rents, Rates, Taxes and Other Charges","Housing, Neighbourhood and Building Services",Premises-Related Expenditure,Rates,25-Oct-23,6744817,124,OTHER LOCAL AUTHORITY,HAVANT BOROUGH COUNCIL,300000020457057
Portsmouth City Council,PCC,Housing Revenue Account,"Rents, Rates, Taxes and Other Charges","Housing, Neighbourhood and Building Services",Premises-Related Expenditure,Rates,25-Oct-23,6744817,138,OTHER LOCAL AUTHORITY,HAVANT BOROUGH COUNCIL,300000020457057
Portsmouth City Council,PCC,Children's and Education Services,Special Schools,Children's Services and Education,Third Party Payments,Other establishments,25-Oct-23,6744463,"128,704.80",SUPPLIER,THE DELTA EDUCATION TRUST,300000020481637
Portsmouth City Council,PCC,Children's and Education Services,Management and Support Services,Children's Services and Education,Third Party Payments,Other establishments,25-Oct-23,6744463,"20,204.80",SUPPLIER,THE DELTA EDUCATION TRUST,300000020481637
Portsmouth City Council,PCC,Children's and Education Services,Management and Support Services,Children's Services and Education,Third Party Payments,Other establishments,25-Oct-23,6744463,"4,800.00",SUPPLIER,THE DELTA EDUCATION TRUST,300000020481637
Portsmouth City Council,PCC,Children's and Education Services,Management and Support Services,Children's Services and Education,Third Party Payments,Other establishments,25-Oct-23,6744463,"52,800.00",SUPPLIER,THE DELTA EDUCATION TRUST,300000020481637
Portsmouth City Council,PCC,Children's and Education Services,Special Schools,Children's Services and Education,Third Party Payments,Other establishments,25-Oct-23,6744463,"1,795.20",SUPPLIER,THE DELTA EDUCATION TRUST,300000020481637
Portsmouth City Council,PCC,Children's and Education Services,Special Schools,Children's Services and Education,Third Party Payments,Other establishments,25-Oct-23,6744463,"7,217.60",SUPPLIER,THE DELTA EDUCATION TRUST,300000020481637
Portsmouth City Council,PCC,Children's and Education Services,Special Schools,Children's Services and Education,Third Party Payments,Other establishments,25-Oct-23,6744463,"16,319.84",SUPPLIER,THE DELTA EDUCATION TRUST,300000020481637
Portsmouth City Council,PCC,Housing Revenue Account,"Rents, Rates, Taxes and Other Charges","Housing, Neighbourhood and Building Services",Premises-Related Expenditure,Rates,25-Oct-23,6744817,146,OTHER LOCAL AUTHORITY,HAVANT BOROUGH COUNCIL,300000020457057
Portsmouth City Council,PCC,Housing Revenue Account,"Rents, Rates, Taxes and Other Charges","Housing, Neighbourhood and Building Services",Premises-Related Expenditure,Rates,25-Oct-23,6744817,324,OTHER LOCAL AUTHORITY,HAVANT BOROUGH COUNCIL,300000020457057
Portsmouth City Council,PCC,Children's and Education Services,Special Schools,Children's Services and Education,Third Party Payments,Other establishments,25-Oct-23,6744671,"48,397.86",SUPPLIER,THE DELTA EDUCATION TRUST,300000020481637
Portsmouth City Council,PCC,Children's and Education Services,Special Schools,Children's Services and Education,Third Party Payments,Other establishments,25-Oct-23,6744671,"3,034.40",SUPPLIER,THE DELTA EDUCATION TRUST,300000020481637
Portsmouth City Council,PCC,Housing Revenue Account,"Rents, Rates, Taxes and Other Charges","Housing, Neighbourhood and Building Services",Premises-Related Expenditure,Rates,25-Oct-23,6744817,127,OTHER LOCAL AUTHORITY,HAVANT BOROUGH COUNCIL,300000020457057
Portsmouth City Council,PCC,Housing Revenue Account,"Rents, Rates, Taxes and Other Charges","Housing, Neighbourhood and Building Services",Premises-Related Expenditure,Rates,25-Oct-23,6744817,143,OTHER LOCAL AUTHORITY,HAVANT BOROUGH COUNCIL,300000020457057
Portsmouth City Council,PCC,Housing Revenue Account,"Rents, Rates, Taxes and Other Charges","Housing, Neighbourhood and Building Services",Premises-Related Expenditure,Rates,25-Oct-23,6744817,134,OTHER LOCAL AUTHORITY,HAVANT BOROUGH COUNCIL,300000020457057
Portsmouth City Council,PCC,Children's and Education Services,Special Schools,Children's Services and Education,Third Party Payments,Other establishments,25-Oct-23,6744671,"-25,000.00",SUPPLIER,THE DELTA EDUCATION TRUST,300000020481637
Portsmouth City Council,PCC,Children's and Education Services,Other Education and Community Budget,Children's Services and Education,Third Party Payments,Other establishments,26-Oct-23,6745055,"12,615.13",SUPPLIER,SOLENT ACADEMIES TRUST,300000020477417
Portsmouth City Council,PCC,Children's and Education Services,Other Education and Community Budget,Children's Services and Education,Third Party Payments,Other establishments,25-Oct-23,6744464,"9,074.02",SUPPLIER,SOLENT ACADEMIES TRUST,300000020477417
Portsmouth City Council,PCC,Children's and Education Services,Other Education and Community Budget,Children's Services and Education,Third Party Payments,Other establishments,25-Oct-23,6744462,"11,971.35",SUPPLIER,SOLENT ACADEMIES TRUST,300000020477417
Portsmouth City Council,PCC,Children's and Education Services,Other Education and Community Budget,Children's Services and Education,Third Party Payments,Other establishments,25-Oct-23,6744463,"13,225.95",SUPPLIER,THE DELTA EDUCATION TRUST,300000020481637
Portsmouth City Council,PCC,Housing Revenue Account,"Rents, Rates, Taxes and Other Charges","Housing, Neighbourhood and Building Services",Premises-Related Expenditure,Rates,25-Oct-23,6744817,145,OTHER LOCAL AUTHORITY,HAVANT BOROUGH COUNCIL,300000020457057
Portsmouth City Council,PCC,Children's and Education Services,Special Schools,Children's Services and Education,Third Party Payments,Other establishments,05-Oct-23,6741176,"1,522.92",SUPPLIER,ACADEMY TRUST (UNIVERSITY OF CHICHESTER),300000020484342
Portsmouth City Council,PCC,Children's and Education Services,Other Education and Community Budget,Children's Services and Education,Third Party Payments,Other establishments,05-Oct-23,6741176,"2,869.10",SUPPLIER,ACADEMY TRUST (UNIVERSITY OF CHICHESTER),300000020484342
Portsmouth City Council,PCC,Housing Revenue Account,"Rents, Rates, Taxes and Other Charges","Housing, Neighbourhood and Building Services",Premises-Related Expenditure,Rates,25-Oct-23,6744817,142,OTHER LOCAL AUTHORITY,HAVANT BOROUGH COUNCIL,300000020457057
Portsmouth City Council,PCC,Housing Revenue Account,"Rents, Rates, Taxes and Other Charges","Housing, Neighbourhood and Building Services",Premises-Related Expenditure,Rates,25-Oct-23,6744817,119,OTHER LOCAL AUTHORITY,HAVANT BOROUGH COUNCIL,300000020457057
Portsmouth City Council,PCC,Housing Revenue Account,"Rents, Rates, Taxes and Other Charges","Housing, Neighbourhood and Building Services",Premises-Related Expenditure,Rates,25-Oct-23,6744817,134,OTHER LOCAL AUTHORITY,HAVANT BOROUGH COUNCIL,300000020457057
Portsmouth City Council,PCC,Housing Revenue Account,"Rents, Rates, Taxes and Other Charges","Housing, Neighbourhood and Building Services",Premises-Related Expenditure,Rates,25-Oct-23,6744817,153,OTHER LOCAL AUTHORITY,HAVANT BOROUGH COUNCIL,300000020457057
Portsmouth City Council,PCC,Adult Social Care,Physical Support Adults (18 - 64),Adult Care,Third Party Payments,Other establishments,06-Oct-23,6741341,"1,393.44",PRIVATE PROVIDER,Classified as 'personal data' (under the Data Protection Act 2018),300000020462967
Portsmouth City Council,PCC,Housing Revenue Account,"Rents, Rates, Taxes and Other Charges","Housing, Neighbourhood and Building Services",Premises-Related Expenditure,Rates,25-Oct-23,6744817,224,OTHER LOCAL AUTHORITY,HAVANT BOROUGH COUNCIL,300000020457057
Portsmouth City Council,PCC,Housing Revenue Account,"Rents, Rates, Taxes and Other Charges","Housing, Neighbourhood and Building Services",Premises-Related Expenditure,Rates,25-Oct-23,6744817,142,OTHER LOCAL AUTHORITY,HAVANT BOROUGH COUNCIL,300000020457057
Portsmouth City Council,PCC,Housing Revenue Account,"Rents, Rates, Taxes and Other Charges","Housing, Neighbourhood and Building Services",Premises-Related Expenditure,Rates,25-Oct-23,6744817,161,OTHER LOCAL AUTHORITY,HAVANT BOROUGH COUNCIL,300000020457057
Portsmouth City Council,PCC,Housing Services,Private Sector Housing Renewal,"Housing, Neighbourhood and Building Services",Income,Other grants reimbursements and contributions,03-Oct-23,6740468,-842.85,LIMITED COMPANY,SPC BATHROOMS LTD,300000504529111
Portsmouth City Council,PCC,Other,Suspense and Capital Schemes,Capital - Housing and Tackling Homelessness,Capital Charges,REFCUS,03-Oct-23,6740468,"1,011.42",LIMITED COMPANY,SPC BATHROOMS LTD,300000504529111
Portsmouth City Council,PCC,Other,Suspense and Capital Schemes,Capital - Housing and Tackling Homelessness,Capital Charges,REFCUS,03-Oct-23,6740468,"5,619.00",LIMITED COMPANY,SPC BATHROOMS LTD,300000504529111
Portsmouth City Council,PCC,Children's and Education Services,Children Looked After,Children's Services and Education,Third Party Payments,Other establishments,03-Oct-23,6740471,-0.13,LIMITED COMPANY,YOUR CHAPTER LTD,300000172808382
Portsmouth City Council,PCC,Children's and Education Services,Children Looked After,Children's Services and Education,Third Party Payments,Other establishments,03-Oct-23,6740471,114.29,LIMITED COMPANY,YOUR CHAPTER LTD,300000172808382
Portsmouth City Council,PCC,Children's and Education Services,Children Looked After,Children's Services and Education,Third Party Payments,Other establishments,03-Oct-23,6740471,171.43,LIMITED COMPANY,YOUR CHAPTER LTD,300000172808382
Portsmouth City Council,PCC,Children's and Education Services,Children Looked After,Children's Services and Education,Third Party Payments,Other establishments,03-Oct-23,6740471,400,LIMITED COMPANY,YOUR CHAPTER LTD,300000172808382
Portsmouth City Council,PCC,Children's and Education Services,Children Looked After,Children's Services and Education,Third Party Payments,Other establishments,03-Oct-23,6740471,400,LIMITED COMPANY,YOUR CHAPTER LTD,300000172808382
Portsmouth City Council,PCC,Children's and Education Services,Children Looked After,Children's Services and Education,Third Party Payments,Other establishments,03-Oct-23,6740471,400,LIMITED COMPANY,YOUR CHAPTER LTD,300000172808382
Portsmouth City Council,PCC,Children's and Education Services,Children Looked After,Children's Services and Education,Third Party Payments,Other establishments,03-Oct-23,6740471,400,LIMITED COMPANY,YOUR CHAPTER LTD,300000172808382
Portsmouth City Council,PCC,Children's and Education Services,Children Looked After,Children's Services and Education,Third Party Payments,Other establishments,03-Oct-23,6740471,600,LIMITED COMPANY,YOUR CHAPTER LTD,300000172808382
Portsmouth City Council,PCC,Children's and Education Services,Children Looked After,Children's Services and Education,Third Party Payments,Other establishments,03-Oct-23,6740471,600,LIMITED COMPANY,YOUR CHAPTER LTD,300000172808382
Portsmouth City Council,PCC,Children's and Education Services,Children Looked After,Children's Services and Education,Third Party Payments,Other establishments,03-Oct-23,6740471,600,LIMITED COMPANY,YOUR CHAPTER LTD,300000172808382
Portsmouth City Council,PCC,Children's and Education Services,Children Looked After,Children's Services and Education,Third Party Payments,Other establishments,03-Oct-23,6740471,600,LIMITED COMPANY,YOUR CHAPTER LTD,300000172808382
Portsmouth City Council,PCC,Children's and Education Services,Children Looked After,Children's Services and Education,Third Party Payments,Other establishments,03-Oct-23,6740471,"1,285.71",LIMITED COMPANY,YOUR CHAPTER LTD,300000172808382
Portsmouth City Council,PCC,Children's and Education Services,Children Looked After,Children's Services and Education,Third Party Payments,Other establishments,03-Oct-23,6740471,"4,500.00",LIMITED COMPANY,YOUR CHAPTER LTD,300000172808382
Portsmouth City Council,PCC,Children's and Education Services,Children Looked After,Children's Services and Education,Third Party Payments,Other establishments,03-Oct-23,6740471,"4,500.00",LIMITED COMPANY,YOUR CHAPTER LTD,300000172808382
Portsmouth City Council,PCC,Children's and Education Services,Children Looked After,Children's Services and Education,Third Party Payments,Other establishments,03-Oct-23,6740471,"4,500.00",LIMITED COMPANY,YOUR CHAPTER LTD,300000172808382
Portsmouth City Council,PCC,Children's and Education Services,Children Looked After,Children's Services and Education,Third Party Payments,Other establishments,03-Oct-23,6740471,"4,500.00",LIMITED COMPANY,YOUR CHAPTER LTD,300000172808382
Portsmouth City Council,PCC,Children's and Education Services,Asylum seekers,Children's Services and Education,Third Party Payments,Other establishments,02-Oct-23,6740335,655,SUPPLIER,BANYA FAMILY PLACEMENT AGENCY LTD,300000020481029
Portsmouth City Council,PCC,Children's and Education Services,Asylum seekers,Children's Services and Education,Third Party Payments,Other establishments,02-Oct-23,6740335,655,SUPPLIER,BANYA FAMILY PLACEMENT AGENCY LTD,300000020481029
Portsmouth City Council,PCC,Children's and Education Services,Asylum seekers,Children's Services and Education,Third Party Payments,Other establishments,02-Oct-23,6740335,917,SUPPLIER,BANYA FAMILY PLACEMENT AGENCY LTD,300000020481029
Portsmouth City Council,PCC,Children's and Education Services,Asylum seekers,Children's Services and Education,Third Party Payments,Other establishments,02-Oct-23,6740335,917,SUPPLIER,BANYA FAMILY PLACEMENT AGENCY LTD,300000020481029
Portsmouth City Council,PCC,Children's and Education Services,Asylum seekers,Children's Services and Education,Third Party Payments,Other establishments,02-Oct-23,6740335,917,SUPPLIER,BANYA FAMILY PLACEMENT AGENCY LTD,300000020481029
Portsmouth City Council,PCC,Children's and Education Services,Asylum seekers,Children's Services and Education,Third Party Payments,Other establishments,02-Oct-23,6740335,655,SUPPLIER,BANYA FAMILY PLACEMENT AGENCY LTD,300000020481029
Portsmouth City Council,PCC,Children's and Education Services,Asylum seekers,Children's Services and Education,Third Party Payments,Other establishments,02-Oct-23,6740335,655,SUPPLIER,BANYA FAMILY PLACEMENT AGENCY LTD,300000020481029
Portsmouth City Council,PCC,Children's and Education Services,Asylum seekers,Children's Services and Education,Third Party Payments,Other establishments,02-Oct-23,6740335,917,SUPPLIER,BANYA FAMILY PLACEMENT AGENCY LTD,300000020481029
Portsmouth City Council,PCC,Children's and Education Services,Asylum seekers,Children's Services and Education,Third Party Payments,Other establishments,02-Oct-23,6740335,917,SUPPLIER,BANYA FAMILY PLACEMENT AGENCY LTD,300000020481029
Portsmouth City Council,PCC,Children's and Education Services,Asylum seekers,Children's Services and Education,Third Party Payments,Other establishments,02-Oct-23,6740335,917,SUPPLIER,BANYA FAMILY PLACEMENT AGENCY LTD,300000020481029
Portsmouth City Council,PCC,Children's and Education Services,Children Looked After,Children's Services and Education,Third Party Payments,Other establishments,02-Oct-23,6740381,0.08,SUPPLIER,FOOTPRINTS FOSTER CARE LIMITED,300000020467393
Portsmouth City Council,PCC,Children's and Education Services,Children Looked After,Children's Services and Education,Third Party Payments,Other establishments,02-Oct-23,6740381,245.49,SUPPLIER,FOOTPRINTS FOSTER CARE LIMITED,300000020467393
Portsmouth City Council,PCC,Children's and Education Services,Children Looked After,Children's Services and Education,Third Party Payments,Other establishments,02-Oct-23,6740381,859.2,SUPPLIER,FOOTPRINTS FOSTER CARE LIMITED,300000020467393
Portsmouth City Council,PCC,Children's and Education Services,Children Looked After,Children's Services and Education,Third Party Payments,Other establishments,02-Oct-23,6740381,859.2,SUPPLIER,FOOTPRINTS FOSTER CARE LIMITED,300000020467393
Portsmouth City Council,PCC,Children's and Education Services,Children Looked After,Children's Services and Education,Third Party Payments,Other establishments,02-Oct-23,6740381,859.2,SUPPLIER,FOOTPRINTS FOSTER CARE LIMITED,300000020467393
Portsmouth City Council,PCC,Children's and Education Services,Children Looked After,Children's Services and Education,Third Party Payments,Other establishments,02-Oct-23,6740381,859.2,SUPPLIER,FOOTPRINTS FOSTER CARE LIMITED,300000020467393
Portsmouth City Council,PCC,Children's and Education Services,Children Looked After,Children's Services and Education,Third Party Payments,Other establishments,02-Oct-23,6740381,0.08,SUPPLIER,FOOTPRINTS FOSTER CARE LIMITED,300000020467393
Portsmouth City Council,PCC,Children's and Education Services,Children Looked After,Children's Services and Education,Third Party Payments,Other establishments,02-Oct-23,6740381,245.49,SUPPLIER,FOOTPRINTS FOSTER CARE LIMITED,300000020467393
Portsmouth City Council,PCC,Children's and Education Services,Children Looked After,Children's Services and Education,Third Party Payments,Other establishments,02-Oct-23,6740381,859.2,SUPPLIER,FOOTPRINTS FOSTER CARE LIMITED,300000020467393
Portsmouth City Council,PCC,Children's and Education Services,Children Looked After,Children's Services and Education,Third Party Payments,Other establishments,02-Oct-23,6740381,859.2,SUPPLIER,FOOTPRINTS FOSTER CARE LIMITED,300000020467393
Portsmouth City Council,PCC,Children's and Education Services,Children Looked After,Children's Services and Education,Third Party Payments,Other establishments,02-Oct-23,6740381,859.2,SUPPLIER,FOOTPRINTS FOSTER CARE LIMITED,300000020467393
Portsmouth City Council,PCC,Children's and Education Services,Children Looked After,Children's Services and Education,Third Party Payments,Other establishments,02-Oct-23,6740381,859.2,SUPPLIER,FOOTPRINTS FOSTER CARE LIMITED,300000020467393
Portsmouth City Council,PCC,Children's and Education Services,Children Looked After,Children's Services and Education,Third Party Payments,Other establishments,02-Oct-23,6740381,255.72,SUPPLIER,FOOTPRINTS FOSTER CARE LIMITED,300000020467393
Portsmouth City Council,PCC,Children's and Education Services,Children Looked After,Children's Services and Education,Third Party Payments,Other establishments,02-Oct-23,6740381,895.02,SUPPLIER,FOOTPRINTS FOSTER CARE LIMITED,300000020467393
Portsmouth City Council,PCC,Children's and Education Services,Children Looked After,Children's Services and Education,Third Party Payments,Other establishments,02-Oct-23,6740381,895.02,SUPPLIER,FOOTPRINTS FOSTER CARE LIMITED,300000020467393
Portsmouth City Council,PCC,Children's and Education Services,Children Looked After,Children's Services and Education,Third Party Payments,Other establishments,02-Oct-23,6740381,895.02,SUPPLIER,FOOTPRINTS FOSTER CARE LIMITED,300000020467393
Portsmouth City Council,PCC,Children's and Education Services,Children Looked After,Children's Services and Education,Third Party Payments,Other establishments,02-Oct-23,6740381,895.02,SUPPLIER,FOOTPRINTS FOSTER CARE LIMITED,300000020467393
Portsmouth City Council,PCC,Children's and Education Services,Asylum seekers,Children's Services and Education,Third Party Payments,Other establishments,02-Oct-23,6740451,0.01,SUPPLIER,FAIR WAYS COMMUNITY BENEFIT SOCEITY T/A FAIRWAYS CARE (UK) LTD,300000020459125
Portsmouth City Council,PCC,Children's and Education Services,Asylum seekers,Children's Services and Education,Third Party Payments,Other establishments,02-Oct-23,6740451,611.51,SUPPLIER,FAIR WAYS COMMUNITY BENEFIT SOCEITY T/A FAIRWAYS CARE (UK) LTD,300000020459125
Portsmouth City Council,PCC,Children's and Education Services,Asylum seekers,Children's Services and Education,Third Party Payments,Other establishments,02-Oct-23,6740451,917.27,SUPPLIER,FAIR WAYS COMMUNITY BENEFIT SOCEITY T/A FAIRWAYS CARE (UK) LTD,300000020459125
Portsmouth City Council,PCC,Children's and Education Services,Safeguarding Children and Young Peoples Services,Children's Services and Education,Third Party Payments,Other establishments,03-Oct-23,6740496,625,SUPPLIER,FAMILY FIRST FOSTERING,300000020483859
Portsmouth City Council,PCC,Children's and Education Services,Safeguarding Children and Young Peoples Services,Children's Services and Education,Third Party Payments,Other establishments,03-Oct-23,6740496,625,SUPPLIER,FAMILY FIRST FOSTERING,300000020483859
Portsmouth City Council,PCC,Children's and Education Services,Safeguarding Children and Young Peoples Services,Children's Services and Education,Third Party Payments,Other establishments,03-Oct-23,6740496,875,SUPPLIER,FAMILY FIRST FOSTERING,300000020483859
Portsmouth City Council,PCC,Children's and Education Services,Safeguarding Children and Young Peoples Services,Children's Services and Education,Third Party Payments,Other establishments,03-Oct-23,6740496,875,SUPPLIER,FAMILY FIRST FOSTERING,300000020483859
Portsmouth City Council,PCC,Children's and Education Services,Safeguarding Children and Young Peoples Services,Children's Services and Education,Third Party Payments,Other establishments,03-Oct-23,6740496,875,SUPPLIER,FAMILY FIRST FOSTERING,300000020483859
Portsmouth City Council,PCC,Children's and Education Services,Asylum seekers,Children's Services and Education,Third Party Payments,Other establishments,04-Oct-23,6740986,0.1,PRIVATE PROVIDER,Outset Fostering Agency,300000413803542
Portsmouth City Council,PCC,Children's and Education Services,Asylum seekers,Children's Services and Education,Third Party Payments,Other establishments,04-Oct-23,6740986,457.14,PRIVATE PROVIDER,Outset Fostering Agency,300000413803542
Portsmouth City Council,PCC,Children's and Education Services,Asylum seekers,Children's Services and Education,Third Party Payments,Other establishments,04-Oct-23,6740986,571.43,PRIVATE PROVIDER,Outset Fostering Agency,300000413803542
Portsmouth City Council,PCC,Children's and Education Services,Asylum seekers,Children's Services and Education,Third Party Payments,Other establishments,04-Oct-23,6740986,800,PRIVATE PROVIDER,Outset Fostering Agency,300000413803542
Portsmouth City Council,PCC,Children's and Education Services,Asylum seekers,Children's Services and Education,Third Party Payments,Other establishments,04-Oct-23,6740986,800,PRIVATE PROVIDER,Outset Fostering Agency,300000413803542
Portsmouth City Council,PCC,Children's and Education Services,Safeguarding Children and Young Peoples Services,Children's Services and Education,Third Party Payments,Other establishments,03-Oct-23,6740497,-892.54,SUPPLIER,LILIAN DAVIS GROUP LTD,300000020467263
Portsmouth City Council,PCC,Children's and Education Services,Safeguarding Children and Young Peoples Services,Children's Services and Education,Third Party Payments,Other establishments,03-Oct-23,6740497,-10,SUPPLIER,LILIAN DAVIS GROUP LTD,300000020467263
Portsmouth City Council,PCC,Children's and Education Services,Safeguarding Children and Young Peoples Services,Children's Services and Education,Third Party Payments,Other establishments,03-Oct-23,6740497,-10,SUPPLIER,LILIAN DAVIS GROUP LTD,300000020467263
Portsmouth City Council,PCC,Children's and Education Services,Safeguarding Children and Young Peoples Services,Children's Services and Education,Third Party Payments,Other establishments,03-Oct-23,6740497,-10,SUPPLIER,LILIAN DAVIS GROUP LTD,300000020467263
Portsmouth City Council,PCC,Children's and Education Services,Safeguarding Children and Young Peoples Services,Children's Services and Education,Third Party Payments,Other establishments,03-Oct-23,6740497,-8.57,SUPPLIER,LILIAN DAVIS GROUP LTD,300000020467263
Portsmouth City Council,PCC,Children's and Education Services,Safeguarding Children and Young Peoples Services,Children's Services and Education,Third Party Payments,Other establishments,03-Oct-23,6740497,-4.29,SUPPLIER,LILIAN DAVIS GROUP LTD,300000020467263
Portsmouth City Council,PCC,Children's and Education Services,Safeguarding Children and Young Peoples Services,Children's Services and Education,Third Party Payments,Other establishments,03-Oct-23,6740497,51.43,SUPPLIER,LILIAN DAVIS GROUP LTD,300000020467263
Portsmouth City Council,PCC,Children's and Education Services,Safeguarding Children and Young Peoples Services,Children's Services and Education,Third Party Payments,Other establishments,03-Oct-23,6740497,102.86,SUPPLIER,LILIAN DAVIS GROUP LTD,300000020467263
Portsmouth City Council,PCC,Children's and Education Services,Safeguarding Children and Young Peoples Services,Children's Services and Education,Third Party Payments,Other establishments,03-Oct-23,6740497,120,SUPPLIER,LILIAN DAVIS GROUP LTD,300000020467263
Portsmouth City Council,PCC,Children's and Education Services,Safeguarding Children and Young Peoples Services,Children's Services and Education,Third Party Payments,Other establishments,03-Oct-23,6740497,120,SUPPLIER,LILIAN DAVIS GROUP LTD,300000020467263
Portsmouth City Council,PCC,Children's and Education Services,Safeguarding Children and Young Peoples Services,Children's Services and Education,Third Party Payments,Other establishments,03-Oct-23,6740497,120,SUPPLIER,LILIAN DAVIS GROUP LTD,300000020467263
Portsmouth City Council,PCC,Children's and Education Services,Safeguarding Children and Young Peoples Services,Children's Services and Education,Third Party Payments,Other establishments,03-Oct-23,6740497,188.57,SUPPLIER,LILIAN DAVIS GROUP LTD,300000020467263
Portsmouth City Council,PCC,Children's and Education Services,Safeguarding Children and Young Peoples Services,Children's Services and Education,Third Party Payments,Other establishments,03-Oct-23,6740497,377.14,SUPPLIER,LILIAN DAVIS GROUP LTD,300000020467263
Portsmouth City Council,PCC,Children's and Education Services,Safeguarding Children and Young Peoples Services,Children's Services and Education,Third Party Payments,Other establishments,03-Oct-23,6740497,440,SUPPLIER,LILIAN DAVIS GROUP LTD,300000020467263
Portsmouth City Council,PCC,Children's and Education Services,Safeguarding Children and Young Peoples Services,Children's Services and Education,Third Party Payments,Other establishments,03-Oct-23,6740497,440,SUPPLIER,LILIAN DAVIS GROUP LTD,300000020467263
Portsmouth City Council,PCC,Children's and Education Services,Safeguarding Children and Young Peoples Services,Children's Services and Education,Third Party Payments,Other establishments,03-Oct-23,6740497,440,SUPPLIER,LILIAN DAVIS GROUP LTD,300000020467263
Portsmouth City Council,PCC,Housing Revenue Account,"Rents, Rates, Taxes and Other Charges","Housing, Neighbourhood and Building Services",Premises-Related Expenditure,Rates,25-Oct-23,6744817,187,OTHER LOCAL AUTHORITY,HAVANT BOROUGH COUNCIL,300000020457057
Portsmouth City Council,PCC,Children's and Education Services,Other Education and Community Budget,Children's Services and Education,Premises-Related Expenditure,Energy costs,13-Oct-23,6742560,261.36,LIMITED COMPANY,SEFE MARKETING & TRADING LIMITED ,300000250807105
Portsmouth City Council,PCC,Adult Social Care,Social Support - Support for Carer,Adult Care,Third Party Payments,Other establishments,06-Oct-23,6741303,367.2,PRIVATE PROVIDER,Classified as 'personal data' (under the Data Protection Act 2018),300000020460102
Portsmouth City Council,PCC,Children's and Education Services,Primary Schools,Children's Services and Education,Premises-Related Expenditure,Energy costs,13-Oct-23,6742560,-109.13,LIMITED COMPANY,SEFE MARKETING & TRADING LIMITED ,300000250807105
Portsmouth City Council,PCC,Children's and Education Services,Primary Schools,Children's Services and Education,Premises-Related Expenditure,Energy costs,13-Oct-23,6742560,"-1,229.65",LIMITED COMPANY,SEFE MARKETING & TRADING LIMITED ,300000250807105
Portsmouth City Council,PCC,Children's and Education Services,Primary Schools,Children's Services and Education,Premises-Related Expenditure,Energy costs,13-Oct-23,6742560,"-2,549.26",LIMITED COMPANY,SEFE MARKETING & TRADING LIMITED ,300000250807105
Portsmouth City Council,PCC,Housing Revenue Account,Special Services,"Housing, Neighbourhood and Building Services",Premises-Related Expenditure,Energy costs,13-Oct-23,6742560,-82.83,LIMITED COMPANY,SEFE MARKETING & TRADING LIMITED ,300000250807105
Portsmouth City Council,PCC,Housing Revenue Account,Special Services,"Housing, Neighbourhood and Building Services",Premises-Related Expenditure,Energy costs,13-Oct-23,6742560,-89.18,LIMITED COMPANY,SEFE MARKETING & TRADING LIMITED ,300000250807105
Portsmouth City Council,PCC,Housing Revenue Account,Special Services,"Housing, Neighbourhood and Building Services",Premises-Related Expenditure,Energy costs,13-Oct-23,6742560,-145.23,LIMITED COMPANY,SEFE MARKETING & TRADING LIMITED ,300000250807105
Portsmouth City Council,PCC,Housing Revenue Account,Special Services,"Housing, Neighbourhood and Building Services",Premises-Related Expenditure,Energy costs,13-Oct-23,6742560,-209.22,LIMITED COMPANY,SEFE MARKETING & TRADING LIMITED ,300000250807105
Portsmouth City Council,PCC,Housing Revenue Account,Special Services,"Housing, Neighbourhood and Building Services",Premises-Related Expenditure,Energy costs,13-Oct-23,6742560,331.95,LIMITED COMPANY,SEFE MARKETING & TRADING LIMITED ,300000250807105
Portsmouth City Council,PCC,Other,Suspense and Capital Schemes,"Housing, Neighbourhood and Building Services",Premises-Related Expenditure,Energy costs,13-Oct-23,6742560,-310.98,LIMITED COMPANY,SEFE MARKETING & TRADING LIMITED ,300000250807105
Portsmouth City Council,PCC,Other,Suspense and Capital Schemes,"Housing, Neighbourhood and Building Services",Premises-Related Expenditure,Energy costs,13-Oct-23,6742560,250.83,LIMITED COMPANY,SEFE MARKETING & TRADING LIMITED ,300000250807105
Portsmouth City Council,PCC,Children's and Education Services,Other Education and Community Budget,Children's Services and Education,Premises-Related Expenditure,Energy costs,13-Oct-23,6742560,-9.61,LIMITED COMPANY,SEFE MARKETING & TRADING LIMITED ,300000250807105
Portsmouth City Council,PCC,Children's and Education Services,Other Education and Community Budget,Children's Services and Education,Premises-Related Expenditure,Energy costs,13-Oct-23,6742560,-9.61,LIMITED COMPANY,SEFE MARKETING & TRADING LIMITED ,300000250807105
Portsmouth City Council,PCC,Children's and Education Services,Other Education and Community Budget,Children's Services and Education,Premises-Related Expenditure,Energy costs,13-Oct-23,6742560,-9.3,LIMITED COMPANY,SEFE MARKETING & TRADING LIMITED ,300000250807105
Portsmouth City Council,PCC,Children's and Education Services,Other Education and Community Budget,Children's Services and Education,Premises-Related Expenditure,Energy costs,13-Oct-23,6742560,-9.61,LIMITED COMPANY,SEFE MARKETING & TRADING LIMITED ,300000250807105
Portsmouth City Council,PCC,Children's and Education Services,Other Education and Community Budget,Children's Services and Education,Premises-Related Expenditure,Energy costs,13-Oct-23,6742560,-9.3,LIMITED COMPANY,SEFE MARKETING & TRADING LIMITED ,300000250807105
Portsmouth City Council,PCC,Children's and Education Services,Other Education and Community Budget,Children's Services and Education,Premises-Related Expenditure,Energy costs,13-Oct-23,6742560,-9.61,LIMITED COMPANY,SEFE MARKETING & TRADING LIMITED ,300000250807105
Portsmouth City Council,PCC,Children's and Education Services,Other Education and Community Budget,Children's Services and Education,Premises-Related Expenditure,Energy costs,13-Oct-23,6742560,-9.61,LIMITED COMPANY,SEFE MARKETING & TRADING LIMITED ,300000250807105
Portsmouth City Council,PCC,Children's and Education Services,Other Education and Community Budget,Children's Services and Education,Premises-Related Expenditure,Energy costs,13-Oct-23,6742560,-9.3,LIMITED COMPANY,SEFE MARKETING & TRADING LIMITED ,300000250807105
Portsmouth City Council,PCC,Children's and Education Services,Other Education and Community Budget,Children's Services and Education,Premises-Related Expenditure,Energy costs,13-Oct-23,6742560,-9.61,LIMITED COMPANY,SEFE MARKETING & TRADING LIMITED ,300000250807105
Portsmouth City Council,PCC,Children's and Education Services,Other Education and Community Budget,Children's Services and Education,Premises-Related Expenditure,Energy costs,13-Oct-23,6742560,-117.97,LIMITED COMPANY,SEFE MARKETING & TRADING LIMITED ,300000250807105
Portsmouth City Council,PCC,Highways and Transport Services,"Airports, Harbours and Toll Facilities",Portsmouth International Port,Premises-Related Expenditure,"Repairs, alterations and maintenance of buildings",03-Oct-23,6740593,"2,397.46",LIMITED COMPANY,MOUNTJOY LIMITED,300000020457815
Portsmouth City Council,PCC,Environmental and Regulatory Services,Agricultural and Fisheries Services,Portsmouth International Port,Premises-Related Expenditure,Rents,02-Oct-23,6740434,"7,165.00",SUPPLIER,THE CROWN ESTATE,300000020459145
Portsmouth City Council,PCC,Adult Social Care,Physical Support Adults (18 - 64),Adult Care,Third Party Payments,Other establishments,06-Oct-23,6741303,"1,833.00",PRIVATE PROVIDER,Classified as 'personal data' (under the Data Protection Act 2018),300000020460102
Portsmouth City Council,PCC,Adult Social Care,Learning Disability Support Adults (18 - 64),Adult Care,Third Party Payments,Other establishments,06-Oct-23,6741287,"1,337.80",PRIVATE PROVIDER,Classified as 'personal data' (under the Data Protection Act 2018),300000020481843
Portsmouth City Council,PCC,Adult Social Care,Physical Support Adults (18 - 64),Adult Care,Third Party Payments,Other establishments,06-Oct-23,6741290,647.28,PRIVATE PROVIDER,Classified as 'personal data' (under the Data Protection Act 2018),300000020483065
Portsmouth City Council,PCC,Adult Social Care,Physical Support Adults (18 - 64),Adult Care,Third Party Payments,Other establishments,06-Oct-23,6741298,576.12,PRIVATE PROVIDER,Classified as 'personal data' (under the Data Protection Act 2018),300000020480632
Portsmouth City Council,PCC,Children's and Education Services,Children Looked After,Children's Services and Education,Third Party Payments,Other establishments,02-Oct-23,6740379,"6,900.00",GOVERNMENT DEPT,THE DURHAM COUNTY COUNCIL,300000568136241
Portsmouth City Council,PCC,Children's and Education Services,Children Looked After,Children's Services and Education,Third Party Payments,Other establishments,02-Oct-23,6740379,"6,900.00",GOVERNMENT DEPT,THE DURHAM COUNTY COUNCIL,300000568136241
Portsmouth City Council,PCC,Children's and Education Services,Children Looked After,Children's Services and Education,Third Party Payments,Other establishments,02-Oct-23,6740379,"9,660.00",GOVERNMENT DEPT,THE DURHAM COUNTY COUNCIL,300000568136241
Portsmouth City Council,PCC,Children's and Education Services,Children Looked After,Children's Services and Education,Third Party Payments,Other establishments,02-Oct-23,6740379,"9,660.00",GOVERNMENT DEPT,THE DURHAM COUNTY COUNCIL,300000568136241
Portsmouth City Council,PCC,Children's and Education Services,Children Looked After,Children's Services and Education,Third Party Payments,Other establishments,02-Oct-23,6740379,"9,660.00",GOVERNMENT DEPT,THE DURHAM COUNTY COUNCIL,300000568136241
Portsmouth City Council,PCC,Children's and Education Services,Children Looked After,Children's Services and Education,Third Party Payments,Other establishments,04-Oct-23,6740628,-0.04,SUPPLIER,THE CHILDRENS FAMILY TRUST,300000020479545
Portsmouth City Council,PCC,Children's and Education Services,Children Looked After,Children's Services and Education,Third Party Payments,Other establishments,04-Oct-23,6740628,221.22,SUPPLIER,THE CHILDRENS FAMILY TRUST,300000020479545
Portsmouth City Council,PCC,Children's and Education Services,Children Looked After,Children's Services and Education,Third Party Payments,Other establishments,04-Oct-23,6740628,774.28,SUPPLIER,THE CHILDRENS FAMILY TRUST,300000020479545
Portsmouth City Council,PCC,Children's and Education Services,Children Looked After,Children's Services and Education,Third Party Payments,Other establishments,04-Oct-23,6740628,774.28,SUPPLIER,THE CHILDRENS FAMILY TRUST,300000020479545
Portsmouth City Council,PCC,Children's and Education Services,Children Looked After,Children's Services and Education,Third Party Payments,Other establishments,04-Oct-23,6740628,774.28,SUPPLIER,THE CHILDRENS FAMILY TRUST,300000020479545
Portsmouth City Council,PCC,Children's and Education Services,Children Looked After,Children's Services and Education,Third Party Payments,Other establishments,04-Oct-23,6740628,774.28,SUPPLIER,THE CHILDRENS FAMILY TRUST,300000020479545
Portsmouth City Council,PCC,Children's and Education Services,Children Looked After,Children's Services and Education,Third Party Payments,Other establishments,04-Oct-23,6740628,0.04,SUPPLIER,THE CHILDRENS FAMILY TRUST,300000020479545
Portsmouth City Council,PCC,Children's and Education Services,Children Looked After,Children's Services and Education,Third Party Payments,Other establishments,04-Oct-23,6740628,224.34,SUPPLIER,THE CHILDRENS FAMILY TRUST,300000020479545
Portsmouth City Council,PCC,Children's and Education Services,Children Looked After,Children's Services and Education,Third Party Payments,Other establishments,04-Oct-23,6740628,785.18,SUPPLIER,THE CHILDRENS FAMILY TRUST,300000020479545
Portsmouth City Council,PCC,Children's and Education Services,Children Looked After,Children's Services and Education,Third Party Payments,Other establishments,04-Oct-23,6740628,785.18,SUPPLIER,THE CHILDRENS FAMILY TRUST,300000020479545
Portsmouth City Council,PCC,Children's and Education Services,Children Looked After,Children's Services and Education,Third Party Payments,Other establishments,04-Oct-23,6740628,785.18,SUPPLIER,THE CHILDRENS FAMILY TRUST,300000020479545
Portsmouth City Council,PCC,Children's and Education Services,Children Looked After,Children's Services and Education,Third Party Payments,Other establishments,04-Oct-23,6740628,785.18,SUPPLIER,THE CHILDRENS FAMILY TRUST,300000020479545
Portsmouth City Council,PCC,Children's and Education Services,Children Looked After,Children's Services and Education,Third Party Payments,Other establishments,04-Oct-23,6740622,-0.26,SUPPLIER,BLUE SKY FOSTERING,300000020464936
Portsmouth City Council,PCC,Children's and Education Services,Children Looked After,Children's Services and Education,Third Party Payments,Other establishments,04-Oct-23,6740622,220.86,SUPPLIER,BLUE SKY FOSTERING,300000020464936
Portsmouth City Council,PCC,Children's and Education Services,Children Looked After,Children's Services and Education,Third Party Payments,Other establishments,04-Oct-23,6740622,773,SUPPLIER,BLUE SKY FOSTERING,300000020464936
Portsmouth City Council,PCC,Children's and Education Services,Children Looked After,Children's Services and Education,Third Party Payments,Other establishments,04-Oct-23,6740622,773,SUPPLIER,BLUE SKY FOSTERING,300000020464936
Portsmouth City Council,PCC,Children's and Education Services,Children Looked After,Children's Services and Education,Third Party Payments,Other establishments,04-Oct-23,6740622,773,SUPPLIER,BLUE SKY FOSTERING,300000020464936
Portsmouth City Council,PCC,Children's and Education Services,Children Looked After,Children's Services and Education,Third Party Payments,Other establishments,04-Oct-23,6740622,773,SUPPLIER,BLUE SKY FOSTERING,300000020464936
Portsmouth City Council,PCC,Children's and Education Services,Children Looked After,Children's Services and Education,Third Party Payments,Other establishments,04-Oct-23,6740622,-0.26,SUPPLIER,BLUE SKY FOSTERING,300000020464936
Portsmouth City Council,PCC,Children's and Education Services,Children Looked After,Children's Services and Education,Third Party Payments,Other establishments,04-Oct-23,6740622,220.86,SUPPLIER,BLUE SKY FOSTERING,300000020464936
Portsmouth City Council,PCC,Children's and Education Services,Children Looked After,Children's Services and Education,Third Party Payments,Other establishments,04-Oct-23,6740622,773,SUPPLIER,BLUE SKY FOSTERING,300000020464936
Portsmouth City Council,PCC,Children's and Education Services,Children Looked After,Children's Services and Education,Third Party Payments,Other establishments,04-Oct-23,6740622,773,SUPPLIER,BLUE SKY FOSTERING,300000020464936
Portsmouth City Council,PCC,Children's and Education Services,Children Looked After,Children's Services and Education,Third Party Payments,Other establishments,04-Oct-23,6740622,773,SUPPLIER,BLUE SKY FOSTERING,300000020464936
Portsmouth City Council,PCC,Children's and Education Services,Children Looked After,Children's Services and Education,Third Party Payments,Other establishments,04-Oct-23,6740622,773,SUPPLIER,BLUE SKY FOSTERING,300000020464936
Portsmouth City Council,PCC,Children's and Education Services,Children Looked After,Children's Services and Education,Third Party Payments,Other establishments,04-Oct-23,6740622,248,SUPPLIER,BLUE SKY FOSTERING,300000020464936
Portsmouth City Council,PCC,Children's and Education Services,Children Looked After,Children's Services and Education,Third Party Payments,Other establishments,04-Oct-23,6740622,868,SUPPLIER,BLUE SKY FOSTERING,300000020464936
Portsmouth City Council,PCC,Children's and Education Services,Children Looked After,Children's Services and Education,Third Party Payments,Other establishments,04-Oct-23,6740622,868,SUPPLIER,BLUE SKY FOSTERING,300000020464936
Portsmouth City Council,PCC,Children's and Education Services,Children Looked After,Children's Services and Education,Third Party Payments,Other establishments,04-Oct-23,6740622,868,SUPPLIER,BLUE SKY FOSTERING,300000020464936
Portsmouth City Council,PCC,Children's and Education Services,Children Looked After,Children's Services and Education,Third Party Payments,Other establishments,04-Oct-23,6740622,868,SUPPLIER,BLUE SKY FOSTERING,300000020464936
Portsmouth City Council,PCC,Children's and Education Services,Children Looked After,Children's Services and Education,Third Party Payments,Other establishments,05-Oct-23,6741170,465.75,SUPPLIER,FIVE RIVERS CHILD CARE LIMITED,300000020461320
Portsmouth City Council,PCC,Children's and Education Services,Children Looked After,Children's Services and Education,Third Party Payments,Other establishments,05-Oct-23,6741170,"1,630.12",SUPPLIER,FIVE RIVERS CHILD CARE LIMITED,300000020461320
Portsmouth City Council,PCC,Children's and Education Services,Children Looked After,Children's Services and Education,Third Party Payments,Other establishments,05-Oct-23,6741170,"1,630.12",SUPPLIER,FIVE RIVERS CHILD CARE LIMITED,300000020461320
Portsmouth City Council,PCC,Children's and Education Services,Children Looked After,Children's Services and Education,Third Party Payments,Other establishments,05-Oct-23,6741170,"1,630.12",SUPPLIER,FIVE RIVERS CHILD CARE LIMITED,300000020461320
Portsmouth City Council,PCC,Children's and Education Services,Children Looked After,Children's Services and Education,Third Party Payments,Other establishments,05-Oct-23,6741170,"1,630.12",SUPPLIER,FIVE RIVERS CHILD CARE LIMITED,300000020461320
Portsmouth City Council,PCC,Children's and Education Services,Safeguarding Children and Young Peoples Services,Children's Services and Education,Third Party Payments,Other establishments,04-Oct-23,6740688,-941,SUPPLIER,LILIAN DAVIS GROUP LTD,300000020467263
Portsmouth City Council,PCC,Children's and Education Services,Safeguarding Children and Young Peoples Services,Children's Services and Education,Third Party Payments,Other establishments,04-Oct-23,6740688,-10,SUPPLIER,LILIAN DAVIS GROUP LTD,300000020467263
Portsmouth City Council,PCC,Children's and Education Services,Safeguarding Children and Young Peoples Services,Children's Services and Education,Third Party Payments,Other establishments,04-Oct-23,6740688,-10,SUPPLIER,LILIAN DAVIS GROUP LTD,300000020467263
Portsmouth City Council,PCC,Children's and Education Services,Safeguarding Children and Young Peoples Services,Children's Services and Education,Third Party Payments,Other establishments,04-Oct-23,6740688,-10,SUPPLIER,LILIAN DAVIS GROUP LTD,300000020467263
Portsmouth City Council,PCC,Children's and Education Services,Safeguarding Children and Young Peoples Services,Children's Services and Education,Third Party Payments,Other establishments,04-Oct-23,6740688,-10,SUPPLIER,LILIAN DAVIS GROUP LTD,300000020467263
Portsmouth City Council,PCC,Children's and Education Services,Safeguarding Children and Young Peoples Services,Children's Services and Education,Third Party Payments,Other establishments,04-Oct-23,6740688,-2.86,SUPPLIER,LILIAN DAVIS GROUP LTD,300000020467263
Portsmouth City Council,PCC,Children's and Education Services,Safeguarding Children and Young Peoples Services,Children's Services and Education,Third Party Payments,Other establishments,04-Oct-23,6740688,0.01,SUPPLIER,LILIAN DAVIS GROUP LTD,300000020467263
Portsmouth City Council,PCC,Children's and Education Services,Safeguarding Children and Young Peoples Services,Children's Services and Education,Third Party Payments,Other establishments,04-Oct-23,6740688,35.71,SUPPLIER,LILIAN DAVIS GROUP LTD,300000020467263
Portsmouth City Council,PCC,Children's and Education Services,Safeguarding Children and Young Peoples Services,Children's Services and Education,Third Party Payments,Other establishments,04-Oct-23,6740688,110,SUPPLIER,LILIAN DAVIS GROUP LTD,300000020467263
Portsmouth City Council,PCC,Children's and Education Services,Safeguarding Children and Young Peoples Services,Children's Services and Education,Third Party Payments,Other establishments,04-Oct-23,6740688,125,SUPPLIER,LILIAN DAVIS GROUP LTD,300000020467263
Portsmouth City Council,PCC,Children's and Education Services,Safeguarding Children and Young Peoples Services,Children's Services and Education,Third Party Payments,Other establishments,04-Oct-23,6740688,125,SUPPLIER,LILIAN DAVIS GROUP LTD,300000020467263
Portsmouth City Council,PCC,Children's and Education Services,Safeguarding Children and Young Peoples Services,Children's Services and Education,Third Party Payments,Other establishments,04-Oct-23,6740688,125,SUPPLIER,LILIAN DAVIS GROUP LTD,300000020467263
Portsmouth City Council,PCC,Children's and Education Services,Safeguarding Children and Young Peoples Services,Children's Services and Education,Third Party Payments,Other establishments,04-Oct-23,6740688,125,SUPPLIER,LILIAN DAVIS GROUP LTD,300000020467263
Portsmouth City Council,PCC,Children's and Education Services,Safeguarding Children and Young Peoples Services,Children's Services and Education,Third Party Payments,Other establishments,04-Oct-23,6740688,385,SUPPLIER,LILIAN DAVIS GROUP LTD,300000020467263
Portsmouth City Council,PCC,Children's and Education Services,Safeguarding Children and Young Peoples Services,Children's Services and Education,Third Party Payments,Other establishments,04-Oct-23,6740688,385,SUPPLIER,LILIAN DAVIS GROUP LTD,300000020467263
Portsmouth City Council,PCC,Children's and Education Services,Safeguarding Children and Young Peoples Services,Children's Services and Education,Third Party Payments,Other establishments,04-Oct-23,6740688,385,SUPPLIER,LILIAN DAVIS GROUP LTD,300000020467263
Portsmouth City Council,PCC,Children's and Education Services,Safeguarding Children and Young Peoples Services,Children's Services and Education,Third Party Payments,Other establishments,04-Oct-23,6740688,385,SUPPLIER,LILIAN DAVIS GROUP LTD,300000020467263
Portsmouth City Council,PCC,Children's and Education Services,Safeguarding Children and Young Peoples Services,Children's Services and Education,Third Party Payments,Other establishments,04-Oct-23,6740688,-872.6,SUPPLIER,LILIAN DAVIS GROUP LTD,300000020467263
Portsmouth City Council,PCC,Children's and Education Services,Safeguarding Children and Young Peoples Services,Children's Services and Education,Third Party Payments,Other establishments,04-Oct-23,6740688,-10,SUPPLIER,LILIAN DAVIS GROUP LTD,300000020467263
Portsmouth City Council,PCC,Children's and Education Services,Safeguarding Children and Young Peoples Services,Children's Services and Education,Third Party Payments,Other establishments,04-Oct-23,6740688,-10,SUPPLIER,LILIAN DAVIS GROUP LTD,300000020467263
Portsmouth City Council,PCC,Children's and Education Services,Safeguarding Children and Young Peoples Services,Children's Services and Education,Third Party Payments,Other establishments,04-Oct-23,6740688,-10,SUPPLIER,LILIAN DAVIS GROUP LTD,300000020467263
Portsmouth City Council,PCC,Children's and Education Services,Safeguarding Children and Young Peoples Services,Children's Services and Education,Third Party Payments,Other establishments,04-Oct-23,6740688,-10,SUPPLIER,LILIAN DAVIS GROUP LTD,300000020467263
Portsmouth City Council,PCC,Children's and Education Services,Safeguarding Children and Young Peoples Services,Children's Services and Education,Third Party Payments,Other establishments,04-Oct-23,6740688,-2.86,SUPPLIER,LILIAN DAVIS GROUP LTD,300000020467263
Portsmouth City Council,PCC,Children's and Education Services,Safeguarding Children and Young Peoples Services,Children's Services and Education,Third Party Payments,Other establishments,04-Oct-23,6740688,0.01,SUPPLIER,LILIAN DAVIS GROUP LTD,300000020467263
Portsmouth City Council,PCC,Children's and Education Services,Safeguarding Children and Young Peoples Services,Children's Services and Education,Third Party Payments,Other establishments,04-Oct-23,6740688,21.43,SUPPLIER,LILIAN DAVIS GROUP LTD,300000020467263
Portsmouth City Council,PCC,Children's and Education Services,Safeguarding Children and Young Peoples Services,Children's Services and Education,Third Party Payments,Other establishments,04-Oct-23,6740688,75,SUPPLIER,LILIAN DAVIS GROUP LTD,300000020467263
Portsmouth City Council,PCC,Children's and Education Services,Safeguarding Children and Young Peoples Services,Children's Services and Education,Third Party Payments,Other establishments,04-Oct-23,6740688,75,SUPPLIER,LILIAN DAVIS GROUP LTD,300000020467263
Portsmouth City Council,PCC,Children's and Education Services,Safeguarding Children and Young Peoples Services,Children's Services and Education,Third Party Payments,Other establishments,04-Oct-23,6740688,75,SUPPLIER,LILIAN DAVIS GROUP LTD,300000020467263
Portsmouth City Council,PCC,Children's and Education Services,Safeguarding Children and Young Peoples Services,Children's Services and Education,Third Party Payments,Other establishments,04-Oct-23,6740688,75,SUPPLIER,LILIAN DAVIS GROUP LTD,300000020467263
Portsmouth City Council,PCC,Children's and Education Services,Safeguarding Children and Young Peoples Services,Children's Services and Education,Third Party Payments,Other establishments,04-Oct-23,6740688,125.71,SUPPLIER,LILIAN DAVIS GROUP LTD,300000020467263
Portsmouth City Council,PCC,Children's and Education Services,Safeguarding Children and Young Peoples Services,Children's Services and Education,Third Party Payments,Other establishments,04-Oct-23,6740688,440,SUPPLIER,LILIAN DAVIS GROUP LTD,300000020467263
Portsmouth City Council,PCC,Children's and Education Services,Safeguarding Children and Young Peoples Services,Children's Services and Education,Third Party Payments,Other establishments,04-Oct-23,6740688,440,SUPPLIER,LILIAN DAVIS GROUP LTD,300000020467263
Portsmouth City Council,PCC,Children's and Education Services,Safeguarding Children and Young Peoples Services,Children's Services and Education,Third Party Payments,Other establishments,04-Oct-23,6740688,440,SUPPLIER,LILIAN DAVIS GROUP LTD,300000020467263
Portsmouth City Council,PCC,Children's and Education Services,Safeguarding Children and Young Peoples Services,Children's Services and Education,Third Party Payments,Other establishments,04-Oct-23,6740688,440,SUPPLIER,LILIAN DAVIS GROUP LTD,300000020467263
Portsmouth City Council,PCC,Children's and Education Services,Safeguarding Children and Young Peoples Services,Children's Services and Education,Third Party Payments,Other establishments,04-Oct-23,6740688,-872.6,SUPPLIER,LILIAN DAVIS GROUP LTD,300000020467263
Portsmouth City Council,PCC,Children's and Education Services,Safeguarding Children and Young Peoples Services,Children's Services and Education,Third Party Payments,Other establishments,04-Oct-23,6740688,-10,SUPPLIER,LILIAN DAVIS GROUP LTD,300000020467263
Portsmouth City Council,PCC,Children's and Education Services,Safeguarding Children and Young Peoples Services,Children's Services and Education,Third Party Payments,Other establishments,04-Oct-23,6740688,-10,SUPPLIER,LILIAN DAVIS GROUP LTD,300000020467263
Portsmouth City Council,PCC,Children's and Education Services,Safeguarding Children and Young Peoples Services,Children's Services and Education,Third Party Payments,Other establishments,04-Oct-23,6740688,-10,SUPPLIER,LILIAN DAVIS GROUP LTD,300000020467263
Portsmouth City Council,PCC,Children's and Education Services,Safeguarding Children and Young Peoples Services,Children's Services and Education,Third Party Payments,Other establishments,04-Oct-23,6740688,-10,SUPPLIER,LILIAN DAVIS GROUP LTD,300000020467263
Portsmouth City Council,PCC,Children's and Education Services,Safeguarding Children and Young Peoples Services,Children's Services and Education,Third Party Payments,Other establishments,04-Oct-23,6740688,-2.86,SUPPLIER,LILIAN DAVIS GROUP LTD,300000020467263
Portsmouth City Council,PCC,Children's and Education Services,Safeguarding Children and Young Peoples Services,Children's Services and Education,Third Party Payments,Other establishments,04-Oct-23,6740688,35.71,SUPPLIER,LILIAN DAVIS GROUP LTD,300000020467263
Portsmouth City Council,PCC,Children's and Education Services,Safeguarding Children and Young Peoples Services,Children's Services and Education,Third Party Payments,Other establishments,04-Oct-23,6740688,110.86,SUPPLIER,LILIAN DAVIS GROUP LTD,300000020467263
Portsmouth City Council,PCC,Children's and Education Services,Safeguarding Children and Young Peoples Services,Children's Services and Education,Third Party Payments,Other establishments,04-Oct-23,6740688,125,SUPPLIER,LILIAN DAVIS GROUP LTD,300000020467263
Portsmouth City Council,PCC,Children's and Education Services,Safeguarding Children and Young Peoples Services,Children's Services and Education,Third Party Payments,Other establishments,04-Oct-23,6740688,125,SUPPLIER,LILIAN DAVIS GROUP LTD,300000020467263
Portsmouth City Council,PCC,Children's and Education Services,Safeguarding Children and Young Peoples Services,Children's Services and Education,Third Party Payments,Other establishments,04-Oct-23,6740688,125,SUPPLIER,LILIAN DAVIS GROUP LTD,300000020467263
Portsmouth City Council,PCC,Children's and Education Services,Safeguarding Children and Young Peoples Services,Children's Services and Education,Third Party Payments,Other establishments,04-Oct-23,6740688,125,SUPPLIER,LILIAN DAVIS GROUP LTD,300000020467263
Portsmouth City Council,PCC,Children's and Education Services,Safeguarding Children and Young Peoples Services,Children's Services and Education,Third Party Payments,Other establishments,04-Oct-23,6740688,388,SUPPLIER,LILIAN DAVIS GROUP LTD,300000020467263
Portsmouth City Council,PCC,Children's and Education Services,Safeguarding Children and Young Peoples Services,Children's Services and Education,Third Party Payments,Other establishments,04-Oct-23,6740688,388,SUPPLIER,LILIAN DAVIS GROUP LTD,300000020467263
Portsmouth City Council,PCC,Children's and Education Services,Safeguarding Children and Young Peoples Services,Children's Services and Education,Third Party Payments,Other establishments,04-Oct-23,6740688,388,SUPPLIER,LILIAN DAVIS GROUP LTD,300000020467263
Portsmouth City Council,PCC,Children's and Education Services,Safeguarding Children and Young Peoples Services,Children's Services and Education,Third Party Payments,Other establishments,04-Oct-23,6740688,388,SUPPLIER,LILIAN DAVIS GROUP LTD,300000020467263
Portsmouth City Council,PCC,Children's and Education Services,Safeguarding Children and Young Peoples Services,Children's Services and Education,Third Party Payments,Other establishments,04-Oct-23,6740688,-892.54,SUPPLIER,LILIAN DAVIS GROUP LTD,300000020467263
Portsmouth City Council,PCC,Children's and Education Services,Safeguarding Children and Young Peoples Services,Children's Services and Education,Third Party Payments,Other establishments,04-Oct-23,6740688,-10,SUPPLIER,LILIAN DAVIS GROUP LTD,300000020467263
Portsmouth City Council,PCC,Children's and Education Services,Safeguarding Children and Young Peoples Services,Children's Services and Education,Third Party Payments,Other establishments,04-Oct-23,6740688,-10,SUPPLIER,LILIAN DAVIS GROUP LTD,300000020467263
Portsmouth City Council,PCC,Children's and Education Services,Safeguarding Children and Young Peoples Services,Children's Services and Education,Third Party Payments,Other establishments,04-Oct-23,6740688,-10,SUPPLIER,LILIAN DAVIS GROUP LTD,300000020467263
Portsmouth City Council,PCC,Children's and Education Services,Safeguarding Children and Young Peoples Services,Children's Services and Education,Third Party Payments,Other establishments,04-Oct-23,6740688,-10,SUPPLIER,LILIAN DAVIS GROUP LTD,300000020467263
Portsmouth City Council,PCC,Children's and Education Services,Safeguarding Children and Young Peoples Services,Children's Services and Education,Third Party Payments,Other establishments,04-Oct-23,6740688,-2.86,SUPPLIER,LILIAN DAVIS GROUP LTD,300000020467263
Portsmouth City Council,PCC,Children's and Education Services,Safeguarding Children and Young Peoples Services,Children's Services and Education,Third Party Payments,Other establishments,04-Oct-23,6740688,34.29,SUPPLIER,LILIAN DAVIS GROUP LTD,300000020467263
Portsmouth City Council,PCC,Children's and Education Services,Safeguarding Children and Young Peoples Services,Children's Services and Education,Third Party Payments,Other establishments,04-Oct-23,6740688,120,SUPPLIER,LILIAN DAVIS GROUP LTD,300000020467263
Portsmouth City Council,PCC,Children's and Education Services,Safeguarding Children and Young Peoples Services,Children's Services and Education,Third Party Payments,Other establishments,04-Oct-23,6740688,120,SUPPLIER,LILIAN DAVIS GROUP LTD,300000020467263
Portsmouth City Council,PCC,Children's and Education Services,Safeguarding Children and Young Peoples Services,Children's Services and Education,Third Party Payments,Other establishments,04-Oct-23,6740688,120,SUPPLIER,LILIAN DAVIS GROUP LTD,300000020467263
Portsmouth City Council,PCC,Children's and Education Services,Safeguarding Children and Young Peoples Services,Children's Services and Education,Third Party Payments,Other establishments,04-Oct-23,6740688,120,SUPPLIER,LILIAN DAVIS GROUP LTD,300000020467263
Portsmouth City Council,PCC,Children's and Education Services,Safeguarding Children and Young Peoples Services,Children's Services and Education,Third Party Payments,Other establishments,04-Oct-23,6740688,125.71,SUPPLIER,LILIAN DAVIS GROUP LTD,300000020467263
Portsmouth City Council,PCC,Children's and Education Services,Safeguarding Children and Young Peoples Services,Children's Services and Education,Third Party Payments,Other establishments,04-Oct-23,6740688,440,SUPPLIER,LILIAN DAVIS GROUP LTD,300000020467263
Portsmouth City Council,PCC,Children's and Education Services,Safeguarding Children and Young Peoples Services,Children's Services and Education,Third Party Payments,Other establishments,04-Oct-23,6740688,440,SUPPLIER,LILIAN DAVIS GROUP LTD,300000020467263
Portsmouth City Council,PCC,Children's and Education Services,Safeguarding Children and Young Peoples Services,Children's Services and Education,Third Party Payments,Other establishments,04-Oct-23,6740688,440,SUPPLIER,LILIAN DAVIS GROUP LTD,300000020467263
Portsmouth City Council,PCC,Children's and Education Services,Safeguarding Children and Young Peoples Services,Children's Services and Education,Third Party Payments,Other establishments,04-Oct-23,6740688,440,SUPPLIER,LILIAN DAVIS GROUP LTD,300000020467263
Portsmouth City Council,PCC,Children's and Education Services,Other Children and Family Services,Children's Services and Education,Supplies and Services,Services,04-Oct-23,6740643,771,SUPPLIER,AA GLOBAL LANGUAGE SERVICES LTD,300000020483226
Portsmouth City Council,PCC,Children's and Education Services,Other Children and Family Services,Children's Services and Education,Supplies and Services,Services,04-Oct-23,6740643,41,SUPPLIER,AA GLOBAL LANGUAGE SERVICES LTD,300000020483226
Portsmouth City Council,PCC,Children's and Education Services,Other Children and Family Services,Children's Services and Education,Supplies and Services,Services,04-Oct-23,6740643,45,SUPPLIER,AA GLOBAL LANGUAGE SERVICES LTD,300000020483226
Portsmouth City Council,PCC,Children's and Education Services,Safeguarding Children and Young Peoples Services,Children's Services and Education,Third Party Payments,Other establishments,02-Oct-23,6740351,-0.01,SUPPLIER,FAMILY FIRST FOSTERING,300000020483859
Portsmouth City Council,PCC,Children's and Education Services,Safeguarding Children and Young Peoples Services,Children's Services and Education,Third Party Payments,Other establishments,02-Oct-23,6740351,416.11,SUPPLIER,FAMILY FIRST FOSTERING,300000020483859
Portsmouth City Council,PCC,Children's and Education Services,Safeguarding Children and Young Peoples Services,Children's Services and Education,Third Party Payments,Other establishments,02-Oct-23,6740351,416.11,SUPPLIER,FAMILY FIRST FOSTERING,300000020483859
Portsmouth City Council,PCC,Children's and Education Services,Safeguarding Children and Young Peoples Services,Children's Services and Education,Third Party Payments,Other establishments,02-Oct-23,6740351,582.55,SUPPLIER,FAMILY FIRST FOSTERING,300000020483859
Portsmouth City Council,PCC,Children's and Education Services,Safeguarding Children and Young Peoples Services,Children's Services and Education,Third Party Payments,Other establishments,02-Oct-23,6740351,582.55,SUPPLIER,FAMILY FIRST FOSTERING,300000020483859
Portsmouth City Council,PCC,Children's and Education Services,Safeguarding Children and Young Peoples Services,Children's Services and Education,Third Party Payments,Other establishments,02-Oct-23,6740351,582.55,SUPPLIER,FAMILY FIRST FOSTERING,300000020483859
Portsmouth City Council,PCC,Children's and Education Services,Family Support Services,Children's Services and Education,Supplies and Services,Services,04-Oct-23,6740643,228,SUPPLIER,AA GLOBAL LANGUAGE SERVICES LTD,300000020483226
Portsmouth City Council,PCC,Children's and Education Services,Family Support Services,Children's Services and Education,Supplies and Services,Services,04-Oct-23,6740643,326.79,SUPPLIER,AA GLOBAL LANGUAGE SERVICES LTD,300000020483226
Portsmouth City Council,PCC,Children's and Education Services,Family Support Services,Children's Services and Education,Third Party Payments,Other establishments,02-Oct-23,6740377,717,LIMITED COMPANY,SOUTHSEA BOOKINGS LIMITED,300000515220928
Portsmouth City Council,PCC,Children's and Education Services,Family Support Services,Children's Services and Education,Third Party Payments,Other establishments,09-Oct-23,6741465,200,SUPPLIER,HOPE INTO ACTION PORTSMOUTH,300000020472723
Portsmouth City Council,PCC,Children's and Education Services,Family Support Services,Children's Services and Education,Third Party Payments,Other establishments,09-Oct-23,6741465,"1,064.34",SUPPLIER,HOPE INTO ACTION PORTSMOUTH,300000020472723
Portsmouth City Council,PCC,Children's and Education Services,Children Looked After,Children's Services and Education,Third Party Payments,Other establishments,09-Oct-23,6741386,331.5,CHARITY OR VOLUNTARY,FRIENDS THERAPEUTIC COMMUNITY TRUST,300000333489551
Portsmouth City Council,PCC,Children's and Education Services,Children Looked After,Children's Services and Education,Third Party Payments,Other establishments,09-Oct-23,6741386,360,CHARITY OR VOLUNTARY,FRIENDS THERAPEUTIC COMMUNITY TRUST,300000333489551
Portsmouth City Council,PCC,Children's and Education Services,Children Looked After,Children's Services and Education,Third Party Payments,Other establishments,09-Oct-23,6741386,663,CHARITY OR VOLUNTARY,FRIENDS THERAPEUTIC COMMUNITY TRUST,300000333489551
Portsmouth City Council,PCC,Children's and Education Services,Children Looked After,Children's Services and Education,Third Party Payments,Other establishments,09-Oct-23,6741386,720,CHARITY OR VOLUNTARY,FRIENDS THERAPEUTIC COMMUNITY TRUST,300000333489551
Portsmouth City Council,PCC,Children's and Education Services,Children Looked After,Children's Services and Education,Third Party Payments,Other establishments,09-Oct-23,6741386,773.5,CHARITY OR VOLUNTARY,FRIENDS THERAPEUTIC COMMUNITY TRUST,300000333489551
Portsmouth City Council,PCC,Children's and Education Services,Children Looked After,Children's Services and Education,Third Party Payments,Other establishments,09-Oct-23,6741386,773.5,CHARITY OR VOLUNTARY,FRIENDS THERAPEUTIC COMMUNITY TRUST,300000333489551
Portsmouth City Council,PCC,Children's and Education Services,Children Looked After,Children's Services and Education,Third Party Payments,Other establishments,09-Oct-23,6741386,773.5,CHARITY OR VOLUNTARY,FRIENDS THERAPEUTIC COMMUNITY TRUST,300000333489551
Portsmouth City Council,PCC,Children's and Education Services,Children Looked After,Children's Services and Education,Third Party Payments,Other establishments,09-Oct-23,6741386,840,CHARITY OR VOLUNTARY,FRIENDS THERAPEUTIC COMMUNITY TRUST,300000333489551
Portsmouth City Council,PCC,Children's and Education Services,Children Looked After,Children's Services and Education,Third Party Payments,Other establishments,09-Oct-23,6741386,840,CHARITY OR VOLUNTARY,FRIENDS THERAPEUTIC COMMUNITY TRUST,300000333489551
Portsmouth City Council,PCC,Children's and Education Services,Children Looked After,Children's Services and Education,Third Party Payments,Other establishments,09-Oct-23,6741386,840,CHARITY OR VOLUNTARY,FRIENDS THERAPEUTIC COMMUNITY TRUST,300000333489551
Portsmouth City Council,PCC,Children's and Education Services,Children Looked After,Children's Services and Education,Third Party Payments,Other establishments,09-Oct-23,6741386,"2,266.50",CHARITY OR VOLUNTARY,FRIENDS THERAPEUTIC COMMUNITY TRUST,300000333489551
Portsmouth City Council,PCC,Children's and Education Services,Children Looked After,Children's Services and Education,Third Party Payments,Other establishments,09-Oct-23,6741386,"4,533.00",CHARITY OR VOLUNTARY,FRIENDS THERAPEUTIC COMMUNITY TRUST,300000333489551
Portsmouth City Council,PCC,Children's and Education Services,Children Looked After,Children's Services and Education,Third Party Payments,Other establishments,09-Oct-23,6741386,"5,288.50",CHARITY OR VOLUNTARY,FRIENDS THERAPEUTIC COMMUNITY TRUST,300000333489551
Portsmouth City Council,PCC,Children's and Education Services,Children Looked After,Children's Services and Education,Third Party Payments,Other establishments,09-Oct-23,6741386,"5,288.50",CHARITY OR VOLUNTARY,FRIENDS THERAPEUTIC COMMUNITY TRUST,300000333489551
Portsmouth City Council,PCC,Children's and Education Services,Children Looked After,Children's Services and Education,Third Party Payments,Other establishments,09-Oct-23,6741386,"5,288.50",CHARITY OR VOLUNTARY,FRIENDS THERAPEUTIC COMMUNITY TRUST,300000333489551
Portsmouth City Council,PCC,Children's and Education Services,Children Looked After,Children's Services and Education,Third Party Payments,Other establishments,09-Oct-23,6741386,318,CHARITY OR VOLUNTARY,FRIENDS THERAPEUTIC COMMUNITY TRUST,300000333489551
Portsmouth City Council,PCC,Children's and Education Services,Children Looked After,Children's Services and Education,Third Party Payments,Other establishments,09-Oct-23,6741386,346.5,CHARITY OR VOLUNTARY,FRIENDS THERAPEUTIC COMMUNITY TRUST,300000333489551
Portsmouth City Council,PCC,Children's and Education Services,Children Looked After,Children's Services and Education,Third Party Payments,Other establishments,09-Oct-23,6741386,636,CHARITY OR VOLUNTARY,FRIENDS THERAPEUTIC COMMUNITY TRUST,300000333489551
Portsmouth City Council,PCC,Children's and Education Services,Children Looked After,Children's Services and Education,Third Party Payments,Other establishments,09-Oct-23,6741386,693,CHARITY OR VOLUNTARY,FRIENDS THERAPEUTIC COMMUNITY TRUST,300000333489551
Portsmouth City Council,PCC,Children's and Education Services,Children Looked After,Children's Services and Education,Third Party Payments,Other establishments,09-Oct-23,6741386,742,CHARITY OR VOLUNTARY,FRIENDS THERAPEUTIC COMMUNITY TRUST,300000333489551
Portsmouth City Council,PCC,Children's and Education Services,Children Looked After,Children's Services and Education,Third Party Payments,Other establishments,09-Oct-23,6741386,742,CHARITY OR VOLUNTARY,FRIENDS THERAPEUTIC COMMUNITY TRUST,300000333489551
Portsmouth City Council,PCC,Children's and Education Services,Children Looked After,Children's Services and Education,Third Party Payments,Other establishments,09-Oct-23,6741386,742,CHARITY OR VOLUNTARY,FRIENDS THERAPEUTIC COMMUNITY TRUST,300000333489551
Portsmouth City Council,PCC,Children's and Education Services,Children Looked After,Children's Services and Education,Third Party Payments,Other establishments,09-Oct-23,6741386,808.5,CHARITY OR VOLUNTARY,FRIENDS THERAPEUTIC COMMUNITY TRUST,300000333489551
Portsmouth City Council,PCC,Children's and Education Services,Children Looked After,Children's Services and Education,Third Party Payments,Other establishments,09-Oct-23,6741386,808.5,CHARITY OR VOLUNTARY,FRIENDS THERAPEUTIC COMMUNITY TRUST,300000333489551
Portsmouth City Council,PCC,Children's and Education Services,Children Looked After,Children's Services and Education,Third Party Payments,Other establishments,09-Oct-23,6741386,808.5,CHARITY OR VOLUNTARY,FRIENDS THERAPEUTIC COMMUNITY TRUST,300000333489551
Portsmouth City Council,PCC,Children's and Education Services,Children Looked After,Children's Services and Education,Third Party Payments,Other establishments,09-Oct-23,6741386,"2,179.50",CHARITY OR VOLUNTARY,FRIENDS THERAPEUTIC COMMUNITY TRUST,300000333489551
Portsmouth City Council,PCC,Children's and Education Services,Children Looked After,Children's Services and Education,Third Party Payments,Other establishments,09-Oct-23,6741386,"4,359.00",CHARITY OR VOLUNTARY,FRIENDS THERAPEUTIC COMMUNITY TRUST,300000333489551
Portsmouth City Council,PCC,Children's and Education Services,Children Looked After,Children's Services and Education,Third Party Payments,Other establishments,09-Oct-23,6741386,"5,085.50",CHARITY OR VOLUNTARY,FRIENDS THERAPEUTIC COMMUNITY TRUST,300000333489551
Portsmouth City Council,PCC,Children's and Education Services,Children Looked After,Children's Services and Education,Third Party Payments,Other establishments,09-Oct-23,6741386,"5,085.50",CHARITY OR VOLUNTARY,FRIENDS THERAPEUTIC COMMUNITY TRUST,300000333489551
Portsmouth City Council,PCC,Children's and Education Services,Children Looked After,Children's Services and Education,Third Party Payments,Other establishments,09-Oct-23,6741386,"5,085.50",CHARITY OR VOLUNTARY,FRIENDS THERAPEUTIC COMMUNITY TRUST,300000333489551
Portsmouth City Council,PCC,Children's and Education Services,Children Looked After,Children's Services and Education,Third Party Payments,Other establishments,09-Oct-23,6741386,106,CHARITY OR VOLUNTARY,FRIENDS THERAPEUTIC COMMUNITY TRUST,300000333489551
Portsmouth City Council,PCC,Children's and Education Services,Children Looked After,Children's Services and Education,Third Party Payments,Other establishments,09-Oct-23,6741386,115.5,CHARITY OR VOLUNTARY,FRIENDS THERAPEUTIC COMMUNITY TRUST,300000333489551
Portsmouth City Council,PCC,Children's and Education Services,Children Looked After,Children's Services and Education,Third Party Payments,Other establishments,09-Oct-23,6741386,212,CHARITY OR VOLUNTARY,FRIENDS THERAPEUTIC COMMUNITY TRUST,300000333489551
Portsmouth City Council,PCC,Children's and Education Services,Children Looked After,Children's Services and Education,Third Party Payments,Other establishments,09-Oct-23,6741386,231,CHARITY OR VOLUNTARY,FRIENDS THERAPEUTIC COMMUNITY TRUST,300000333489551
Portsmouth City Council,PCC,Children's and Education Services,Children Looked After,Children's Services and Education,Third Party Payments,Other establishments,09-Oct-23,6741386,726.5,CHARITY OR VOLUNTARY,FRIENDS THERAPEUTIC COMMUNITY TRUST,300000333489551
Portsmouth City Council,PCC,Children's and Education Services,Children Looked After,Children's Services and Education,Third Party Payments,Other establishments,09-Oct-23,6741386,742,CHARITY OR VOLUNTARY,FRIENDS THERAPEUTIC COMMUNITY TRUST,300000333489551
Portsmouth City Council,PCC,Children's and Education Services,Children Looked After,Children's Services and Education,Third Party Payments,Other establishments,09-Oct-23,6741386,742,CHARITY OR VOLUNTARY,FRIENDS THERAPEUTIC COMMUNITY TRUST,300000333489551
Portsmouth City Council,PCC,Children's and Education Services,Children Looked After,Children's Services and Education,Third Party Payments,Other establishments,09-Oct-23,6741386,742,CHARITY OR VOLUNTARY,FRIENDS THERAPEUTIC COMMUNITY TRUST,300000333489551
Portsmouth City Council,PCC,Children's and Education Services,Children Looked After,Children's Services and Education,Third Party Payments,Other establishments,09-Oct-23,6741386,742,CHARITY OR VOLUNTARY,FRIENDS THERAPEUTIC COMMUNITY TRUST,300000333489551
Portsmouth City Council,PCC,Children's and Education Services,Children Looked After,Children's Services and Education,Third Party Payments,Other establishments,09-Oct-23,6741386,808.5,CHARITY OR VOLUNTARY,FRIENDS THERAPEUTIC COMMUNITY TRUST,300000333489551
Portsmouth City Council,PCC,Children's and Education Services,Children Looked After,Children's Services and Education,Third Party Payments,Other establishments,09-Oct-23,6741386,808.5,CHARITY OR VOLUNTARY,FRIENDS THERAPEUTIC COMMUNITY TRUST,300000333489551
Portsmouth City Council,PCC,Children's and Education Services,Children Looked After,Children's Services and Education,Third Party Payments,Other establishments,09-Oct-23,6741386,808.5,CHARITY OR VOLUNTARY,FRIENDS THERAPEUTIC COMMUNITY TRUST,300000333489551
Portsmouth City Council,PCC,Children's and Education Services,Children Looked After,Children's Services and Education,Third Party Payments,Other establishments,09-Oct-23,6741386,808.5,CHARITY OR VOLUNTARY,FRIENDS THERAPEUTIC COMMUNITY TRUST,300000333489551
Portsmouth City Council,PCC,Children's and Education Services,Children Looked After,Children's Services and Education,Third Party Payments,Other establishments,09-Oct-23,6741386,"1,453.00",CHARITY OR VOLUNTARY,FRIENDS THERAPEUTIC COMMUNITY TRUST,300000333489551
Portsmouth City Council,PCC,Children's and Education Services,Children Looked After,Children's Services and Education,Third Party Payments,Other establishments,09-Oct-23,6741386,"5,085.50",CHARITY OR VOLUNTARY,FRIENDS THERAPEUTIC COMMUNITY TRUST,300000333489551
Portsmouth City Council,PCC,Children's and Education Services,Children Looked After,Children's Services and Education,Third Party Payments,Other establishments,09-Oct-23,6741386,"5,085.50",CHARITY OR VOLUNTARY,FRIENDS THERAPEUTIC COMMUNITY TRUST,300000333489551
Portsmouth City Council,PCC,Children's and Education Services,Children Looked After,Children's Services and Education,Third Party Payments,Other establishments,09-Oct-23,6741386,"5,085.50",CHARITY OR VOLUNTARY,FRIENDS THERAPEUTIC COMMUNITY TRUST,300000333489551
Portsmouth City Council,PCC,Children's and Education Services,Children Looked After,Children's Services and Education,Third Party Payments,Other establishments,09-Oct-23,6741386,"5,085.50",CHARITY OR VOLUNTARY,FRIENDS THERAPEUTIC COMMUNITY TRUST,300000333489551
Portsmouth City Council,PCC,Children's and Education Services,Children Looked After,Children's Services and Education,Third Party Payments,Other establishments,09-Oct-23,6741386,110.5,CHARITY OR VOLUNTARY,FRIENDS THERAPEUTIC COMMUNITY TRUST,300000333489551
Portsmouth City Council,PCC,Children's and Education Services,Children Looked After,Children's Services and Education,Third Party Payments,Other establishments,09-Oct-23,6741386,120,CHARITY OR VOLUNTARY,FRIENDS THERAPEUTIC COMMUNITY TRUST,300000333489551
Portsmouth City Council,PCC,Children's and Education Services,Children Looked After,Children's Services and Education,Third Party Payments,Other establishments,09-Oct-23,6741386,221,CHARITY OR VOLUNTARY,FRIENDS THERAPEUTIC COMMUNITY TRUST,300000333489551
Portsmouth City Council,PCC,Children's and Education Services,Children Looked After,Children's Services and Education,Third Party Payments,Other establishments,09-Oct-23,6741386,240,CHARITY OR VOLUNTARY,FRIENDS THERAPEUTIC COMMUNITY TRUST,300000333489551
Portsmouth City Council,PCC,Children's and Education Services,Children Looked After,Children's Services and Education,Third Party Payments,Other establishments,09-Oct-23,6741386,755.5,CHARITY OR VOLUNTARY,FRIENDS THERAPEUTIC COMMUNITY TRUST,300000333489551
Portsmouth City Council,PCC,Children's and Education Services,Children Looked After,Children's Services and Education,Third Party Payments,Other establishments,09-Oct-23,6741386,773.5,CHARITY OR VOLUNTARY,FRIENDS THERAPEUTIC COMMUNITY TRUST,300000333489551
Portsmouth City Council,PCC,Children's and Education Services,Children Looked After,Children's Services and Education,Third Party Payments,Other establishments,09-Oct-23,6741386,773.5,CHARITY OR VOLUNTARY,FRIENDS THERAPEUTIC COMMUNITY TRUST,300000333489551
Portsmouth City Council,PCC,Children's and Education Services,Children Looked After,Children's Services and Education,Third Party Payments,Other establishments,09-Oct-23,6741386,773.5,CHARITY OR VOLUNTARY,FRIENDS THERAPEUTIC COMMUNITY TRUST,300000333489551
Portsmouth City Council,PCC,Children's and Education Services,Children Looked After,Children's Services and Education,Third Party Payments,Other establishments,09-Oct-23,6741386,773.5,CHARITY OR VOLUNTARY,FRIENDS THERAPEUTIC COMMUNITY TRUST,300000333489551
Portsmouth City Council,PCC,Children's and Education Services,Children Looked After,Children's Services and Education,Third Party Payments,Other establishments,09-Oct-23,6741386,840,CHARITY OR VOLUNTARY,FRIENDS THERAPEUTIC COMMUNITY TRUST,300000333489551
Portsmouth City Council,PCC,Children's and Education Services,Children Looked After,Children's Services and Education,Third Party Payments,Other establishments,09-Oct-23,6741386,840,CHARITY OR VOLUNTARY,FRIENDS THERAPEUTIC COMMUNITY TRUST,300000333489551
Portsmouth City Council,PCC,Children's and Education Services,Children Looked After,Children's Services and Education,Third Party Payments,Other establishments,09-Oct-23,6741386,840,CHARITY OR VOLUNTARY,FRIENDS THERAPEUTIC COMMUNITY TRUST,300000333489551
Portsmouth City Council,PCC,Children's and Education Services,Children Looked After,Children's Services and Education,Third Party Payments,Other establishments,09-Oct-23,6741386,840,CHARITY OR VOLUNTARY,FRIENDS THERAPEUTIC COMMUNITY TRUST,300000333489551
Portsmouth City Council,PCC,Children's and Education Services,Children Looked After,Children's Services and Education,Third Party Payments,Other establishments,09-Oct-23,6741386,"1,511.00",CHARITY OR VOLUNTARY,FRIENDS THERAPEUTIC COMMUNITY TRUST,300000333489551
Portsmouth City Council,PCC,Children's and Education Services,Children Looked After,Children's Services and Education,Third Party Payments,Other establishments,09-Oct-23,6741386,"5,288.50",CHARITY OR VOLUNTARY,FRIENDS THERAPEUTIC COMMUNITY TRUST,300000333489551
Portsmouth City Council,PCC,Children's and Education Services,Children Looked After,Children's Services and Education,Third Party Payments,Other establishments,09-Oct-23,6741386,"5,288.50",CHARITY OR VOLUNTARY,FRIENDS THERAPEUTIC COMMUNITY TRUST,300000333489551
Portsmouth City Council,PCC,Children's and Education Services,Children Looked After,Children's Services and Education,Third Party Payments,Other establishments,09-Oct-23,6741386,"5,288.50",CHARITY OR VOLUNTARY,FRIENDS THERAPEUTIC COMMUNITY TRUST,300000333489551
Portsmouth City Council,PCC,Children's and Education Services,Children Looked After,Children's Services and Education,Third Party Payments,Other establishments,09-Oct-23,6741386,"5,288.50",CHARITY OR VOLUNTARY,FRIENDS THERAPEUTIC COMMUNITY TRUST,300000333489551
Portsmouth City Council,PCC,Children's and Education Services,Children Looked After,Children's Services and Education,Third Party Payments,Other establishments,09-Oct-23,6741386,552.5,CHARITY OR VOLUNTARY,FRIENDS THERAPEUTIC COMMUNITY TRUST,300000333489551
Portsmouth City Council,PCC,Children's and Education Services,Children Looked After,Children's Services and Education,Third Party Payments,Other establishments,09-Oct-23,6741386,552.5,CHARITY OR VOLUNTARY,FRIENDS THERAPEUTIC COMMUNITY TRUST,300000333489551
Portsmouth City Council,PCC,Children's and Education Services,Children Looked After,Children's Services and Education,Third Party Payments,Other establishments,09-Oct-23,6741386,600,CHARITY OR VOLUNTARY,FRIENDS THERAPEUTIC COMMUNITY TRUST,300000333489551
Portsmouth City Council,PCC,Children's and Education Services,Children Looked After,Children's Services and Education,Third Party Payments,Other establishments,09-Oct-23,6741386,600,CHARITY OR VOLUNTARY,FRIENDS THERAPEUTIC COMMUNITY TRUST,300000333489551
Portsmouth City Council,PCC,Children's and Education Services,Children Looked After,Children's Services and Education,Third Party Payments,Other establishments,09-Oct-23,6741386,773.5,CHARITY OR VOLUNTARY,FRIENDS THERAPEUTIC COMMUNITY TRUST,300000333489551
Portsmouth City Council,PCC,Children's and Education Services,Children Looked After,Children's Services and Education,Third Party Payments,Other establishments,09-Oct-23,6741386,840,CHARITY OR VOLUNTARY,FRIENDS THERAPEUTIC COMMUNITY TRUST,300000333489551
Portsmouth City Council,PCC,Children's and Education Services,Children Looked After,Children's Services and Education,Third Party Payments,Other establishments,09-Oct-23,6741386,"3,777.50",CHARITY OR VOLUNTARY,FRIENDS THERAPEUTIC COMMUNITY TRUST,300000333489551
Portsmouth City Council,PCC,Children's and Education Services,Children Looked After,Children's Services and Education,Third Party Payments,Other establishments,09-Oct-23,6741386,"3,777.50",CHARITY OR VOLUNTARY,FRIENDS THERAPEUTIC COMMUNITY TRUST,300000333489551
Portsmouth City Council,PCC,Children's and Education Services,Children Looked After,Children's Services and Education,Third Party Payments,Other establishments,09-Oct-23,6741386,"5,288.50",CHARITY OR VOLUNTARY,FRIENDS THERAPEUTIC COMMUNITY TRUST,300000333489551
Portsmouth City Council,PCC,Children's and Education Services,Children Looked After,Children's Services and Education,Third Party Payments,Other establishments,09-Oct-23,6741386,530,CHARITY OR VOLUNTARY,FRIENDS THERAPEUTIC COMMUNITY TRUST,300000333489551
Portsmouth City Council,PCC,Children's and Education Services,Children Looked After,Children's Services and Education,Third Party Payments,Other establishments,09-Oct-23,6741386,530,CHARITY OR VOLUNTARY,FRIENDS THERAPEUTIC COMMUNITY TRUST,300000333489551
Portsmouth City Council,PCC,Children's and Education Services,Children Looked After,Children's Services and Education,Third Party Payments,Other establishments,09-Oct-23,6741386,577.5,CHARITY OR VOLUNTARY,FRIENDS THERAPEUTIC COMMUNITY TRUST,300000333489551
Portsmouth City Council,PCC,Children's and Education Services,Children Looked After,Children's Services and Education,Third Party Payments,Other establishments,09-Oct-23,6741386,577.5,CHARITY OR VOLUNTARY,FRIENDS THERAPEUTIC COMMUNITY TRUST,300000333489551
Portsmouth City Council,PCC,Children's and Education Services,Children Looked After,Children's Services and Education,Third Party Payments,Other establishments,09-Oct-23,6741386,742,CHARITY OR VOLUNTARY,FRIENDS THERAPEUTIC COMMUNITY TRUST,300000333489551
Portsmouth City Council,PCC,Children's and Education Services,Children Looked After,Children's Services and Education,Third Party Payments,Other establishments,09-Oct-23,6741386,742,CHARITY OR VOLUNTARY,FRIENDS THERAPEUTIC COMMUNITY TRUST,300000333489551
Portsmouth City Council,PCC,Children's and Education Services,Children Looked After,Children's Services and Education,Third Party Payments,Other establishments,09-Oct-23,6741386,742,CHARITY OR VOLUNTARY,FRIENDS THERAPEUTIC COMMUNITY TRUST,300000333489551
Portsmouth City Council,PCC,Children's and Education Services,Children Looked After,Children's Services and Education,Third Party Payments,Other establishments,09-Oct-23,6741386,808.5,CHARITY OR VOLUNTARY,FRIENDS THERAPEUTIC COMMUNITY TRUST,300000333489551
Portsmouth City Council,PCC,Children's and Education Services,Children Looked After,Children's Services and Education,Third Party Payments,Other establishments,09-Oct-23,6741386,808.5,CHARITY OR VOLUNTARY,FRIENDS THERAPEUTIC COMMUNITY TRUST,300000333489551
Portsmouth City Council,PCC,Children's and Education Services,Children Looked After,Children's Services and Education,Third Party Payments,Other establishments,09-Oct-23,6741386,808.5,CHARITY OR VOLUNTARY,FRIENDS THERAPEUTIC COMMUNITY TRUST,300000333489551
Portsmouth City Council,PCC,Children's and Education Services,Children Looked After,Children's Services and Education,Third Party Payments,Other establishments,09-Oct-23,6741386,"3,632.50",CHARITY OR VOLUNTARY,FRIENDS THERAPEUTIC COMMUNITY TRUST,300000333489551
Portsmouth City Council,PCC,Children's and Education Services,Children Looked After,Children's Services and Education,Third Party Payments,Other establishments,09-Oct-23,6741386,"3,632.50",CHARITY OR VOLUNTARY,FRIENDS THERAPEUTIC COMMUNITY TRUST,300000333489551
Portsmouth City Council,PCC,Children's and Education Services,Children Looked After,Children's Services and Education,Third Party Payments,Other establishments,09-Oct-23,6741386,"5,085.50",CHARITY OR VOLUNTARY,FRIENDS THERAPEUTIC COMMUNITY TRUST,300000333489551
Portsmouth City Council,PCC,Children's and Education Services,Children Looked After,Children's Services and Education,Third Party Payments,Other establishments,09-Oct-23,6741386,"5,085.50",CHARITY OR VOLUNTARY,FRIENDS THERAPEUTIC COMMUNITY TRUST,300000333489551
Portsmouth City Council,PCC,Children's and Education Services,Children Looked After,Children's Services and Education,Third Party Payments,Other establishments,09-Oct-23,6741386,"5,085.50",CHARITY OR VOLUNTARY,FRIENDS THERAPEUTIC COMMUNITY TRUST,300000333489551
Portsmouth City Council,PCC,Children's and Education Services,Children Looked After,Children's Services and Education,Third Party Payments,Other establishments,09-Oct-23,6741386,212,CHARITY OR VOLUNTARY,FRIENDS THERAPEUTIC COMMUNITY TRUST,300000333489551
Portsmouth City Council,PCC,Children's and Education Services,Children Looked After,Children's Services and Education,Third Party Payments,Other establishments,09-Oct-23,6741386,231,CHARITY OR VOLUNTARY,FRIENDS THERAPEUTIC COMMUNITY TRUST,300000333489551
Portsmouth City Council,PCC,Children's and Education Services,Children Looked After,Children's Services and Education,Third Party Payments,Other establishments,09-Oct-23,6741386,742,CHARITY OR VOLUNTARY,FRIENDS THERAPEUTIC COMMUNITY TRUST,300000333489551
Portsmouth City Council,PCC,Children's and Education Services,Children Looked After,Children's Services and Education,Third Party Payments,Other establishments,09-Oct-23,6741386,742,CHARITY OR VOLUNTARY,FRIENDS THERAPEUTIC COMMUNITY TRUST,300000333489551
Portsmouth City Council,PCC,Children's and Education Services,Children Looked After,Children's Services and Education,Third Party Payments,Other establishments,09-Oct-23,6741386,742,CHARITY OR VOLUNTARY,FRIENDS THERAPEUTIC COMMUNITY TRUST,300000333489551
Portsmouth City Council,PCC,Children's and Education Services,Children Looked After,Children's Services and Education,Third Party Payments,Other establishments,09-Oct-23,6741386,742,CHARITY OR VOLUNTARY,FRIENDS THERAPEUTIC COMMUNITY TRUST,300000333489551
Portsmouth City Council,PCC,Children's and Education Services,Children Looked After,Children's Services and Education,Third Party Payments,Other establishments,09-Oct-23,6741386,808.5,CHARITY OR VOLUNTARY,FRIENDS THERAPEUTIC COMMUNITY TRUST,300000333489551
Portsmouth City Council,PCC,Children's and Education Services,Children Looked After,Children's Services and Education,Third Party Payments,Other establishments,09-Oct-23,6741386,808.5,CHARITY OR VOLUNTARY,FRIENDS THERAPEUTIC COMMUNITY TRUST,300000333489551
Portsmouth City Council,PCC,Children's and Education Services,Children Looked After,Children's Services and Education,Third Party Payments,Other establishments,09-Oct-23,6741386,808.5,CHARITY OR VOLUNTARY,FRIENDS THERAPEUTIC COMMUNITY TRUST,300000333489551
Portsmouth City Council,PCC,Children's and Education Services,Children Looked After,Children's Services and Education,Third Party Payments,Other establishments,09-Oct-23,6741386,808.5,CHARITY OR VOLUNTARY,FRIENDS THERAPEUTIC COMMUNITY TRUST,300000333489551
Portsmouth City Council,PCC,Children's and Education Services,Children Looked After,Children's Services and Education,Third Party Payments,Other establishments,09-Oct-23,6741386,"1,453.00",CHARITY OR VOLUNTARY,FRIENDS THERAPEUTIC COMMUNITY TRUST,300000333489551
Portsmouth City Council,PCC,Children's and Education Services,Children Looked After,Children's Services and Education,Third Party Payments,Other establishments,09-Oct-23,6741386,"5,085.50",CHARITY OR VOLUNTARY,FRIENDS THERAPEUTIC COMMUNITY TRUST,300000333489551
Portsmouth City Council,PCC,Children's and Education Services,Children Looked After,Children's Services and Education,Third Party Payments,Other establishments,09-Oct-23,6741386,"5,085.50",CHARITY OR VOLUNTARY,FRIENDS THERAPEUTIC COMMUNITY TRUST,300000333489551
Portsmouth City Council,PCC,Children's and Education Services,Children Looked After,Children's Services and Education,Third Party Payments,Other establishments,09-Oct-23,6741386,"5,085.50",CHARITY OR VOLUNTARY,FRIENDS THERAPEUTIC COMMUNITY TRUST,300000333489551
Portsmouth City Council,PCC,Children's and Education Services,Children Looked After,Children's Services and Education,Third Party Payments,Other establishments,09-Oct-23,6741386,"5,085.50",CHARITY OR VOLUNTARY,FRIENDS THERAPEUTIC COMMUNITY TRUST,300000333489551
Portsmouth City Council,PCC,Housing Services,Housing Strategy,"Housing, Neighbourhood and Building Services",Income,Customer and client receipts,11-Oct-23,6741885,-661.5,LIMITED COMPANY,LIFTECH SYSTEMS (SE) LIMITED,300000020461913
Portsmouth City Council,PCC,Adult Social Care,Assistive Equipment & Technology,"Housing, Neighbourhood and Building Services",Supplies and Services,Services,11-Oct-23,6741885,793.8,LIMITED COMPANY,LIFTECH SYSTEMS (SE) LIMITED,300000020461913
Portsmouth City Council,PCC,Housing Services,Private Sector Housing Renewal,"Housing, Neighbourhood and Building Services",Supplies and Services,Grants and subscriptions,11-Oct-23,6741885,854.09,LIMITED COMPANY,LIFTECH SYSTEMS (SE) LIMITED,300000020461913
Portsmouth City Council,PCC,Adult Social Care,Assistive Equipment & Technology,"Housing, Neighbourhood and Building Services",Supplies and Services,Services,11-Oct-23,6741885,"3,555.91",LIMITED COMPANY,LIFTECH SYSTEMS (SE) LIMITED,300000020461913
Portsmouth City Council,PCC,Housing Services,Private Sector Housing Renewal,"Housing, Neighbourhood and Building Services",Income,Other grants reimbursements and contributions,04-Oct-23,6740894,"-1,874.40",LIMITED COMPANY,LIFTECH SYSTEMS (SE) LIMITED,300000020461913
Portsmouth City Council,PCC,Other,Suspense and Capital Schemes,Capital - Housing and Tackling Homelessness,Capital Charges,REFCUS,04-Oct-23,6740894,"2,249.28",LIMITED COMPANY,LIFTECH SYSTEMS (SE) LIMITED,300000020461913
Portsmouth City Council,PCC,Other,Suspense and Capital Schemes,Capital - Housing and Tackling Homelessness,Capital Charges,REFCUS,04-Oct-23,6740894,"4,540.00",LIMITED COMPANY,LIFTECH SYSTEMS (SE) LIMITED,300000020461913
Portsmouth City Council,PCC,Costs below Net Cost of Services,Trading,Regeneration,Premises-Related Expenditure,Water Services,13-Oct-23,6742576,"9,474.69",LIMITED COMPANY,WAVE LTD,300000457049455
Portsmouth City Council,PCC,Cultural and Related Services,Open Spaces,"Culture, Leisure & Regulatory Services",Premises-Related Expenditure,Water Services,13-Oct-23,6742576,564.15,LIMITED COMPANY,WAVE LTD,300000457049455
Portsmouth City Council,PCC,Cultural and Related Services,Open Spaces,"Culture, Leisure & Regulatory Services",Premises-Related Expenditure,Water Services,13-Oct-23,6742576,"2,443.80",LIMITED COMPANY,WAVE LTD,300000457049455
Portsmouth City Council,PCC,Highways and Transport Services,"Airports, Harbours and Toll Facilities",Portsmouth International Port,Premises-Related Expenditure,Water Services,13-Oct-23,6742576,"6,077.62",LIMITED COMPANY,WAVE LTD,300000457049455
Portsmouth City Council,PCC,Housing Revenue Account,Special Services,"Housing, Neighbourhood and Building Services",Premises-Related Expenditure,Water Services,13-Oct-23,6742576,977.15,LIMITED COMPANY,WAVE LTD,300000457049455
Portsmouth City Council,PCC,Cultural and Related Services,Culture and Heritage,"Culture, Leisure & Regulatory Services",Premises-Related Expenditure,Water Services,13-Oct-23,6742576,184.31,LIMITED COMPANY,WAVE LTD,300000457049455
Portsmouth City Council,PCC,Support Service / Transparency Costs Unallocated,AMS,Corporate Services,Premises-Related Expenditure,Water Services,13-Oct-23,6742576,"3,157.01",LIMITED COMPANY,WAVE LTD,300000457049455
Portsmouth City Council,PCC,Cultural and Related Services,Open Spaces,"Culture, Leisure & Regulatory Services",Premises-Related Expenditure,Water Services,13-Oct-23,6742576,71.72,LIMITED COMPANY,WAVE LTD,300000457049455
Portsmouth City Council,PCC,Adult Social Care,Social Care Activities,Adult Care,Third Party Payments,Other establishments,06-Oct-23,6741286,"3,000.00",PRIVATE PROVIDER,Classified as 'personal data' (under the Data Protection Act 2018),300000020480170
Portsmouth City Council,PCC,Environmental and Regulatory Services,"Cemetery, Cremation and Mortuary Services","Culture, Leisure & Regulatory Services",Premises-Related Expenditure,Water Services,13-Oct-23,6742576,73.9,LIMITED COMPANY,WAVE LTD,300000457049455
Portsmouth City Council,PCC,Children's and Education Services,Primary Schools,Children's Services and Education,Premises-Related Expenditure,Water Services,13-Oct-23,6742576,33.66,LIMITED COMPANY,WAVE LTD,300000457049455
Portsmouth City Council,PCC,Housing Revenue Account,"Rents, Rates, Taxes and Other Charges","Housing, Neighbourhood and Building Services",Premises-Related Expenditure,Water Services,13-Oct-23,6742576,4.05,LIMITED COMPANY,WAVE LTD,300000457049455
Portsmouth City Council,PCC,Housing Revenue Account,"Rents, Rates, Taxes and Other Charges","Housing, Neighbourhood and Building Services",Premises-Related Expenditure,Water Services,13-Oct-23,6742576,46.92,LIMITED COMPANY,WAVE LTD,300000457049455
Portsmouth City Council,PCC,Cultural and Related Services,Open Spaces,"Culture, Leisure & Regulatory Services",Premises-Related Expenditure,Water Services,13-Oct-23,6742576,28.92,LIMITED COMPANY,WAVE LTD,300000457049455
Portsmouth City Council,PCC,Housing Revenue Account,Special Services,"Housing, Neighbourhood and Building Services",Premises-Related Expenditure,Water Services,13-Oct-23,6742576,61.48,LIMITED COMPANY,WAVE LTD,300000457049455
Portsmouth City Council,PCC,Housing Revenue Account,Special Services,"Housing, Neighbourhood and Building Services",Premises-Related Expenditure,Water Services,13-Oct-23,6742576,64.3,LIMITED COMPANY,WAVE LTD,300000457049455
Portsmouth City Council,PCC,Housing Revenue Account,Special Services,"Housing, Neighbourhood and Building Services",Premises-Related Expenditure,Water Services,13-Oct-23,6742576,35.77,LIMITED COMPANY,WAVE LTD,300000457049455
Portsmouth City Council,PCC,Housing Revenue Account,Special Services,"Housing, Neighbourhood and Building Services",Premises-Related Expenditure,Water Services,13-Oct-23,6742576,25.07,LIMITED COMPANY,WAVE LTD,300000457049455
Portsmouth City Council,PCC,Cultural and Related Services,Open Spaces,"Culture, Leisure & Regulatory Services",Premises-Related Expenditure,Water Services,13-Oct-23,6742576,8.38,LIMITED COMPANY,WAVE LTD,300000457049455
Portsmouth City Council,PCC,Environmental and Regulatory Services,Regulatory Services,"Housing, Neighbourhood and Building Services",Premises-Related Expenditure,Water Services,13-Oct-23,6742576,850.34,LIMITED COMPANY,WAVE LTD,300000457049455
Portsmouth City Council,PCC,Housing Revenue Account,"Rents, Rates, Taxes and Other Charges","Housing, Neighbourhood and Building Services",Premises-Related Expenditure,Water Services,13-Oct-23,6742576,99.31,LIMITED COMPANY,WAVE LTD,300000457049455
Portsmouth City Council,PCC,Housing Revenue Account,Special Services,"Housing, Neighbourhood and Building Services",Premises-Related Expenditure,Water Services,13-Oct-23,6742576,53.65,LIMITED COMPANY,WAVE LTD,300000457049455
Portsmouth City Council,PCC,Housing Revenue Account,"Rents, Rates, Taxes and Other Charges","Housing, Neighbourhood and Building Services",Premises-Related Expenditure,Water Services,13-Oct-23,6742576,33.49,LIMITED COMPANY,WAVE LTD,300000457049455
Portsmouth City Council,PCC,Highways and Transport Services,"Transport Planning, Policy and Strategy",Regeneration,Premises-Related Expenditure,Water Services,13-Oct-23,6742576,3.03,LIMITED COMPANY,WAVE LTD,300000457049455
Portsmouth City Council,PCC,Adult Social Care,Commissioning & service delivery,Adult Care,Supplies and Services,Services,31-Oct-23,6745522,100,SUPPLIER,AA GLOBAL LANGUAGE SERVICES LTD,300000020483226
Portsmouth City Council,PCC,Cultural and Related Services,Culture and Heritage,"Culture, Leisure & Regulatory Services",Premises-Related Expenditure,Water Services,13-Oct-23,6742576,488.92,LIMITED COMPANY,WAVE LTD,300000457049455
Portsmouth City Council,PCC,Costs below Net Cost of Services,Trading,"Housing, Neighbourhood and Building Services",Premises-Related Expenditure,Water Services,13-Oct-23,6742576,"2,112.64",LIMITED COMPANY,WAVE LTD,300000457049455
Portsmouth City Council,PCC,Housing Revenue Account,Special Services,"Housing, Neighbourhood and Building Services",Premises-Related Expenditure,Water Services,13-Oct-23,6742576,85.74,LIMITED COMPANY,WAVE LTD,300000457049455
Portsmouth City Council,PCC,Cultural and Related Services,Open Spaces,"Culture, Leisure & Regulatory Services",Premises-Related Expenditure,Water Services,13-Oct-23,6742576,280.75,LIMITED COMPANY,WAVE LTD,300000457049455
Portsmouth City Council,PCC,Cultural and Related Services,Open Spaces,"Culture, Leisure & Regulatory Services",Premises-Related Expenditure,Water Services,13-Oct-23,6742576,289.3,LIMITED COMPANY,WAVE LTD,300000457049455
Portsmouth City Council,PCC,Other,Suspense and Capital Schemes,"Housing, Neighbourhood and Building Services",Premises-Related Expenditure,Water Services,13-Oct-23,6742576,470.77,LIMITED COMPANY,WAVE LTD,300000457049455
Portsmouth City Council,PCC,Adult Social Care,Learning Disability Support Adults (18 - 64),Adult Care,Third Party Payments,Other establishments,12-Oct-23,6742112,"7,772.63",SUPPLIER,ACHIEVE TOGETHER LIMITED,300000020469986
Portsmouth City Council,PCC,Environmental and Regulatory Services,"Cemetery, Cremation and Mortuary Services","Culture, Leisure & Regulatory Services",Premises-Related Expenditure,Water Services,13-Oct-23,6742576,24.42,LIMITED COMPANY,WAVE LTD,300000457049455
Portsmouth City Council,PCC,Cultural and Related Services,Library Service,"Culture, Leisure & Regulatory Services",Premises-Related Expenditure,Water Services,13-Oct-23,6742576,21.84,LIMITED COMPANY,WAVE LTD,300000457049455
Portsmouth City Council,PCC,Cultural and Related Services,Open Spaces,"Culture, Leisure & Regulatory Services",Premises-Related Expenditure,Water Services,13-Oct-23,6742576,57.22,LIMITED COMPANY,WAVE LTD,300000457049455
Portsmouth City Council,PCC,Children's and Education Services,Primary Schools,Children's Services and Education,Premises-Related Expenditure,Water Services,13-Oct-23,6742576,128.63,LIMITED COMPANY,WAVE LTD,300000457049455
Portsmouth City Council,PCC,Children's and Education Services,Primary Schools,Children's Services and Education,Premises-Related Expenditure,Water Services,13-Oct-23,6742576,446.26,LIMITED COMPANY,WAVE LTD,300000457049455
Portsmouth City Council,PCC,Environmental and Regulatory Services,"Cemetery, Cremation and Mortuary Services","Culture, Leisure & Regulatory Services",Premises-Related Expenditure,Water Services,13-Oct-23,6742576,179.55,LIMITED COMPANY,WAVE LTD,300000457049455
Portsmouth City Council,PCC,Cultural and Related Services,Open Spaces,"Culture, Leisure & Regulatory Services",Premises-Related Expenditure,Water Services,13-Oct-23,6742576,26.4,LIMITED COMPANY,WAVE LTD,300000457049455
Portsmouth City Council,PCC,Cultural and Related Services,Library Service,"Culture, Leisure & Regulatory Services",Premises-Related Expenditure,Water Services,13-Oct-23,6742576,24.47,LIMITED COMPANY,WAVE LTD,300000457049455
Portsmouth City Council,PCC,Cultural and Related Services,Open Spaces,"Culture, Leisure & Regulatory Services",Premises-Related Expenditure,Water Services,13-Oct-23,6742576,9.02,LIMITED COMPANY,WAVE LTD,300000457049455
Portsmouth City Council,PCC,Cultural and Related Services,Open Spaces,"Culture, Leisure & Regulatory Services",Premises-Related Expenditure,Water Services,13-Oct-23,6742576,762.61,LIMITED COMPANY,WAVE LTD,300000457049455
Portsmouth City Council,PCC,Cultural and Related Services,Open Spaces,"Culture, Leisure & Regulatory Services",Premises-Related Expenditure,Water Services,13-Oct-23,6742576,385.03,LIMITED COMPANY,WAVE LTD,300000457049455
Portsmouth City Council,PCC,Housing Revenue Account,Supervision and Management,"Housing, Neighbourhood and Building Services",Premises-Related Expenditure,Water Services,13-Oct-23,6742576,39.79,LIMITED COMPANY,WAVE LTD,300000457049455
Portsmouth City Council,PCC,Housing Revenue Account,Special Services,"Housing, Neighbourhood and Building Services",Premises-Related Expenditure,Water Services,13-Oct-23,6742576,87.65,LIMITED COMPANY,WAVE LTD,300000457049455
Portsmouth City Council,PCC,Housing Revenue Account,Special Services,"Housing, Neighbourhood and Building Services",Premises-Related Expenditure,Water Services,13-Oct-23,6742576,9.7,LIMITED COMPANY,WAVE LTD,300000457049455
Portsmouth City Council,PCC,Planning Services,Business support,Regeneration,Premises-Related Expenditure,Water Services,13-Oct-23,6742576,256.65,LIMITED COMPANY,WAVE LTD,300000457049455
Portsmouth City Council,PCC,Housing Revenue Account,Special Services,"Housing, Neighbourhood and Building Services",Premises-Related Expenditure,Water Services,13-Oct-23,6742576,6.1,LIMITED COMPANY,WAVE LTD,300000457049455
Portsmouth City Council,PCC,Housing Revenue Account,"Rents, Rates, Taxes and Other Charges","Housing, Neighbourhood and Building Services",Premises-Related Expenditure,Water Services,13-Oct-23,6742576,4.81,LIMITED COMPANY,WAVE LTD,300000457049455
Portsmouth City Council,PCC,Housing Revenue Account,Special Services,"Housing, Neighbourhood and Building Services",Premises-Related Expenditure,Water Services,13-Oct-23,6742576,158.33,LIMITED COMPANY,WAVE LTD,300000457049455
Portsmouth City Council,PCC,Costs below Net Cost of Services,Trading,Regeneration,Premises-Related Expenditure,Water Services,13-Oct-23,6742576,3.03,LIMITED COMPANY,WAVE LTD,300000457049455
Portsmouth City Council,PCC,Costs below Net Cost of Services,Trading,Regeneration,Premises-Related Expenditure,Water Services,13-Oct-23,6742576,6.1,LIMITED COMPANY,WAVE LTD,300000457049455
Portsmouth City Council,PCC,Children's and Education Services,Primary Schools,Children's Services and Education,Premises-Related Expenditure,Water Services,13-Oct-23,6742576,229.7,LIMITED COMPANY,WAVE LTD,300000457049455
Portsmouth City Council,PCC,Housing Revenue Account,Special Services,"Housing, Neighbourhood and Building Services",Premises-Related Expenditure,Water Services,13-Oct-23,6742576,129.05,LIMITED COMPANY,WAVE LTD,300000457049455
Portsmouth City Council,PCC,Cultural and Related Services,Culture and Heritage,"Culture, Leisure & Regulatory Services",Premises-Related Expenditure,Water Services,13-Oct-23,6742576,39.68,LIMITED COMPANY,WAVE LTD,300000457049455
Portsmouth City Council,PCC,Cultural and Related Services,Open Spaces,"Culture, Leisure & Regulatory Services",Premises-Related Expenditure,Water Services,13-Oct-23,6742576,25.98,LIMITED COMPANY,WAVE LTD,300000457049455
Portsmouth City Council,PCC,Housing Revenue Account,"Rents, Rates, Taxes and Other Charges","Housing, Neighbourhood and Building Services",Premises-Related Expenditure,Water Services,13-Oct-23,6742576,9.11,LIMITED COMPANY,WAVE LTD,300000457049455
Portsmouth City Council,PCC,Housing Revenue Account,Special Services,"Housing, Neighbourhood and Building Services",Premises-Related Expenditure,Water Services,13-Oct-23,6742576,9.11,LIMITED COMPANY,WAVE LTD,300000457049455
Portsmouth City Council,PCC,Children's and Education Services,Family Support Services,Children's Services and Education,Premises-Related Expenditure,Water Services,13-Oct-23,6742576,104.54,LIMITED COMPANY,WAVE LTD,300000457049455
Portsmouth City Council,PCC,Housing Revenue Account,"Rents, Rates, Taxes and Other Charges","Housing, Neighbourhood and Building Services",Premises-Related Expenditure,Water Services,13-Oct-23,6742576,3.45,LIMITED COMPANY,WAVE LTD,300000457049455
Portsmouth City Council,PCC,Housing Revenue Account,"Rents, Rates, Taxes and Other Charges","Housing, Neighbourhood and Building Services",Premises-Related Expenditure,Water Services,13-Oct-23,6742576,35.77,LIMITED COMPANY,WAVE LTD,300000457049455
Portsmouth City Council,PCC,Highways and Transport Services,Public Transport,Regeneration,Premises-Related Expenditure,Water Services,13-Oct-23,6742576,161.1,LIMITED COMPANY,WAVE LTD,300000457049455
Portsmouth City Council,PCC,Housing Revenue Account,"Rents, Rates, Taxes and Other Charges","Housing, Neighbourhood and Building Services",Premises-Related Expenditure,Water Services,13-Oct-23,6742576,3.03,LIMITED COMPANY,WAVE LTD,300000457049455
Portsmouth City Council,PCC,Children's and Education Services,Primary Schools,Children's Services and Education,Premises-Related Expenditure,Water Services,13-Oct-23,6742576,492.2,LIMITED COMPANY,WAVE LTD,300000457049455
Portsmouth City Council,PCC,Housing Revenue Account,Special Services,"Housing, Neighbourhood and Building Services",Premises-Related Expenditure,Water Services,13-Oct-23,6742576,213.47,LIMITED COMPANY,WAVE LTD,300000457049455
Portsmouth City Council,PCC,Central Services,"Registration of Births, Deaths and Marriages","Culture, Leisure & Regulatory Services",Premises-Related Expenditure,Water Services,13-Oct-23,6742576,69.27,LIMITED COMPANY,WAVE LTD,300000457049455
Portsmouth City Council,PCC,Cultural and Related Services,Culture and Heritage,"Culture, Leisure & Regulatory Services",Premises-Related Expenditure,Water Services,13-Oct-23,6742576,26.4,LIMITED COMPANY,WAVE LTD,300000457049455
Portsmouth City Council,PCC,Children's and Education Services,Primary Schools,Children's Services and Education,Premises-Related Expenditure,Water Services,13-Oct-23,6742576,381.71,LIMITED COMPANY,WAVE LTD,300000457049455
Portsmouth City Council,PCC,Environmental and Regulatory Services,Regulatory Services,"Housing, Neighbourhood and Building Services",Premises-Related Expenditure,Water Services,13-Oct-23,6742576,421.86,LIMITED COMPANY,WAVE LTD,300000457049455
Portsmouth City Council,PCC,Environmental and Regulatory Services,Regulatory Services,"Housing, Neighbourhood and Building Services",Premises-Related Expenditure,Water Services,13-Oct-23,6742576,505.36,LIMITED COMPANY,WAVE LTD,300000457049455
Portsmouth City Council,PCC,Housing Revenue Account,"Rents, Rates, Taxes and Other Charges","Housing, Neighbourhood and Building Services",Premises-Related Expenditure,Water Services,13-Oct-23,6742576,35.77,LIMITED COMPANY,WAVE LTD,300000457049455
Portsmouth City Council,PCC,Children's and Education Services,Primary Schools,Children's Services and Education,Premises-Related Expenditure,Water Services,13-Oct-23,6742576,317.38,LIMITED COMPANY,WAVE LTD,300000457049455
Portsmouth City Council,PCC,Children's and Education Services,Primary Schools,Children's Services and Education,Premises-Related Expenditure,Water Services,13-Oct-23,6742576,182.84,LIMITED COMPANY,WAVE LTD,300000457049455
Portsmouth City Council,PCC,Environmental and Regulatory Services,Regulatory Services,"Housing, Neighbourhood and Building Services",Premises-Related Expenditure,Water Services,13-Oct-23,6742576,113.3,LIMITED COMPANY,WAVE LTD,300000457049455
Portsmouth City Council,PCC,Environmental and Regulatory Services,Regulatory Services,"Housing, Neighbourhood and Building Services",Premises-Related Expenditure,Water Services,13-Oct-23,6742576,"1,334.30",LIMITED COMPANY,WAVE LTD,300000457049455
Portsmouth City Council,PCC,Cultural and Related Services,Open Spaces,"Culture, Leisure & Regulatory Services",Premises-Related Expenditure,Water Services,13-Oct-23,6742576,222.36,LIMITED COMPANY,WAVE LTD,300000457049455
Portsmouth City Council,PCC,Cultural and Related Services,Open Spaces,"Culture, Leisure & Regulatory Services",Premises-Related Expenditure,Water Services,13-Oct-23,6742576,13.74,LIMITED COMPANY,WAVE LTD,300000457049455
Portsmouth City Council,PCC,Cultural and Related Services,Open Spaces,"Culture, Leisure & Regulatory Services",Premises-Related Expenditure,Water Services,13-Oct-23,6742576,237.53,LIMITED COMPANY,WAVE LTD,300000457049455
Portsmouth City Council,PCC,Cultural and Related Services,Open Spaces,"Culture, Leisure & Regulatory Services",Premises-Related Expenditure,Water Services,13-Oct-23,6742576,"1,147.66",LIMITED COMPANY,WAVE LTD,300000457049455
Portsmouth City Council,PCC,Cultural and Related Services,Open Spaces,"Culture, Leisure & Regulatory Services",Premises-Related Expenditure,Water Services,13-Oct-23,6742576,329.52,LIMITED COMPANY,WAVE LTD,300000457049455
Portsmouth City Council,PCC,Cultural and Related Services,Open Spaces,"Culture, Leisure & Regulatory Services",Premises-Related Expenditure,Water Services,13-Oct-23,6742576,30.92,LIMITED COMPANY,WAVE LTD,300000457049455
Portsmouth City Council,PCC,Cultural and Related Services,Open Spaces,"Culture, Leisure & Regulatory Services",Premises-Related Expenditure,Water Services,13-Oct-23,6742576,28.45,LIMITED COMPANY,WAVE LTD,300000457049455
Portsmouth City Council,PCC,Cultural and Related Services,Culture and Heritage,"Culture, Leisure & Regulatory Services",Premises-Related Expenditure,Water Services,13-Oct-23,6742576,33.66,LIMITED COMPANY,WAVE LTD,300000457049455
Portsmouth City Council,PCC,Children's and Education Services,Primary Schools,Children's Services and Education,Premises-Related Expenditure,Water Services,13-Oct-23,6742576,223.56,LIMITED COMPANY,WAVE LTD,300000457049455
Portsmouth City Council,PCC,Environmental and Regulatory Services,"Cemetery, Cremation and Mortuary Services","Culture, Leisure & Regulatory Services",Premises-Related Expenditure,Water Services,13-Oct-23,6742576,13.68,LIMITED COMPANY,WAVE LTD,300000457049455
Portsmouth City Council,PCC,Housing Revenue Account,Special Services,"Housing, Neighbourhood and Building Services",Premises-Related Expenditure,Water Services,13-Oct-23,6742576,3.03,LIMITED COMPANY,WAVE LTD,300000457049455
Portsmouth City Council,PCC,Housing Revenue Account,Special Services,"Housing, Neighbourhood and Building Services",Premises-Related Expenditure,Water Services,13-Oct-23,6742576,69.7,LIMITED COMPANY,WAVE LTD,300000457049455
Portsmouth City Council,PCC,Children's and Education Services,Family Support Services,Children's Services and Education,Premises-Related Expenditure,Water Services,13-Oct-23,6742576,161.18,LIMITED COMPANY,WAVE LTD,300000457049455
Portsmouth City Council,PCC,Housing Revenue Account,Special Services,"Housing, Neighbourhood and Building Services",Premises-Related Expenditure,Water Services,13-Oct-23,6742576,35.59,LIMITED COMPANY,WAVE LTD,300000457049455
Portsmouth City Council,PCC,Housing Revenue Account,Special Services,"Housing, Neighbourhood and Building Services",Premises-Related Expenditure,Water Services,13-Oct-23,6742576,76.55,LIMITED COMPANY,WAVE LTD,300000457049455
Portsmouth City Council,PCC,Housing Revenue Account,Supervision and Management,"Housing, Neighbourhood and Building Services",Premises-Related Expenditure,Water Services,13-Oct-23,6742576,3.03,LIMITED COMPANY,WAVE LTD,300000457049455
Portsmouth City Council,PCC,Housing Revenue Account,Special Services,"Housing, Neighbourhood and Building Services",Premises-Related Expenditure,Water Services,13-Oct-23,6742576,194.86,LIMITED COMPANY,WAVE LTD,300000457049455
Portsmouth City Council,PCC,Housing Revenue Account,Supervision and Management,"Housing, Neighbourhood and Building Services",Premises-Related Expenditure,Water Services,13-Oct-23,6742576,3.03,LIMITED COMPANY,WAVE LTD,300000457049455
Portsmouth City Council,PCC,Housing Revenue Account,Supervision and Management,"Housing, Neighbourhood and Building Services",Premises-Related Expenditure,Water Services,13-Oct-23,6742576,35.77,LIMITED COMPANY,WAVE LTD,300000457049455
Portsmouth City Council,PCC,Highways and Transport Services,Parking Services,Regeneration,Premises-Related Expenditure,Water Services,13-Oct-23,6742576,143.02,LIMITED COMPANY,WAVE LTD,300000457049455
Portsmouth City Council,PCC,Cultural and Related Services,Library Service,"Culture, Leisure & Regulatory Services",Premises-Related Expenditure,Water Services,13-Oct-23,6742576,752.68,LIMITED COMPANY,WAVE LTD,300000457049455
Portsmouth City Council,PCC,Cultural and Related Services,Open Spaces,"Culture, Leisure & Regulatory Services",Premises-Related Expenditure,Water Services,13-Oct-23,6742576,43.2,LIMITED COMPANY,WAVE LTD,300000457049455
Portsmouth City Council,PCC,Cultural and Related Services,Open Spaces,"Culture, Leisure & Regulatory Services",Premises-Related Expenditure,Water Services,13-Oct-23,6742576,23.36,LIMITED COMPANY,WAVE LTD,300000457049455
Portsmouth City Council,PCC,Environmental and Regulatory Services,Regulatory Services,"Housing, Neighbourhood and Building Services",Premises-Related Expenditure,Water Services,13-Oct-23,6742576,928.72,LIMITED COMPANY,WAVE LTD,300000457049455
Portsmouth City Council,PCC,Cultural and Related Services,Open Spaces,"Culture, Leisure & Regulatory Services",Premises-Related Expenditure,Water Services,13-Oct-23,6742576,178.04,LIMITED COMPANY,WAVE LTD,300000457049455
Portsmouth City Council,PCC,Cultural and Related Services,Open Spaces,"Culture, Leisure & Regulatory Services",Premises-Related Expenditure,Water Services,13-Oct-23,6742576,4.9,LIMITED COMPANY,WAVE LTD,300000457049455
Portsmouth City Council,PCC,Cultural and Related Services,Open Spaces,"Culture, Leisure & Regulatory Services",Premises-Related Expenditure,Water Services,13-Oct-23,6742576,871.35,LIMITED COMPANY,WAVE LTD,300000457049455
Portsmouth City Council,PCC,Costs below Net Cost of Services,Trading,Regeneration,Premises-Related Expenditure,Water Services,13-Oct-23,6742576,86.16,LIMITED COMPANY,WAVE LTD,300000457049455
Portsmouth City Council,PCC,Other,Suspense and Capital Schemes,Regeneration,Premises-Related Expenditure,Water Services,13-Oct-23,6742576,963.66,LIMITED COMPANY,WAVE LTD,300000457049455
Portsmouth City Council,PCC,Children's and Education Services,Primary Schools,Children's Services and Education,Premises-Related Expenditure,Water Services,13-Oct-23,6742576,446.26,LIMITED COMPANY,WAVE LTD,300000457049455
Portsmouth City Council,PCC,Highways and Transport Services,Public Transport,Regeneration,Premises-Related Expenditure,Water Services,13-Oct-23,6742576,117.02,LIMITED COMPANY,WAVE LTD,300000457049455
Portsmouth City Council,PCC,Housing Revenue Account,Special Services,"Housing, Neighbourhood and Building Services",Premises-Related Expenditure,Water Services,13-Oct-23,6742576,51.66,LIMITED COMPANY,WAVE LTD,300000457049455
Portsmouth City Council,PCC,Housing Revenue Account,Special Services,"Housing, Neighbourhood and Building Services",Premises-Related Expenditure,Water Services,13-Oct-23,6742576,51.66,LIMITED COMPANY,WAVE LTD,300000457049455
Portsmouth City Council,PCC,Housing Revenue Account,Special Services,"Housing, Neighbourhood and Building Services",Premises-Related Expenditure,Water Services,13-Oct-23,6742576,49.82,LIMITED COMPANY,WAVE LTD,300000457049455
Portsmouth City Council,PCC,Housing Revenue Account,"Rents, Rates, Taxes and Other Charges","Housing, Neighbourhood and Building Services",Premises-Related Expenditure,Water Services,13-Oct-23,6742576,89.93,LIMITED COMPANY,WAVE LTD,300000457049455
Portsmouth City Council,PCC,Planning Services,Economic Development,Regeneration,Premises-Related Expenditure,Water Services,13-Oct-23,6742576,7.91,LIMITED COMPANY,WAVE LTD,300000457049455
Portsmouth City Council,PCC,Housing Revenue Account,Supervision and Management,"Housing, Neighbourhood and Building Services",Premises-Related Expenditure,Water Services,13-Oct-23,6742576,520.73,LIMITED COMPANY,WAVE LTD,300000457049455
Portsmouth City Council,PCC,Highways and Transport Services,Parking Services,Regeneration,Premises-Related Expenditure,Water Services,13-Oct-23,6742576,62.1,LIMITED COMPANY,WAVE LTD,300000457049455
Portsmouth City Council,PCC,Housing Revenue Account,Special Services,"Housing, Neighbourhood and Building Services",Premises-Related Expenditure,Water Services,13-Oct-23,6742576,116.42,LIMITED COMPANY,WAVE LTD,300000457049455
Portsmouth City Council,PCC,Housing Revenue Account,Special Services,"Housing, Neighbourhood and Building Services",Premises-Related Expenditure,Water Services,13-Oct-23,6742576,6.52,LIMITED COMPANY,WAVE LTD,300000457049455
Portsmouth City Council,PCC,Housing Revenue Account,"Rents, Rates, Taxes and Other Charges","Housing, Neighbourhood and Building Services",Premises-Related Expenditure,Water Services,13-Oct-23,6742576,10.17,LIMITED COMPANY,WAVE LTD,300000457049455
Portsmouth City Council,PCC,Environmental and Regulatory Services,Regulatory Services,"Housing, Neighbourhood and Building Services",Premises-Related Expenditure,Water Services,13-Oct-23,6742576,317.38,LIMITED COMPANY,WAVE LTD,300000457049455
Portsmouth City Council,PCC,Cultural and Related Services,Library Service,"Culture, Leisure & Regulatory Services",Premises-Related Expenditure,Water Services,13-Oct-23,6742576,153.55,LIMITED COMPANY,WAVE LTD,300000457049455
Portsmouth City Council,PCC,Housing Revenue Account,"Rents, Rates, Taxes and Other Charges","Housing, Neighbourhood and Building Services",Premises-Related Expenditure,Water Services,13-Oct-23,6742576,35.77,LIMITED COMPANY,WAVE LTD,300000457049455
Portsmouth City Council,PCC,Housing Revenue Account,"Rents, Rates, Taxes and Other Charges","Housing, Neighbourhood and Building Services",Premises-Related Expenditure,Water Services,13-Oct-23,6742576,35.77,LIMITED COMPANY,WAVE LTD,300000457049455
Portsmouth City Council,PCC,Housing Revenue Account,Special Services,"Housing, Neighbourhood and Building Services",Premises-Related Expenditure,Water Services,13-Oct-23,6742576,15.29,LIMITED COMPANY,WAVE LTD,300000457049455
Portsmouth City Council,PCC,Costs below Net Cost of Services,Trading,Regeneration,Premises-Related Expenditure,Water Services,13-Oct-23,6742576,24.47,LIMITED COMPANY,WAVE LTD,300000457049455
Portsmouth City Council,PCC,Housing Revenue Account,Special Services,"Housing, Neighbourhood and Building Services",Premises-Related Expenditure,Water Services,13-Oct-23,6742576,10.03,LIMITED COMPANY,WAVE LTD,300000457049455
Portsmouth City Council,PCC,Highways and Transport Services,Parking Services,Regeneration,Premises-Related Expenditure,Water Services,13-Oct-23,6742576,4.97,LIMITED COMPANY,WAVE LTD,300000457049455
Portsmouth City Council,PCC,Housing Revenue Account,Special Services,"Housing, Neighbourhood and Building Services",Premises-Related Expenditure,Water Services,13-Oct-23,6742576,14.48,LIMITED COMPANY,WAVE LTD,300000457049455
Portsmouth City Council,PCC,Housing Revenue Account,Special Services,"Housing, Neighbourhood and Building Services",Premises-Related Expenditure,Water Services,13-Oct-23,6742576,91.61,LIMITED COMPANY,WAVE LTD,300000457049455
Portsmouth City Council,PCC,Housing Revenue Account,Special Services,"Housing, Neighbourhood and Building Services",Premises-Related Expenditure,Water Services,13-Oct-23,6742576,63.41,LIMITED COMPANY,WAVE LTD,300000457049455
Portsmouth City Council,PCC,Housing Revenue Account,Non-dwelling Rents (Gross),"Housing, Neighbourhood and Building Services",Premises-Related Expenditure,Water Services,13-Oct-23,6742576,10.03,LIMITED COMPANY,WAVE LTD,300000457049455
Portsmouth City Council,PCC,Housing Revenue Account,Special Services,"Housing, Neighbourhood and Building Services",Premises-Related Expenditure,Water Services,13-Oct-23,6742576,30.34,LIMITED COMPANY,WAVE LTD,300000457049455
Portsmouth City Council,PCC,Housing Revenue Account,Special Services,"Housing, Neighbourhood and Building Services",Premises-Related Expenditure,Water Services,13-Oct-23,6742576,10.03,LIMITED COMPANY,WAVE LTD,300000457049455
Portsmouth City Council,PCC,Housing Revenue Account,Special Services,"Housing, Neighbourhood and Building Services",Premises-Related Expenditure,Water Services,13-Oct-23,6742576,37.59,LIMITED COMPANY,WAVE LTD,300000457049455
Portsmouth City Council,PCC,Housing Revenue Account,Special Services,"Housing, Neighbourhood and Building Services",Premises-Related Expenditure,Water Services,13-Oct-23,6742576,17.54,LIMITED COMPANY,WAVE LTD,300000457049455
Portsmouth City Council,PCC,Housing Revenue Account,Special Services,"Housing, Neighbourhood and Building Services",Premises-Related Expenditure,Water Services,13-Oct-23,6742576,98.97,LIMITED COMPANY,WAVE LTD,300000457049455
Portsmouth City Council,PCC,Housing Revenue Account,Special Services,"Housing, Neighbourhood and Building Services",Premises-Related Expenditure,Water Services,13-Oct-23,6742576,16.3,LIMITED COMPANY,WAVE LTD,300000457049455
Portsmouth City Council,PCC,Housing Revenue Account,Special Services,"Housing, Neighbourhood and Building Services",Premises-Related Expenditure,Water Services,13-Oct-23,6742576,10.03,LIMITED COMPANY,WAVE LTD,300000457049455
Portsmouth City Council,PCC,Housing Revenue Account,Special Services,"Housing, Neighbourhood and Building Services",Premises-Related Expenditure,Water Services,13-Oct-23,6742576,11.08,LIMITED COMPANY,WAVE LTD,300000457049455
Portsmouth City Council,PCC,Housing Revenue Account,Special Services,"Housing, Neighbourhood and Building Services",Premises-Related Expenditure,Water Services,13-Oct-23,6742576,50.27,LIMITED COMPANY,WAVE LTD,300000457049455
Portsmouth City Council,PCC,Housing Revenue Account,Special Services,"Housing, Neighbourhood and Building Services",Premises-Related Expenditure,Water Services,13-Oct-23,6742576,10.86,LIMITED COMPANY,WAVE LTD,300000457049455
Portsmouth City Council,PCC,Housing Revenue Account,Special Services,"Housing, Neighbourhood and Building Services",Premises-Related Expenditure,Water Services,13-Oct-23,6742576,10.03,LIMITED COMPANY,WAVE LTD,300000457049455
Portsmouth City Council,PCC,Highways and Transport Services,Public Transport,Regeneration,Premises-Related Expenditure,Water Services,13-Oct-23,6742576,190.48,LIMITED COMPANY,WAVE LTD,300000457049455
Portsmouth City Council,PCC,Housing Revenue Account,Special Services,"Housing, Neighbourhood and Building Services",Premises-Related Expenditure,Water Services,13-Oct-23,6742576,37.59,LIMITED COMPANY,WAVE LTD,300000457049455
Portsmouth City Council,PCC,Housing Revenue Account,Special Services,"Housing, Neighbourhood and Building Services",Premises-Related Expenditure,Water Services,13-Oct-23,6742576,18.56,LIMITED COMPANY,WAVE LTD,300000457049455
Portsmouth City Council,PCC,Housing Revenue Account,Special Services,"Housing, Neighbourhood and Building Services",Premises-Related Expenditure,Water Services,13-Oct-23,6742576,10.03,LIMITED COMPANY,WAVE LTD,300000457049455
Portsmouth City Council,PCC,Housing Revenue Account,Non-dwelling Rents (Gross),"Housing, Neighbourhood and Building Services",Premises-Related Expenditure,Water Services,13-Oct-23,6742576,14.71,LIMITED COMPANY,WAVE LTD,300000457049455
Portsmouth City Council,PCC,Housing Revenue Account,Special Services,"Housing, Neighbourhood and Building Services",Premises-Related Expenditure,Water Services,13-Oct-23,6742576,4.97,LIMITED COMPANY,WAVE LTD,300000457049455
Portsmouth City Council,PCC,Housing Revenue Account,Special Services,"Housing, Neighbourhood and Building Services",Premises-Related Expenditure,Water Services,13-Oct-23,6742576,10.03,LIMITED COMPANY,WAVE LTD,300000457049455
Portsmouth City Council,PCC,Housing Revenue Account,Non-dwelling Rents (Gross),"Housing, Neighbourhood and Building Services",Premises-Related Expenditure,Water Services,13-Oct-23,6742576,23.09,LIMITED COMPANY,WAVE LTD,300000457049455
Portsmouth City Council,PCC,Highways and Transport Services,Parking Services,Regeneration,Premises-Related Expenditure,Water Services,13-Oct-23,6742576,21.96,LIMITED COMPANY,WAVE LTD,300000457049455
Portsmouth City Council,PCC,Costs below Net Cost of Services,Trading,Regeneration,Premises-Related Expenditure,Water Services,13-Oct-23,6742576,4.97,LIMITED COMPANY,WAVE LTD,300000457049455
Portsmouth City Council,PCC,Cultural and Related Services,Open Spaces,"Culture, Leisure & Regulatory Services",Premises-Related Expenditure,Water Services,13-Oct-23,6742576,33.29,LIMITED COMPANY,WAVE LTD,300000457049455
Portsmouth City Council,PCC,Highways and Transport Services,Parking Services,Regeneration,Premises-Related Expenditure,Water Services,13-Oct-23,6742576,4.97,LIMITED COMPANY,WAVE LTD,300000457049455
Portsmouth City Council,PCC,Highways and Transport Services,Parking Services,Regeneration,Premises-Related Expenditure,Water Services,13-Oct-23,6742576,4.97,LIMITED COMPANY,WAVE LTD,300000457049455
Portsmouth City Council,PCC,Cultural and Related Services,Open Spaces,"Culture, Leisure & Regulatory Services",Premises-Related Expenditure,Water Services,13-Oct-23,6742576,62.73,LIMITED COMPANY,WAVE LTD,300000457049455
Portsmouth City Council,PCC,Housing Revenue Account,Special Services,"Housing, Neighbourhood and Building Services",Premises-Related Expenditure,Water Services,13-Oct-23,6742576,9.11,LIMITED COMPANY,WAVE LTD,300000457049455
Portsmouth City Council,PCC,Housing Revenue Account,Supervision and Management,"Housing, Neighbourhood and Building Services",Premises-Related Expenditure,Water Services,13-Oct-23,6742576,80.03,LIMITED COMPANY,WAVE LTD,300000457049455
Portsmouth City Council,PCC,Housing Revenue Account,Supervision and Management,"Housing, Neighbourhood and Building Services",Premises-Related Expenditure,Water Services,13-Oct-23,6742576,76.55,LIMITED COMPANY,WAVE LTD,300000457049455
Portsmouth City Council,PCC,Costs below Net Cost of Services,Trading,Regeneration,Premises-Related Expenditure,Water Services,13-Oct-23,6742576,121.36,LIMITED COMPANY,WAVE LTD,300000457049455
Portsmouth City Council,PCC,Housing Revenue Account,Special Services,"Housing, Neighbourhood and Building Services",Premises-Related Expenditure,Water Services,13-Oct-23,6742576,74.5,LIMITED COMPANY,WAVE LTD,300000457049455
Portsmouth City Council,PCC,Cultural and Related Services,Library Service,"Culture, Leisure & Regulatory Services",Premises-Related Expenditure,Water Services,13-Oct-23,6742576,24.47,LIMITED COMPANY,WAVE LTD,300000457049455
Portsmouth City Council,PCC,Adult Social Care,Learning Disability Support Adults (18 - 64),Adult Care,Third Party Payments,Other establishments,12-Oct-23,6742112,"7,791.54",SUPPLIER,ACHIEVE TOGETHER LIMITED,300000020469986
Portsmouth City Council,PCC,Housing Revenue Account,"Rents, Rates, Taxes and Other Charges","Housing, Neighbourhood and Building Services",Premises-Related Expenditure,Water Services,13-Oct-23,6742576,89.93,LIMITED COMPANY,WAVE LTD,300000457049455
Portsmouth City Council,PCC,Housing Revenue Account,Special Services,"Housing, Neighbourhood and Building Services",Premises-Related Expenditure,Water Services,13-Oct-23,6742576,24.67,LIMITED COMPANY,WAVE LTD,300000457049455
Portsmouth City Council,PCC,Children's and Education Services,Other Education and Community Budget,Regeneration,Premises-Related Expenditure,Water Services,13-Oct-23,6742576,48.97,LIMITED COMPANY,WAVE LTD,300000457049455
Portsmouth City Council,PCC,Housing Revenue Account,Special Services,"Housing, Neighbourhood and Building Services",Premises-Related Expenditure,Water Services,13-Oct-23,6742576,271.79,LIMITED COMPANY,WAVE LTD,300000457049455
Portsmouth City Council,PCC,Housing Revenue Account,Special Services,"Housing, Neighbourhood and Building Services",Premises-Related Expenditure,Water Services,13-Oct-23,6742576,475.15,LIMITED COMPANY,WAVE LTD,300000457049455
Portsmouth City Council,PCC,Planning Services,Business support,Regeneration,Premises-Related Expenditure,Water Services,13-Oct-23,6742576,307.3,LIMITED COMPANY,WAVE LTD,300000457049455
Portsmouth City Council,PCC,Adult Social Care,Learning Disabilty Support Older People (65 - 74),Adult Care,Third Party Payments,Joint authorities,12-Oct-23,6742112,"9,025.34",SUPPLIER,ACHIEVE TOGETHER LIMITED,300000020469986
Portsmouth City Council,PCC,Cultural and Related Services,Open Spaces,"Culture, Leisure & Regulatory Services",Premises-Related Expenditure,Water Services,13-Oct-23,6742576,"1,322.27",LIMITED COMPANY,WAVE LTD,300000457049455
Portsmouth City Council,PCC,Housing Revenue Account,Non-dwelling Rents (Gross),"Housing, Neighbourhood and Building Services",Premises-Related Expenditure,Water Services,13-Oct-23,6742576,17.14,LIMITED COMPANY,WAVE LTD,300000457049455
Portsmouth City Council,PCC,Housing Revenue Account,Special Services,"Housing, Neighbourhood and Building Services",Premises-Related Expenditure,Water Services,13-Oct-23,6742576,"1,854.74",LIMITED COMPANY,WAVE LTD,300000457049455
Portsmouth City Council,PCC,Costs below Net Cost of Services,Trading,Regeneration,Premises-Related Expenditure,Water Services,13-Oct-23,6742576,"-10,020.89",LIMITED COMPANY,WAVE LTD,300000457049455
Portsmouth City Council,PCC,Cultural and Related Services,Allocation of Management & Admin,"Culture, Leisure & Regulatory Services",Premises-Related Expenditure,Water Services,13-Oct-23,6742576,8.17,LIMITED COMPANY,WAVE LTD,300000457049455
Portsmouth City Council,PCC,Housing Revenue Account,Special Services,"Housing, Neighbourhood and Building Services",Premises-Related Expenditure,Water Services,13-Oct-23,6742576,7.58,LIMITED COMPANY,WAVE LTD,300000457049455
Portsmouth City Council,PCC,Cultural and Related Services,Open Spaces,"Culture, Leisure & Regulatory Services",Premises-Related Expenditure,Water Services,13-Oct-23,6742576,3.03,LIMITED COMPANY,WAVE LTD,300000457049455
Portsmouth City Council,PCC,Housing Revenue Account,Special Services,"Housing, Neighbourhood and Building Services",Premises-Related Expenditure,Water Services,13-Oct-23,6742576,24.89,LIMITED COMPANY,WAVE LTD,300000457049455
Portsmouth City Council,PCC,Housing Revenue Account,Supervision and Management,"Housing, Neighbourhood and Building Services",Premises-Related Expenditure,Water Services,13-Oct-23,6742576,49.82,LIMITED COMPANY,WAVE LTD,300000457049455
Portsmouth City Council,PCC,Cultural and Related Services,Open Spaces,"Culture, Leisure & Regulatory Services",Premises-Related Expenditure,Water Services,13-Oct-23,6742576,44.98,LIMITED COMPANY,WAVE LTD,300000457049455
Portsmouth City Council,PCC,Cultural and Related Services,Open Spaces,"Culture, Leisure & Regulatory Services",Premises-Related Expenditure,Water Services,13-Oct-23,6742576,8.38,LIMITED COMPANY,WAVE LTD,300000457049455
Portsmouth City Council,PCC,Cultural and Related Services,Open Spaces,"Culture, Leisure & Regulatory Services",Premises-Related Expenditure,Water Services,13-Oct-23,6742576,46.77,LIMITED COMPANY,WAVE LTD,300000457049455
Portsmouth City Council,PCC,Cultural and Related Services,Open Spaces,"Culture, Leisure & Regulatory Services",Premises-Related Expenditure,Water Services,13-Oct-23,6742576,11.95,LIMITED COMPANY,WAVE LTD,300000457049455
Portsmouth City Council,PCC,Cultural and Related Services,Open Spaces,"Culture, Leisure & Regulatory Services",Premises-Related Expenditure,Water Services,13-Oct-23,6742576,3.03,LIMITED COMPANY,WAVE LTD,300000457049455
Portsmouth City Council,PCC,Cultural and Related Services,Open Spaces,"Culture, Leisure & Regulatory Services",Premises-Related Expenditure,Water Services,13-Oct-23,6742576,3.03,LIMITED COMPANY,WAVE LTD,300000457049455
Portsmouth City Council,PCC,Housing Revenue Account,Supervision and Management,"Housing, Neighbourhood and Building Services",Premises-Related Expenditure,Water Services,13-Oct-23,6742576,268.59,LIMITED COMPANY,WAVE LTD,300000457049455
Portsmouth City Council,PCC,Cultural and Related Services,Recreation and Sport,"Culture, Leisure & Regulatory Services",Premises-Related Expenditure,Water Services,13-Oct-23,6742576,57.02,LIMITED COMPANY,WAVE LTD,300000457049455
Portsmouth City Council,PCC,Cultural and Related Services,Open Spaces,"Culture, Leisure & Regulatory Services",Premises-Related Expenditure,Water Services,13-Oct-23,6742576,199.06,LIMITED COMPANY,WAVE LTD,300000457049455
Portsmouth City Council,PCC,Cultural and Related Services,Open Spaces,"Culture, Leisure & Regulatory Services",Premises-Related Expenditure,Water Services,13-Oct-23,6742576,5.71,LIMITED COMPANY,WAVE LTD,300000457049455
Portsmouth City Council,PCC,Cultural and Related Services,Open Spaces,"Culture, Leisure & Regulatory Services",Premises-Related Expenditure,Water Services,13-Oct-23,6742576,14.63,LIMITED COMPANY,WAVE LTD,300000457049455
Portsmouth City Council,PCC,Cultural and Related Services,Open Spaces,"Culture, Leisure & Regulatory Services",Premises-Related Expenditure,Water Services,13-Oct-23,6742576,17.38,LIMITED COMPANY,WAVE LTD,300000457049455
Portsmouth City Council,PCC,Cultural and Related Services,Open Spaces,"Culture, Leisure & Regulatory Services",Premises-Related Expenditure,Water Services,13-Oct-23,6742576,3.03,LIMITED COMPANY,WAVE LTD,300000457049455
Portsmouth City Council,PCC,Cultural and Related Services,Open Spaces,"Culture, Leisure & Regulatory Services",Premises-Related Expenditure,Water Services,13-Oct-23,6742576,4.81,LIMITED COMPANY,WAVE LTD,300000457049455
Portsmouth City Council,PCC,Children's and Education Services,Children Looked After,Children's Services and Education,Premises-Related Expenditure,Water Services,13-Oct-23,6742576,44.77,LIMITED COMPANY,WAVE LTD,300000457049455
Portsmouth City Council,PCC,Costs below Net Cost of Services,Trading,"Housing, Neighbourhood and Building Services",Premises-Related Expenditure,Water Services,13-Oct-23,6742576,"2,478.03",LIMITED COMPANY,WAVE LTD,300000457049455
Portsmouth City Council,PCC,Cultural and Related Services,Open Spaces,"Culture, Leisure & Regulatory Services",Premises-Related Expenditure,Water Services,13-Oct-23,6742576,103.07,LIMITED COMPANY,WAVE LTD,300000457049455
Portsmouth City Council,PCC,Housing Revenue Account,Special Services,"Housing, Neighbourhood and Building Services",Premises-Related Expenditure,Water Services,13-Oct-23,6742576,102.98,LIMITED COMPANY,WAVE LTD,300000457049455
Portsmouth City Council,PCC,Cultural and Related Services,Open Spaces,"Culture, Leisure & Regulatory Services",Premises-Related Expenditure,Water Services,13-Oct-23,6742576,3.03,LIMITED COMPANY,WAVE LTD,300000457049455
Portsmouth City Council,PCC,Environmental and Regulatory Services,Regulatory Services,"Housing, Neighbourhood and Building Services",Premises-Related Expenditure,Water Services,13-Oct-23,6742576,522.6,LIMITED COMPANY,WAVE LTD,300000457049455
Portsmouth City Council,PCC,Costs below Net Cost of Services,Trading,Regeneration,Premises-Related Expenditure,Water Services,13-Oct-23,6742576,63.5,LIMITED COMPANY,WAVE LTD,300000457049455
Portsmouth City Council,PCC,Cultural and Related Services,Open Spaces,"Culture, Leisure & Regulatory Services",Premises-Related Expenditure,Water Services,13-Oct-23,6742576,3.03,LIMITED COMPANY,WAVE LTD,300000457049455
Portsmouth City Council,PCC,Cultural and Related Services,Open Spaces,"Culture, Leisure & Regulatory Services",Premises-Related Expenditure,Water Services,13-Oct-23,6742576,29.81,LIMITED COMPANY,WAVE LTD,300000457049455
Portsmouth City Council,PCC,Cultural and Related Services,Open Spaces,"Culture, Leisure & Regulatory Services",Premises-Related Expenditure,Water Services,13-Oct-23,6742576,638.44,LIMITED COMPANY,WAVE LTD,300000457049455
Portsmouth City Council,PCC,Cultural and Related Services,Open Spaces,"Culture, Leisure & Regulatory Services",Premises-Related Expenditure,Water Services,13-Oct-23,6742576,9.02,LIMITED COMPANY,WAVE LTD,300000457049455
Portsmouth City Council,PCC,Environmental and Regulatory Services,Regulatory Services,"Housing, Neighbourhood and Building Services",Premises-Related Expenditure,Water Services,13-Oct-23,6742576,660.43,LIMITED COMPANY,WAVE LTD,300000457049455
Portsmouth City Council,PCC,Cultural and Related Services,Recreation and Sport,"Culture, Leisure & Regulatory Services",Premises-Related Expenditure,Water Services,13-Oct-23,6742576,15.71,LIMITED COMPANY,WAVE LTD,300000457049455
Portsmouth City Council,PCC,Housing Revenue Account,Special Services,"Housing, Neighbourhood and Building Services",Premises-Related Expenditure,Water Services,13-Oct-23,6742576,2,LIMITED COMPANY,WAVE LTD,300000457049455
Portsmouth City Council,PCC,Cultural and Related Services,Open Spaces,"Culture, Leisure & Regulatory Services",Premises-Related Expenditure,Water Services,13-Oct-23,6742576,122.71,LIMITED COMPANY,WAVE LTD,300000457049455
Portsmouth City Council,PCC,Cultural and Related Services,Library Service,"Culture, Leisure & Regulatory Services",Premises-Related Expenditure,Water Services,13-Oct-23,6742576,52.05,LIMITED COMPANY,WAVE LTD,300000457049455
Portsmouth City Council,PCC,Cultural and Related Services,Open Spaces,"Culture, Leisure & Regulatory Services",Premises-Related Expenditure,Water Services,13-Oct-23,6742576,225.72,LIMITED COMPANY,WAVE LTD,300000457049455
Portsmouth City Council,PCC,Costs below Net Cost of Services,Trading,Regeneration,Premises-Related Expenditure,Water Services,13-Oct-23,6742576,6.52,LIMITED COMPANY,WAVE LTD,300000457049455
Portsmouth City Council,PCC,Housing Revenue Account,Special Services,"Housing, Neighbourhood and Building Services",Premises-Related Expenditure,Water Services,13-Oct-23,6742576,305.36,LIMITED COMPANY,WAVE LTD,300000457049455
Portsmouth City Council,PCC,Cultural and Related Services,Open Spaces,"Culture, Leisure & Regulatory Services",Premises-Related Expenditure,Water Services,13-Oct-23,6742576,169.95,LIMITED COMPANY,WAVE LTD,300000457049455
Portsmouth City Council,PCC,Children's and Education Services,Primary Schools,Children's Services and Education,Premises-Related Expenditure,Water Services,13-Oct-23,6742576,712.64,LIMITED COMPANY,WAVE LTD,300000457049455
Portsmouth City Council,PCC,Housing Revenue Account,Special Services,"Housing, Neighbourhood and Building Services",Premises-Related Expenditure,Water Services,13-Oct-23,6742576,165.79,LIMITED COMPANY,WAVE LTD,300000457049455
Portsmouth City Council,PCC,Environmental and Regulatory Services,Regulatory Services,"Housing, Neighbourhood and Building Services",Premises-Related Expenditure,Water Services,13-Oct-23,6742576,196.01,LIMITED COMPANY,WAVE LTD,300000457049455
Portsmouth City Council,PCC,Housing Revenue Account,Special Services,"Housing, Neighbourhood and Building Services",Premises-Related Expenditure,Water Services,13-Oct-23,6742576,150.06,LIMITED COMPANY,WAVE LTD,300000457049455
Portsmouth City Council,PCC,Housing Revenue Account,Supervision and Management,"Housing, Neighbourhood and Building Services",Premises-Related Expenditure,Water Services,13-Oct-23,6742576,74.9,LIMITED COMPANY,WAVE LTD,300000457049455
Portsmouth City Council,PCC,Environmental and Regulatory Services,Regulatory Services,"Housing, Neighbourhood and Building Services",Premises-Related Expenditure,Water Services,13-Oct-23,6742576,47.84,LIMITED COMPANY,WAVE LTD,300000457049455
Portsmouth City Council,PCC,Children's and Education Services,Primary Schools,Children's Services and Education,Premises-Related Expenditure,Water Services,13-Oct-23,6742576,176.84,LIMITED COMPANY,WAVE LTD,300000457049455
Portsmouth City Council,PCC,Housing Revenue Account,"Rents, Rates, Taxes and Other Charges","Housing, Neighbourhood and Building Services",Premises-Related Expenditure,Water Services,13-Oct-23,6742576,124.58,LIMITED COMPANY,WAVE LTD,300000457049455
Portsmouth City Council,PCC,Cultural and Related Services,Library Service,"Culture, Leisure & Regulatory Services",Premises-Related Expenditure,Water Services,13-Oct-23,6742576,73.9,LIMITED COMPANY,WAVE LTD,300000457049455
Portsmouth City Council,PCC,Cultural and Related Services,Open Spaces,"Culture, Leisure & Regulatory Services",Premises-Related Expenditure,Water Services,13-Oct-23,6742576,12.59,LIMITED COMPANY,WAVE LTD,300000457049455
Portsmouth City Council,PCC,Cultural and Related Services,Open Spaces,"Culture, Leisure & Regulatory Services",Premises-Related Expenditure,Water Services,13-Oct-23,6742576,17.38,LIMITED COMPANY,WAVE LTD,300000457049455
Portsmouth City Council,PCC,Cultural and Related Services,Culture and Heritage,"Culture, Leisure & Regulatory Services",Premises-Related Expenditure,Water Services,13-Oct-23,6742576,32.52,LIMITED COMPANY,WAVE LTD,300000457049455
Portsmouth City Council,PCC,Adult Social Care,Learning Disability Support Adults (18 - 64),Adult Care,Third Party Payments,Other establishments,12-Oct-23,6742112,"9,043.63",SUPPLIER,ACHIEVE TOGETHER LIMITED,300000020469986
Portsmouth City Council,PCC,Cultural and Related Services,Open Spaces,"Culture, Leisure & Regulatory Services",Premises-Related Expenditure,Water Services,13-Oct-23,6742576,25.77,LIMITED COMPANY,WAVE LTD,300000457049455
Portsmouth City Council,PCC,Cultural and Related Services,Open Spaces,"Culture, Leisure & Regulatory Services",Premises-Related Expenditure,Water Services,13-Oct-23,6742576,969.93,LIMITED COMPANY,WAVE LTD,300000457049455
Portsmouth City Council,PCC,Children's and Education Services,Primary Schools,Children's Services and Education,Premises-Related Expenditure,Water Services,13-Oct-23,6742576,884.26,LIMITED COMPANY,WAVE LTD,300000457049455
Portsmouth City Council,PCC,Cultural and Related Services,Open Spaces,"Culture, Leisure & Regulatory Services",Premises-Related Expenditure,Water Services,13-Oct-23,6742576,163.68,LIMITED COMPANY,WAVE LTD,300000457049455
Portsmouth City Council,PCC,Cultural and Related Services,Recreation and Sport,"Culture, Leisure & Regulatory Services",Premises-Related Expenditure,Water Services,13-Oct-23,6742576,24.47,LIMITED COMPANY,WAVE LTD,300000457049455
Portsmouth City Council,PCC,Cultural and Related Services,Open Spaces,"Culture, Leisure & Regulatory Services",Premises-Related Expenditure,Water Services,13-Oct-23,6742576,"-1,031.18",LIMITED COMPANY,WAVE LTD,300000457049455
Portsmouth City Council,PCC,Cultural and Related Services,Open Spaces,"Culture, Leisure & Regulatory Services",Premises-Related Expenditure,Water Services,13-Oct-23,6742576,3.03,LIMITED COMPANY,WAVE LTD,300000457049455
Portsmouth City Council,PCC,Cultural and Related Services,Open Spaces,"Culture, Leisure & Regulatory Services",Premises-Related Expenditure,Water Services,13-Oct-23,6742576,290.15,LIMITED COMPANY,WAVE LTD,300000457049455
Portsmouth City Council,PCC,Cultural and Related Services,Open Spaces,"Culture, Leisure & Regulatory Services",Premises-Related Expenditure,Water Services,13-Oct-23,6742576,603.51,LIMITED COMPANY,WAVE LTD,300000457049455
Portsmouth City Council,PCC,Cultural and Related Services,Open Spaces,"Culture, Leisure & Regulatory Services",Premises-Related Expenditure,Water Services,13-Oct-23,6742576,7.91,LIMITED COMPANY,WAVE LTD,300000457049455
Portsmouth City Council,PCC,Housing Revenue Account,"Rents, Rates, Taxes and Other Charges","Housing, Neighbourhood and Building Services",Premises-Related Expenditure,Water Services,13-Oct-23,6742576,31.03,LIMITED COMPANY,WAVE LTD,300000457049455
Portsmouth City Council,PCC,Housing Revenue Account,Special Services,"Housing, Neighbourhood and Building Services",Premises-Related Expenditure,Water Services,13-Oct-23,6742576,32.52,LIMITED COMPANY,WAVE LTD,300000457049455
Portsmouth City Council,PCC,Cultural and Related Services,Open Spaces,"Culture, Leisure & Regulatory Services",Premises-Related Expenditure,Water Services,13-Oct-23,6742576,29.55,LIMITED COMPANY,WAVE LTD,300000457049455
Portsmouth City Council,PCC,Housing Services,Housing Strategy,"Housing, Neighbourhood and Building Services",Income,Customer and client receipts,04-Oct-23,6740894,-294,LIMITED COMPANY,LIFTECH SYSTEMS (SE) LIMITED,300000020461913
Portsmouth City Council,PCC,Adult Social Care,Assistive Equipment & Technology,"Housing, Neighbourhood and Building Services",Supplies and Services,Services,04-Oct-23,6740894,352.8,LIMITED COMPANY,LIFTECH SYSTEMS (SE) LIMITED,300000020461913
Portsmouth City Council,PCC,Adult Social Care,Assistive Equipment & Technology,"Housing, Neighbourhood and Building Services",Supplies and Services,Services,04-Oct-23,6740894,"1,960.00",LIMITED COMPANY,LIFTECH SYSTEMS (SE) LIMITED,300000020461913
Portsmouth City Council,PCC,Adult Social Care,Learning Disability Support Adults (18 - 64),Adult Care,Third Party Payments,Other establishments,12-Oct-23,6742112,"9,433.30",SUPPLIER,ACHIEVE TOGETHER LIMITED,300000020469986
Portsmouth City Council,PCC,Adult Social Care,Learning Disability Support Adults (18 - 64),Adult Care,Third Party Payments,Other establishments,12-Oct-23,6742112,"10,297.58",SUPPLIER,ACHIEVE TOGETHER LIMITED,300000020469986
Portsmouth City Council,PCC,Adult Social Care,Learning Disabilty Support Older People (65 - 74),Adult Care,Third Party Payments,Joint authorities,12-Oct-23,6742112,"14,101.59",SUPPLIER,ACHIEVE TOGETHER LIMITED,300000020469986
Portsmouth City Council,PCC,Adult Social Care,Learning Disability Support Adults (18 - 64),Adult Care,Third Party Payments,Other establishments,12-Oct-23,6742112,"15,082.12",SUPPLIER,ACHIEVE TOGETHER LIMITED,300000020469986
Portsmouth City Council,PCC,Adult Social Care,Learning Disabilty Support Older People (65 - 74),Adult Care,Third Party Payments,Joint authorities,25-Oct-23,6744676,478.29,SUPPLIER,ACHIEVE TOGETHER LIMITED,300000020469986
Portsmouth City Council,PCC,Adult Social Care,Learning Disability Support Adults (18 - 64),Adult Care,Third Party Payments,Other establishments,25-Oct-23,6744676,772.43,SUPPLIER,ACHIEVE TOGETHER LIMITED,300000020469986
Portsmouth City Council,PCC,Adult Social Care,Learning Disability Support Adults (18 - 64),Adult Care,Third Party Payments,Other establishments,25-Oct-23,6744676,772.43,SUPPLIER,ACHIEVE TOGETHER LIMITED,300000020469986
Portsmouth City Council,PCC,Adult Social Care,Learning Disability Support Adults (18 - 64),Adult Care,Third Party Payments,Other establishments,25-Oct-23,6744676,772.43,SUPPLIER,ACHIEVE TOGETHER LIMITED,300000020469986
Portsmouth City Council,PCC,Adult Social Care,Learning Disability Support Adults (18 - 64),Adult Care,Third Party Payments,Other establishments,25-Oct-23,6744676,772.43,SUPPLIER,ACHIEVE TOGETHER LIMITED,300000020469986
Portsmouth City Council,PCC,Adult Social Care,Learning Disability Support Adults (18 - 64),Adult Care,Third Party Payments,Other establishments,25-Oct-23,6744676,772.43,SUPPLIER,ACHIEVE TOGETHER LIMITED,300000020469986
Portsmouth City Council,PCC,Adult Social Care,Learning Disability Support Adults (18 - 64),Adult Care,Third Party Payments,Other establishments,25-Oct-23,6744676,772.43,SUPPLIER,ACHIEVE TOGETHER LIMITED,300000020469986
Portsmouth City Council,PCC,Adult Social Care,Learning Disability Support Adults (18 - 64),Adult Care,Third Party Payments,Other establishments,25-Oct-23,6744676,772.43,SUPPLIER,ACHIEVE TOGETHER LIMITED,300000020469986
Portsmouth City Council,PCC,Adult Social Care,Learning Disability Support Adults (18 - 64),Adult Care,Third Party Payments,Other establishments,25-Oct-23,6744676,772.43,SUPPLIER,ACHIEVE TOGETHER LIMITED,300000020469986
Portsmouth City Council,PCC,Adult Social Care,Learning Disability Support Adults (18 - 64),Adult Care,Third Party Payments,Other establishments,25-Oct-23,6744676,772.43,SUPPLIER,ACHIEVE TOGETHER LIMITED,300000020469986
Portsmouth City Council,PCC,Adult Social Care,Learning Disability Support Adults (18 - 64),Adult Care,Third Party Payments,Other establishments,25-Oct-23,6744676,772.43,SUPPLIER,ACHIEVE TOGETHER LIMITED,300000020469986
Portsmouth City Council,PCC,Adult Social Care,Learning Disabilty Support Older People (65 - 74),Adult Care,Third Party Payments,Joint authorities,25-Oct-23,6744676,772.43,SUPPLIER,ACHIEVE TOGETHER LIMITED,300000020469986
Portsmouth City Council,PCC,Adult Social Care,Learning Disability Support Adults (18 - 64),Adult Care,Third Party Payments,Other establishments,25-Oct-23,6744676,774.82,SUPPLIER,ACHIEVE TOGETHER LIMITED,300000020469986
Portsmouth City Council,PCC,Adult Social Care,Learning Disability Support Adults (18 - 64),Adult Care,Third Party Payments,Other establishments,25-Oct-23,6744676,"1,287.70",SUPPLIER,ACHIEVE TOGETHER LIMITED,300000020469986
Portsmouth City Council,PCC,Adult Social Care,Learning Disability Support Adults (18 - 64),Adult Care,Third Party Payments,Other establishments,25-Oct-23,6744676,"1,287.70",SUPPLIER,ACHIEVE TOGETHER LIMITED,300000020469986
Portsmouth City Council,PCC,Adult Social Care,Learning Disability Support Adults (18 - 64),Adult Care,Third Party Payments,Other establishments,25-Oct-23,6744676,"1,287.70",SUPPLIER,ACHIEVE TOGETHER LIMITED,300000020469986
Portsmouth City Council,PCC,Adult Social Care,Learning Disability Support Adults (18 - 64),Adult Care,Third Party Payments,Other establishments,25-Oct-23,6744676,"1,287.70",SUPPLIER,ACHIEVE TOGETHER LIMITED,300000020469986
Portsmouth City Council,PCC,Adult Social Care,Learning Disability Support Adults (18 - 64),Adult Care,Third Party Payments,Other establishments,25-Oct-23,6744676,"1,287.70",SUPPLIER,ACHIEVE TOGETHER LIMITED,300000020469986
Portsmouth City Council,PCC,Adult Social Care,Learning Disability Support Adults (18 - 64),Adult Care,Third Party Payments,Other establishments,25-Oct-23,6744676,"1,287.70",SUPPLIER,ACHIEVE TOGETHER LIMITED,300000020469986
Portsmouth City Council,PCC,Adult Social Care,Learning Disability Support Adults (18 - 64),Adult Care,Third Party Payments,Other establishments,25-Oct-23,6744676,"1,287.70",SUPPLIER,ACHIEVE TOGETHER LIMITED,300000020469986
Portsmouth City Council,PCC,Adult Social Care,Learning Disability Support Adults (18 - 64),Adult Care,Third Party Payments,Other establishments,25-Oct-23,6744676,"1,287.70",SUPPLIER,ACHIEVE TOGETHER LIMITED,300000020469986
Portsmouth City Council,PCC,Adult Social Care,Learning Disability Support Adults (18 - 64),Adult Care,Third Party Payments,Other establishments,25-Oct-23,6744676,"1,287.70",SUPPLIER,ACHIEVE TOGETHER LIMITED,300000020469986
Portsmouth City Council,PCC,Adult Social Care,Learning Disability Support Adults (18 - 64),Adult Care,Third Party Payments,Other establishments,25-Oct-23,6744676,"1,287.70",SUPPLIER,ACHIEVE TOGETHER LIMITED,300000020469986
Portsmouth City Council,PCC,Adult Social Care,Learning Disability Support Adults (18 - 64),Adult Care,Third Party Payments,Other establishments,25-Oct-23,6744676,"1,287.70",SUPPLIER,ACHIEVE TOGETHER LIMITED,300000020469986
Portsmouth City Council,PCC,Adult Social Care,Learning Disabilty Support Older People (65 - 74),Adult Care,Third Party Payments,Joint authorities,25-Oct-23,6744676,"1,287.70",SUPPLIER,ACHIEVE TOGETHER LIMITED,300000020469986
Portsmouth City Council,PCC,Housing Services,Private Sector Housing Renewal,"Housing, Neighbourhood and Building Services",Income,Other grants reimbursements and contributions,09-Oct-23,6741481,"-1,653.15",LIMITED COMPANY,CONCEPT DESIGN SOLUTIONS LTD,300000118164776
Portsmouth City Council,PCC,Other,Suspense and Capital Schemes,Capital - Housing and Tackling Homelessness,Capital Charges,REFCUS,09-Oct-23,6741481,"1,983.78",LIMITED COMPANY,CONCEPT DESIGN SOLUTIONS LTD,300000118164776
Portsmouth City Council,PCC,Other,Suspense and Capital Schemes,Capital - Housing and Tackling Homelessness,Capital Charges,REFCUS,09-Oct-23,6741481,"11,021.00",LIMITED COMPANY,CONCEPT DESIGN SOLUTIONS LTD,300000118164776
Portsmouth City Council,PCC,Children's and Education Services,Children Looked After,Children's Services and Education,Third Party Payments,Other establishments,11-Oct-23,6741815,246.64,SUPPLIER,FOSTER CARE ASSOCIATES LTD,300000020461175
Portsmouth City Council,PCC,Children's and Education Services,Children Looked After,Children's Services and Education,Third Party Payments,Other establishments,11-Oct-23,6741815,863.24,SUPPLIER,FOSTER CARE ASSOCIATES LTD,300000020461175
Portsmouth City Council,PCC,Children's and Education Services,Children Looked After,Children's Services and Education,Third Party Payments,Other establishments,11-Oct-23,6741815,863.24,SUPPLIER,FOSTER CARE ASSOCIATES LTD,300000020461175
Portsmouth City Council,PCC,Children's and Education Services,Children Looked After,Children's Services and Education,Third Party Payments,Other establishments,11-Oct-23,6741815,863.24,SUPPLIER,FOSTER CARE ASSOCIATES LTD,300000020461175
Portsmouth City Council,PCC,Children's and Education Services,Children Looked After,Children's Services and Education,Third Party Payments,Other establishments,11-Oct-23,6741815,863.24,SUPPLIER,FOSTER CARE ASSOCIATES LTD,300000020461175
Portsmouth City Council,PCC,Children's and Education Services,Safeguarding Children and Young Peoples Services,Children's Services and Education,Third Party Payments,Other establishments,11-Oct-23,6741815,200.7,SUPPLIER,FOSTER CARE ASSOCIATES LTD,300000020461175
Portsmouth City Council,PCC,Children's and Education Services,Safeguarding Children and Young Peoples Services,Children's Services and Education,Third Party Payments,Other establishments,11-Oct-23,6741815,702.45,SUPPLIER,FOSTER CARE ASSOCIATES LTD,300000020461175
Portsmouth City Council,PCC,Children's and Education Services,Safeguarding Children and Young Peoples Services,Children's Services and Education,Third Party Payments,Other establishments,11-Oct-23,6741815,702.45,SUPPLIER,FOSTER CARE ASSOCIATES LTD,300000020461175
Portsmouth City Council,PCC,Children's and Education Services,Safeguarding Children and Young Peoples Services,Children's Services and Education,Third Party Payments,Other establishments,11-Oct-23,6741815,702.45,SUPPLIER,FOSTER CARE ASSOCIATES LTD,300000020461175
Portsmouth City Council,PCC,Children's and Education Services,Safeguarding Children and Young Peoples Services,Children's Services and Education,Third Party Payments,Other establishments,11-Oct-23,6741815,702.45,SUPPLIER,FOSTER CARE ASSOCIATES LTD,300000020461175
Portsmouth City Council,PCC,Children's and Education Services,Children Looked After,Children's Services and Education,Third Party Payments,Other establishments,04-Oct-23,6740967,"1,226.00",PUBLIC LIMITED COMPANY,FAITH HOPE AND FAMILIES LIMITED,300000168088079
Portsmouth City Council,PCC,Housing Revenue Account,Special Services,"Housing, Neighbourhood and Building Services",Premises-Related Expenditure,Energy costs,13-Oct-23,6742560,25.55,LIMITED COMPANY,SEFE MARKETING & TRADING LIMITED ,300000250807105
Portsmouth City Council,PCC,Housing Revenue Account,Special Services,"Housing, Neighbourhood and Building Services",Premises-Related Expenditure,Energy costs,13-Oct-23,6742560,41.96,LIMITED COMPANY,SEFE MARKETING & TRADING LIMITED ,300000250807105
Portsmouth City Council,PCC,Housing Revenue Account,Special Services,"Housing, Neighbourhood and Building Services",Premises-Related Expenditure,Energy costs,13-Oct-23,6742560,"13,159.64",LIMITED COMPANY,SEFE MARKETING & TRADING LIMITED ,300000250807105
Portsmouth City Council,PCC,Housing Revenue Account,Special Services,"Housing, Neighbourhood and Building Services",Premises-Related Expenditure,Energy costs,13-Oct-23,6742560,66.05,LIMITED COMPANY,SEFE MARKETING & TRADING LIMITED ,300000250807105
Portsmouth City Council,PCC,Housing Revenue Account,Special Services,"Housing, Neighbourhood and Building Services",Premises-Related Expenditure,Energy costs,13-Oct-23,6742560,78.22,LIMITED COMPANY,SEFE MARKETING & TRADING LIMITED ,300000250807105
Portsmouth City Council,PCC,Housing Revenue Account,Special Services,"Housing, Neighbourhood and Building Services",Premises-Related Expenditure,Energy costs,13-Oct-23,6742560,172.2,LIMITED COMPANY,SEFE MARKETING & TRADING LIMITED ,300000250807105
Portsmouth City Council,PCC,Children's and Education Services,Primary Schools,Children's Services and Education,Premises-Related Expenditure,Energy costs,13-Oct-23,6742560,221.33,LIMITED COMPANY,SEFE MARKETING & TRADING LIMITED ,300000250807105
Portsmouth City Council,PCC,Children's and Education Services,Primary Schools,Children's Services and Education,Premises-Related Expenditure,Energy costs,13-Oct-23,6742560,20.53,LIMITED COMPANY,SEFE MARKETING & TRADING LIMITED ,300000250807105
Portsmouth City Council,PCC,Adult Social Care,Learning Disability Support Adults (18 - 64),Adult Care,Third Party Payments,Other establishments,25-Oct-23,6744676,"2,232.00",SUPPLIER,ACHIEVE TOGETHER LIMITED,300000020469986
Portsmouth City Council,PCC,Children's and Education Services,Primary Schools,Children's Services and Education,Premises-Related Expenditure,Energy costs,13-Oct-23,6742560,113.2,LIMITED COMPANY,SEFE MARKETING & TRADING LIMITED ,300000250807105
Portsmouth City Council,PCC,Adult Social Care,Learning Disability Support Adults (18 - 64),Adult Care,Third Party Payments,Other establishments,25-Oct-23,6744676,"2,630.57",SUPPLIER,ACHIEVE TOGETHER LIMITED,300000020469986
Portsmouth City Council,PCC,Housing Revenue Account,Special Services,"Housing, Neighbourhood and Building Services",Premises-Related Expenditure,Energy costs,13-Oct-23,6742560,85.99,LIMITED COMPANY,SEFE MARKETING & TRADING LIMITED ,300000250807105
Portsmouth City Council,PCC,Housing Revenue Account,Special Services,"Housing, Neighbourhood and Building Services",Premises-Related Expenditure,Energy costs,13-Oct-23,6742560,47.93,LIMITED COMPANY,SEFE MARKETING & TRADING LIMITED ,300000250807105
Portsmouth City Council,PCC,Housing Revenue Account,Special Services,"Housing, Neighbourhood and Building Services",Premises-Related Expenditure,Energy costs,13-Oct-23,6742560,76.78,LIMITED COMPANY,SEFE MARKETING & TRADING LIMITED ,300000250807105
Portsmouth City Council,PCC,Housing Services,Homelessness,"Housing, Neighbourhood and Building Services",Premises-Related Expenditure,Energy costs,13-Oct-23,6742560,76.12,LIMITED COMPANY,SEFE MARKETING & TRADING LIMITED ,300000250807105
Portsmouth City Council,PCC,Other,Suspense and Capital Schemes,"Housing, Neighbourhood and Building Services",Premises-Related Expenditure,Energy costs,13-Oct-23,6742560,20.04,LIMITED COMPANY,SEFE MARKETING & TRADING LIMITED ,300000250807105
Portsmouth City Council,PCC,Housing Revenue Account,Special Services,"Housing, Neighbourhood and Building Services",Premises-Related Expenditure,Energy costs,13-Oct-23,6742560,15.75,LIMITED COMPANY,SEFE MARKETING & TRADING LIMITED ,300000250807105
Portsmouth City Council,PCC,Housing Revenue Account,Supervision and Management,"Housing, Neighbourhood and Building Services",Premises-Related Expenditure,Energy costs,13-Oct-23,6742560,108.51,LIMITED COMPANY,SEFE MARKETING & TRADING LIMITED ,300000250807105
Portsmouth City Council,PCC,Children's and Education Services,Primary Schools,Children's Services and Education,Premises-Related Expenditure,Energy costs,13-Oct-23,6742560,30.79,LIMITED COMPANY,SEFE MARKETING & TRADING LIMITED ,300000250807105
Portsmouth City Council,PCC,Housing Revenue Account,Special Services,"Housing, Neighbourhood and Building Services",Premises-Related Expenditure,Energy costs,13-Oct-23,6742560,89.95,LIMITED COMPANY,SEFE MARKETING & TRADING LIMITED ,300000250807105
Portsmouth City Council,PCC,Housing Revenue Account,Special Services,"Housing, Neighbourhood and Building Services",Premises-Related Expenditure,Energy costs,13-Oct-23,6742560,9.93,LIMITED COMPANY,SEFE MARKETING & TRADING LIMITED ,300000250807105
Portsmouth City Council,PCC,Housing Revenue Account,Special Services,"Housing, Neighbourhood and Building Services",Premises-Related Expenditure,Energy costs,13-Oct-23,6742560,95.38,LIMITED COMPANY,SEFE MARKETING & TRADING LIMITED ,300000250807105
Portsmouth City Council,PCC,Housing Revenue Account,Special Services,"Housing, Neighbourhood and Building Services",Premises-Related Expenditure,Energy costs,13-Oct-23,6742560,21.12,LIMITED COMPANY,SEFE MARKETING & TRADING LIMITED ,300000250807105
Portsmouth City Council,PCC,Housing Revenue Account,Special Services,"Housing, Neighbourhood and Building Services",Premises-Related Expenditure,Energy costs,13-Oct-23,6742560,115.68,LIMITED COMPANY,SEFE MARKETING & TRADING LIMITED ,300000250807105
Portsmouth City Council,PCC,Environmental and Regulatory Services,"Cemetery, Cremation and Mortuary Services","Culture, Leisure & Regulatory Services",Premises-Related Expenditure,Energy costs,13-Oct-23,6742560,74.09,LIMITED COMPANY,SEFE MARKETING & TRADING LIMITED ,300000250807105
Portsmouth City Council,PCC,Cultural and Related Services,Library Service,"Culture, Leisure & Regulatory Services",Premises-Related Expenditure,Energy costs,13-Oct-23,6742560,90.42,LIMITED COMPANY,SEFE MARKETING & TRADING LIMITED ,300000250807105
Portsmouth City Council,PCC,Housing Revenue Account,Special Services,"Housing, Neighbourhood and Building Services",Premises-Related Expenditure,Energy costs,13-Oct-23,6742560,60.48,LIMITED COMPANY,SEFE MARKETING & TRADING LIMITED ,300000250807105
Portsmouth City Council,PCC,Housing Revenue Account,Special Services,"Housing, Neighbourhood and Building Services",Premises-Related Expenditure,Energy costs,13-Oct-23,6742560,80.12,LIMITED COMPANY,SEFE MARKETING & TRADING LIMITED ,300000250807105
Portsmouth City Council,PCC,Housing Services,Homelessness,"Housing, Neighbourhood and Building Services",Premises-Related Expenditure,Energy costs,13-Oct-23,6742560,42.42,LIMITED COMPANY,SEFE MARKETING & TRADING LIMITED ,300000250807105
Portsmouth City Council,PCC,Housing Services,Homelessness,"Housing, Neighbourhood and Building Services",Premises-Related Expenditure,Energy costs,13-Oct-23,6742560,67.45,LIMITED COMPANY,SEFE MARKETING & TRADING LIMITED ,300000250807105
Portsmouth City Council,PCC,Children's and Education Services,Primary Schools,Children's Services and Education,Premises-Related Expenditure,Energy costs,13-Oct-23,6742560,31.89,LIMITED COMPANY,SEFE MARKETING & TRADING LIMITED ,300000250807105
Portsmouth City Council,PCC,Children's and Education Services,Other Children and Family Services,Children's Services and Education,Premises-Related Expenditure,Energy costs,13-Oct-23,6742560,99.4,LIMITED COMPANY,SEFE MARKETING & TRADING LIMITED ,300000250807105
Portsmouth City Council,PCC,Housing Revenue Account,Special Services,"Housing, Neighbourhood and Building Services",Premises-Related Expenditure,Energy costs,13-Oct-23,6742560,104.65,LIMITED COMPANY,SEFE MARKETING & TRADING LIMITED ,300000250807105
Portsmouth City Council,PCC,Housing Services,Homelessness,"Housing, Neighbourhood and Building Services",Premises-Related Expenditure,Energy costs,13-Oct-23,6742560,57.96,LIMITED COMPANY,SEFE MARKETING & TRADING LIMITED ,300000250807105
Portsmouth City Council,PCC,Housing Services,Homelessness,"Housing, Neighbourhood and Building Services",Premises-Related Expenditure,Energy costs,13-Oct-23,6742560,58.02,LIMITED COMPANY,SEFE MARKETING & TRADING LIMITED ,300000250807105
Portsmouth City Council,PCC,Housing Revenue Account,Special Services,"Housing, Neighbourhood and Building Services",Premises-Related Expenditure,Energy costs,13-Oct-23,6742560,58.6,LIMITED COMPANY,SEFE MARKETING & TRADING LIMITED ,300000250807105
Portsmouth City Council,PCC,Other,Suspense and Capital Schemes,"Housing, Neighbourhood and Building Services",Premises-Related Expenditure,Energy costs,13-Oct-23,6742560,27.7,LIMITED COMPANY,SEFE MARKETING & TRADING LIMITED ,300000250807105
Portsmouth City Council,PCC,Children's and Education Services,Children Looked After,Children's Services and Education,Premises-Related Expenditure,Energy costs,13-Oct-23,6742560,79.94,LIMITED COMPANY,SEFE MARKETING & TRADING LIMITED ,300000250807105
Portsmouth City Council,PCC,Cultural and Related Services,Library Service,"Culture, Leisure & Regulatory Services",Premises-Related Expenditure,Energy costs,13-Oct-23,6742560,851.62,LIMITED COMPANY,SEFE MARKETING & TRADING LIMITED ,300000250807105
Portsmouth City Council,PCC,Adult Social Care,Learning Disability Support Adults (18 - 64),Adult Care,Third Party Payments,Other establishments,25-Oct-23,6744676,"2,790.00",SUPPLIER,ACHIEVE TOGETHER LIMITED,300000020469986
Portsmouth City Council,PCC,Children's and Education Services,Other Education and Community Budget,Regeneration,Premises-Related Expenditure,Energy costs,13-Oct-23,6742560,118.94,LIMITED COMPANY,SEFE MARKETING & TRADING LIMITED ,300000250807105
Portsmouth City Council,PCC,Housing Revenue Account,Special Services,"Housing, Neighbourhood and Building Services",Premises-Related Expenditure,Energy costs,13-Oct-23,6742560,541.27,LIMITED COMPANY,SEFE MARKETING & TRADING LIMITED ,300000250807105
Portsmouth City Council,PCC,Housing Revenue Account,Special Services,"Housing, Neighbourhood and Building Services",Premises-Related Expenditure,Energy costs,13-Oct-23,6742560,210.73,LIMITED COMPANY,SEFE MARKETING & TRADING LIMITED ,300000250807105
Portsmouth City Council,PCC,Costs below Net Cost of Services,Trading,Regeneration,Premises-Related Expenditure,Energy costs,13-Oct-23,6742560,"14,962.44",LIMITED COMPANY,SEFE MARKETING & TRADING LIMITED ,300000250807105
Portsmouth City Council,PCC,Housing Revenue Account,Special Services,"Housing, Neighbourhood and Building Services",Premises-Related Expenditure,Energy costs,13-Oct-23,6742560,172.14,LIMITED COMPANY,SEFE MARKETING & TRADING LIMITED ,300000250807105
Portsmouth City Council,PCC,Housing Revenue Account,Special Services,"Housing, Neighbourhood and Building Services",Premises-Related Expenditure,Energy costs,13-Oct-23,6742560,28,LIMITED COMPANY,SEFE MARKETING & TRADING LIMITED ,300000250807105
Portsmouth City Council,PCC,Housing Revenue Account,Special Services,"Housing, Neighbourhood and Building Services",Premises-Related Expenditure,Energy costs,13-Oct-23,6742560,94.78,LIMITED COMPANY,SEFE MARKETING & TRADING LIMITED ,300000250807105
Portsmouth City Council,PCC,Housing Revenue Account,Special Services,"Housing, Neighbourhood and Building Services",Premises-Related Expenditure,Energy costs,13-Oct-23,6742560,44.46,LIMITED COMPANY,SEFE MARKETING & TRADING LIMITED ,300000250807105
Portsmouth City Council,PCC,Housing Revenue Account,Special Services,"Housing, Neighbourhood and Building Services",Premises-Related Expenditure,Energy costs,13-Oct-23,6742560,148.39,LIMITED COMPANY,SEFE MARKETING & TRADING LIMITED ,300000250807105
Portsmouth City Council,PCC,Housing Revenue Account,Special Services,"Housing, Neighbourhood and Building Services",Premises-Related Expenditure,Energy costs,13-Oct-23,6742560,12.62,LIMITED COMPANY,SEFE MARKETING & TRADING LIMITED ,300000250807105
Portsmouth City Council,PCC,Highways and Transport Services,"Airports, Harbours and Toll Facilities",Portsmouth International Port,Premises-Related Expenditure,Energy costs,13-Oct-23,6742560,33.43,LIMITED COMPANY,SEFE MARKETING & TRADING LIMITED ,300000250807105
Portsmouth City Council,PCC,Other,Suspense and Capital Schemes,Portsmouth International Port,Premises-Related Expenditure,Energy costs,13-Oct-23,6742560,62.48,LIMITED COMPANY,SEFE MARKETING & TRADING LIMITED ,300000250807105
Portsmouth City Council,PCC,Housing Revenue Account,Special Services,"Housing, Neighbourhood and Building Services",Premises-Related Expenditure,Energy costs,13-Oct-23,6742560,-160.76,LIMITED COMPANY,SEFE MARKETING & TRADING LIMITED ,300000250807105
Portsmouth City Council,PCC,Housing Revenue Account,Special Services,"Housing, Neighbourhood and Building Services",Premises-Related Expenditure,Energy costs,13-Oct-23,6742560,-174.27,LIMITED COMPANY,SEFE MARKETING & TRADING LIMITED ,300000250807105
Portsmouth City Council,PCC,Housing Revenue Account,Special Services,"Housing, Neighbourhood and Building Services",Premises-Related Expenditure,Energy costs,13-Oct-23,6742560,-289.91,LIMITED COMPANY,SEFE MARKETING & TRADING LIMITED ,300000250807105
Portsmouth City Council,PCC,Housing Revenue Account,Special Services,"Housing, Neighbourhood and Building Services",Premises-Related Expenditure,Energy costs,13-Oct-23,6742560,443.3,LIMITED COMPANY,SEFE MARKETING & TRADING LIMITED ,300000250807105
Portsmouth City Council,PCC,Children's and Education Services,Primary Schools,Children's Services and Education,Premises-Related Expenditure,Energy costs,13-Oct-23,6742560,306.68,LIMITED COMPANY,SEFE MARKETING & TRADING LIMITED ,300000250807105
Portsmouth City Council,PCC,Children's and Education Services,Primary Schools,Children's Services and Education,Premises-Related Expenditure,Energy costs,13-Oct-23,6742560,26.12,LIMITED COMPANY,SEFE MARKETING & TRADING LIMITED ,300000250807105
Portsmouth City Council,PCC,Housing Revenue Account,Special Services,"Housing, Neighbourhood and Building Services",Premises-Related Expenditure,CRC Allowances,13-Oct-23,6742560,12.79,LIMITED COMPANY,SEFE MARKETING & TRADING LIMITED ,300000250807105
Portsmouth City Council,PCC,Housing Revenue Account,Special Services,"Housing, Neighbourhood and Building Services",Premises-Related Expenditure,CRC Allowances,13-Oct-23,6742560,40.77,LIMITED COMPANY,SEFE MARKETING & TRADING LIMITED ,300000250807105
Portsmouth City Council,PCC,Housing Revenue Account,Special Services,"Housing, Neighbourhood and Building Services",Premises-Related Expenditure,Energy costs,13-Oct-23,6742560,29.7,LIMITED COMPANY,SEFE MARKETING & TRADING LIMITED ,300000250807105
Portsmouth City Council,PCC,Housing Revenue Account,Special Services,"Housing, Neighbourhood and Building Services",Premises-Related Expenditure,Energy costs,13-Oct-23,6742560,"20,439.27",LIMITED COMPANY,SEFE MARKETING & TRADING LIMITED ,300000250807105
Portsmouth City Council,PCC,Housing Revenue Account,Special Services,"Housing, Neighbourhood and Building Services",Premises-Related Expenditure,Energy costs,13-Oct-23,6742560,739.32,LIMITED COMPANY,SEFE MARKETING & TRADING LIMITED ,300000250807105
Portsmouth City Council,PCC,Cultural and Related Services,Recreation and Sport,"Culture, Leisure & Regulatory Services",Premises-Related Expenditure,Energy costs,13-Oct-23,6742560,"12,124.81",LIMITED COMPANY,SEFE MARKETING & TRADING LIMITED ,300000250807105
Portsmouth City Council,PCC,Housing Revenue Account,Special Services,"Housing, Neighbourhood and Building Services",Premises-Related Expenditure,Energy costs,13-Oct-23,6742560,"1,033.62",LIMITED COMPANY,SEFE MARKETING & TRADING LIMITED ,300000250807105
Portsmouth City Council,PCC,Planning Services,Business support,Regeneration,Premises-Related Expenditure,Energy costs,13-Oct-23,6742560,178.54,LIMITED COMPANY,SEFE MARKETING & TRADING LIMITED ,300000250807105
Portsmouth City Council,PCC,Housing Revenue Account,Special Services,"Housing, Neighbourhood and Building Services",Premises-Related Expenditure,Energy costs,13-Oct-23,6742560,298.48,LIMITED COMPANY,SEFE MARKETING & TRADING LIMITED ,300000250807105
Portsmouth City Council,PCC,Housing Revenue Account,Special Services,"Housing, Neighbourhood and Building Services",Premises-Related Expenditure,Energy costs,13-Oct-23,6742560,"1,338.66",LIMITED COMPANY,SEFE MARKETING & TRADING LIMITED ,300000250807105
Portsmouth City Council,PCC,Housing Revenue Account,Special Services,"Housing, Neighbourhood and Building Services",Premises-Related Expenditure,Energy costs,13-Oct-23,6742560,"1,405.37",LIMITED COMPANY,SEFE MARKETING & TRADING LIMITED ,300000250807105
Portsmouth City Council,PCC,Cultural and Related Services,Culture and Heritage,"Culture, Leisure & Regulatory Services",Premises-Related Expenditure,Energy costs,13-Oct-23,6742560,409.57,LIMITED COMPANY,SEFE MARKETING & TRADING LIMITED ,300000250807105
Portsmouth City Council,PCC,Cultural and Related Services,Culture and Heritage,"Culture, Leisure & Regulatory Services",Premises-Related Expenditure,Energy costs,13-Oct-23,6742560,95.86,LIMITED COMPANY,SEFE MARKETING & TRADING LIMITED ,300000250807105
Portsmouth City Council,PCC,Housing Revenue Account,Special Services,"Housing, Neighbourhood and Building Services",Premises-Related Expenditure,Energy costs,13-Oct-23,6742560,188.49,LIMITED COMPANY,SEFE MARKETING & TRADING LIMITED ,300000250807105
Portsmouth City Council,PCC,Housing Revenue Account,Special Services,"Housing, Neighbourhood and Building Services",Premises-Related Expenditure,Energy costs,13-Oct-23,6742560,29.19,LIMITED COMPANY,SEFE MARKETING & TRADING LIMITED ,300000250807105
Portsmouth City Council,PCC,Housing Revenue Account,Special Services,"Housing, Neighbourhood and Building Services",Premises-Related Expenditure,CRC Allowances,13-Oct-23,6742560,26.97,LIMITED COMPANY,SEFE MARKETING & TRADING LIMITED ,300000250807105
Portsmouth City Council,PCC,Housing Revenue Account,Special Services,"Housing, Neighbourhood and Building Services",Premises-Related Expenditure,Energy costs,13-Oct-23,6742560,18.35,LIMITED COMPANY,SEFE MARKETING & TRADING LIMITED ,300000250807105
Portsmouth City Council,PCC,Housing Revenue Account,Special Services,"Housing, Neighbourhood and Building Services",Premises-Related Expenditure,Energy costs,13-Oct-23,6742560,15.75,LIMITED COMPANY,SEFE MARKETING & TRADING LIMITED ,300000250807105
Portsmouth City Council,PCC,Support Service / Transparency Costs Unallocated,AMS,Corporate Services,Premises-Related Expenditure,Energy costs,13-Oct-23,6742560,"11,219.30",LIMITED COMPANY,SEFE MARKETING & TRADING LIMITED ,300000250807105
Portsmouth City Council,PCC,Children's and Education Services,Children Looked After,Children's Services and Education,Premises-Related Expenditure,Energy costs,13-Oct-23,6742560,76.41,LIMITED COMPANY,SEFE MARKETING & TRADING LIMITED ,300000250807105
Portsmouth City Council,PCC,Costs below Net Cost of Services,Trading,Regeneration,Premises-Related Expenditure,Energy costs,13-Oct-23,6742560,6.32,LIMITED COMPANY,SEFE MARKETING & TRADING LIMITED ,300000250807105
Portsmouth City Council,PCC,Housing Revenue Account,Special Services,"Housing, Neighbourhood and Building Services",Premises-Related Expenditure,Energy costs,13-Oct-23,6742560,187.1,LIMITED COMPANY,SEFE MARKETING & TRADING LIMITED ,300000250807105
Portsmouth City Council,PCC,Housing Revenue Account,Special Services,"Housing, Neighbourhood and Building Services",Premises-Related Expenditure,Energy costs,13-Oct-23,6742560,86.94,LIMITED COMPANY,SEFE MARKETING & TRADING LIMITED ,300000250807105
Portsmouth City Council,PCC,Housing Revenue Account,Special Services,"Housing, Neighbourhood and Building Services",Premises-Related Expenditure,Energy costs,13-Oct-23,6742560,88.78,LIMITED COMPANY,SEFE MARKETING & TRADING LIMITED ,300000250807105
Portsmouth City Council,PCC,Cultural and Related Services,Recreation and Sport,"Culture, Leisure & Regulatory Services",Premises-Related Expenditure,Energy costs,13-Oct-23,6742560,230.85,LIMITED COMPANY,SEFE MARKETING & TRADING LIMITED ,300000250807105
Portsmouth City Council,PCC,Children's and Education Services,Primary Schools,Children's Services and Education,Premises-Related Expenditure,Energy costs,13-Oct-23,6742560,196.79,LIMITED COMPANY,SEFE MARKETING & TRADING LIMITED ,300000250807105
Portsmouth City Council,PCC,Children's and Education Services,Primary Schools,Children's Services and Education,Premises-Related Expenditure,Energy costs,13-Oct-23,6742560,422.48,LIMITED COMPANY,SEFE MARKETING & TRADING LIMITED ,300000250807105
Portsmouth City Council,PCC,Children's and Education Services,Family Support Services,Children's Services and Education,Premises-Related Expenditure,Energy costs,13-Oct-23,6742560,192.33,LIMITED COMPANY,SEFE MARKETING & TRADING LIMITED ,300000250807105
Portsmouth City Council,PCC,Housing Revenue Account,Special Services,"Housing, Neighbourhood and Building Services",Premises-Related Expenditure,Energy costs,13-Oct-23,6742560,200.05,LIMITED COMPANY,SEFE MARKETING & TRADING LIMITED ,300000250807105
Portsmouth City Council,PCC,Housing Revenue Account,Special Services,"Housing, Neighbourhood and Building Services",Premises-Related Expenditure,Energy costs,13-Oct-23,6742560,145.29,LIMITED COMPANY,SEFE MARKETING & TRADING LIMITED ,300000250807105
Portsmouth City Council,PCC,Adult Social Care,Learning Disability Support Adults (18 - 64),Adult Care,Third Party Payments,Other establishments,25-Oct-23,6744676,"2,869.71",SUPPLIER,ACHIEVE TOGETHER LIMITED,300000020469986
Portsmouth City Council,PCC,Central Services,"Registration of Births, Deaths and Marriages","Culture, Leisure & Regulatory Services",Premises-Related Expenditure,Energy costs,13-Oct-23,6742560,72.11,LIMITED COMPANY,SEFE MARKETING & TRADING LIMITED ,300000250807105
Portsmouth City Council,PCC,Children's and Education Services,Primary Schools,Children's Services and Education,Premises-Related Expenditure,Energy costs,13-Oct-23,6742560,418.76,LIMITED COMPANY,SEFE MARKETING & TRADING LIMITED ,300000250807105
Portsmouth City Council,PCC,Other,Suspense and Capital Schemes,Capital - Housing and Tackling Homelessness,Capital Charges,Capital Expenditure (WIP),13-Oct-23,6742560,17.48,LIMITED COMPANY,SEFE MARKETING & TRADING LIMITED ,300000250807105
Portsmouth City Council,PCC,Children's and Education Services,Primary Schools,Children's Services and Education,Premises-Related Expenditure,Energy costs,13-Oct-23,6742560,155.3,LIMITED COMPANY,SEFE MARKETING & TRADING LIMITED ,300000250807105
Portsmouth City Council,PCC,Housing Revenue Account,Special Services,"Housing, Neighbourhood and Building Services",Premises-Related Expenditure,Energy costs,13-Oct-23,6742560,125.35,LIMITED COMPANY,SEFE MARKETING & TRADING LIMITED ,300000250807105
Portsmouth City Council,PCC,Children's and Education Services,Family Support Services,Children's Services and Education,Premises-Related Expenditure,Energy costs,13-Oct-23,6742560,147.63,LIMITED COMPANY,SEFE MARKETING & TRADING LIMITED ,300000250807105
Portsmouth City Council,PCC,Children's and Education Services,Primary Schools,Children's Services and Education,Premises-Related Expenditure,Energy costs,13-Oct-23,6742560,"2,974.21",LIMITED COMPANY,SEFE MARKETING & TRADING LIMITED ,300000250807105
Portsmouth City Council,PCC,Children's and Education Services,Primary Schools,Children's Services and Education,Premises-Related Expenditure,Energy costs,13-Oct-23,6742560,21.25,LIMITED COMPANY,SEFE MARKETING & TRADING LIMITED ,300000250807105
Portsmouth City Council,PCC,Children's and Education Services,Primary Schools,Children's Services and Education,Premises-Related Expenditure,Energy costs,13-Oct-23,6742560,128.59,LIMITED COMPANY,SEFE MARKETING & TRADING LIMITED ,300000250807105
Portsmouth City Council,PCC,Cultural and Related Services,Library Service,"Culture, Leisure & Regulatory Services",Premises-Related Expenditure,Energy costs,13-Oct-23,6742560,32.04,LIMITED COMPANY,SEFE MARKETING & TRADING LIMITED ,300000250807105
Portsmouth City Council,PCC,Children's and Education Services,Primary Schools,Children's Services and Education,Premises-Related Expenditure,Energy costs,13-Oct-23,6742560,123.3,LIMITED COMPANY,SEFE MARKETING & TRADING LIMITED ,300000250807105
Portsmouth City Council,PCC,Children's and Education Services,Primary Schools,Children's Services and Education,Premises-Related Expenditure,Energy costs,13-Oct-23,6742560,798.29,LIMITED COMPANY,SEFE MARKETING & TRADING LIMITED ,300000250807105
Portsmouth City Council,PCC,Cultural and Related Services,Library Service,"Culture, Leisure & Regulatory Services",Premises-Related Expenditure,Energy costs,13-Oct-23,6742560,"1,001.34",LIMITED COMPANY,SEFE MARKETING & TRADING LIMITED ,300000250807105
Portsmouth City Council,PCC,Other,Suspense and Capital Schemes,"Housing, Neighbourhood and Building Services",Premises-Related Expenditure,Energy costs,13-Oct-23,6742560,248.3,LIMITED COMPANY,SEFE MARKETING & TRADING LIMITED ,300000250807105
Portsmouth City Council,PCC,Housing Revenue Account,Special Services,"Housing, Neighbourhood and Building Services",Premises-Related Expenditure,Energy costs,13-Oct-23,6742560,58.12,LIMITED COMPANY,SEFE MARKETING & TRADING LIMITED ,300000250807105
Portsmouth City Council,PCC,Costs below Net Cost of Services,Trading,Regeneration,Premises-Related Expenditure,Energy costs,13-Oct-23,6742560,59.95,LIMITED COMPANY,SEFE MARKETING & TRADING LIMITED ,300000250807105
Portsmouth City Council,PCC,Housing Revenue Account,Special Services,"Housing, Neighbourhood and Building Services",Premises-Related Expenditure,Energy costs,13-Oct-23,6742560,59.88,LIMITED COMPANY,SEFE MARKETING & TRADING LIMITED ,300000250807105
Portsmouth City Council,PCC,Housing Revenue Account,Special Services,"Housing, Neighbourhood and Building Services",Premises-Related Expenditure,Energy costs,13-Oct-23,6742560,47.94,LIMITED COMPANY,SEFE MARKETING & TRADING LIMITED ,300000250807105
Portsmouth City Council,PCC,Children's and Education Services,Primary Schools,Children's Services and Education,Premises-Related Expenditure,Energy costs,13-Oct-23,6742560,85.73,LIMITED COMPANY,SEFE MARKETING & TRADING LIMITED ,300000250807105
Portsmouth City Council,PCC,Children's and Education Services,Primary Schools,Children's Services and Education,Premises-Related Expenditure,Energy costs,13-Oct-23,6742560,30.79,LIMITED COMPANY,SEFE MARKETING & TRADING LIMITED ,300000250807105
Portsmouth City Council,PCC,Planning Services,Business support,Regeneration,Premises-Related Expenditure,Energy costs,13-Oct-23,6742560,313.92,LIMITED COMPANY,SEFE MARKETING & TRADING LIMITED ,300000250807105
Portsmouth City Council,PCC,Children's and Education Services,Children Looked After,Children's Services and Education,Premises-Related Expenditure,Energy costs,13-Oct-23,6742560,290.96,LIMITED COMPANY,SEFE MARKETING & TRADING LIMITED ,300000250807105
Portsmouth City Council,PCC,Housing Revenue Account,Supervision and Management,"Housing, Neighbourhood and Building Services",Premises-Related Expenditure,Energy costs,13-Oct-23,6742560,65.08,LIMITED COMPANY,SEFE MARKETING & TRADING LIMITED ,300000250807105
Portsmouth City Council,PCC,Housing Revenue Account,Special Services,"Housing, Neighbourhood and Building Services",Premises-Related Expenditure,Energy costs,13-Oct-23,6742560,59.08,LIMITED COMPANY,SEFE MARKETING & TRADING LIMITED ,300000250807105
Portsmouth City Council,PCC,Housing Revenue Account,Special Services,"Housing, Neighbourhood and Building Services",Premises-Related Expenditure,Energy costs,13-Oct-23,6742560,222.12,LIMITED COMPANY,SEFE MARKETING & TRADING LIMITED ,300000250807105
Portsmouth City Council,PCC,Housing Revenue Account,Supervision and Management,"Housing, Neighbourhood and Building Services",Premises-Related Expenditure,Energy costs,13-Oct-23,6742560,78.48,LIMITED COMPANY,SEFE MARKETING & TRADING LIMITED ,300000250807105
Portsmouth City Council,PCC,Highways and Transport Services,"Airports, Harbours and Toll Facilities",Portsmouth International Port,Premises-Related Expenditure,Energy costs,13-Oct-23,6742560,41.05,LIMITED COMPANY,SEFE MARKETING & TRADING LIMITED ,300000250807105
Portsmouth City Council,PCC,Housing Revenue Account,Special Services,"Housing, Neighbourhood and Building Services",Premises-Related Expenditure,Energy costs,13-Oct-23,6742560,858.24,LIMITED COMPANY,SEFE MARKETING & TRADING LIMITED ,300000250807105
Portsmouth City Council,PCC,Housing Revenue Account,Special Services,"Housing, Neighbourhood and Building Services",Premises-Related Expenditure,Energy costs,13-Oct-23,6742560,381.77,LIMITED COMPANY,SEFE MARKETING & TRADING LIMITED ,300000250807105
Portsmouth City Council,PCC,Cultural and Related Services,Open Spaces,"Culture, Leisure & Regulatory Services",Premises-Related Expenditure,Energy costs,13-Oct-23,6742560,259.05,LIMITED COMPANY,SEFE MARKETING & TRADING LIMITED ,300000250807105
Portsmouth City Council,PCC,Housing Revenue Account,Special Services,"Housing, Neighbourhood and Building Services",Premises-Related Expenditure,Energy costs,13-Oct-23,6742560,30.8,LIMITED COMPANY,SEFE MARKETING & TRADING LIMITED ,300000250807105
Portsmouth City Council,PCC,Children's and Education Services,Children Looked After,Children's Services and Education,Premises-Related Expenditure,Energy costs,13-Oct-23,6742560,264.19,LIMITED COMPANY,SEFE MARKETING & TRADING LIMITED ,300000250807105
Portsmouth City Council,PCC,Housing Revenue Account,Supervision and Management,"Housing, Neighbourhood and Building Services",Premises-Related Expenditure,Energy costs,13-Oct-23,6742560,31.5,LIMITED COMPANY,SEFE MARKETING & TRADING LIMITED ,300000250807105
Portsmouth City Council,PCC,Adult Social Care,Learning Disability Support Adults (18 - 64),Adult Care,Third Party Payments,Other establishments,25-Oct-23,6744676,"3,108.86",SUPPLIER,ACHIEVE TOGETHER LIMITED,300000020469986
Portsmouth City Council,PCC,Adult Social Care,Learning Disability Support Adults (18 - 64),Adult Care,Third Party Payments,Other establishments,25-Oct-23,6744676,"3,507.43",SUPPLIER,ACHIEVE TOGETHER LIMITED,300000020469986
Portsmouth City Council,PCC,Adult Social Care,Learning Disability Support Adults (18 - 64),Adult Care,Third Party Payments,Other establishments,25-Oct-23,6744676,"3,547.29",SUPPLIER,ACHIEVE TOGETHER LIMITED,300000020469986
Portsmouth City Council,PCC,Housing Revenue Account,Supervision and Management,"Housing, Neighbourhood and Building Services",Premises-Related Expenditure,Energy costs,13-Oct-23,6742560,122.81,LIMITED COMPANY,SEFE MARKETING & TRADING LIMITED ,300000250807105
Portsmouth City Council,PCC,Children's and Education Services,Primary Schools,Children's Services and Education,Premises-Related Expenditure,Energy costs,13-Oct-23,6742560,69.64,LIMITED COMPANY,SEFE MARKETING & TRADING LIMITED ,300000250807105
Portsmouth City Council,PCC,Costs below Net Cost of Services,Trading,Regeneration,Premises-Related Expenditure,Energy costs,13-Oct-23,6742560,226.95,LIMITED COMPANY,SEFE MARKETING & TRADING LIMITED ,300000250807105
Portsmouth City Council,PCC,Housing Revenue Account,Special Services,"Housing, Neighbourhood and Building Services",Premises-Related Expenditure,Energy costs,13-Oct-23,6742560,332.54,LIMITED COMPANY,SEFE MARKETING & TRADING LIMITED ,300000250807105
Portsmouth City Council,PCC,Children's and Education Services,Other Education and Community Budget,Children's Services and Education,Premises-Related Expenditure,Energy costs,13-Oct-23,6742560,10.06,LIMITED COMPANY,SEFE MARKETING & TRADING LIMITED ,300000250807105
Portsmouth City Council,PCC,Adult Social Care,Learning Disability Support Adults (18 - 64),Adult Care,Third Party Payments,Other establishments,25-Oct-23,6744676,"4,344.43",SUPPLIER,ACHIEVE TOGETHER LIMITED,300000020469986
Portsmouth City Council,PCC,Housing Revenue Account,Special Services,"Housing, Neighbourhood and Building Services",Premises-Related Expenditure,Energy costs,13-Oct-23,6742560,19.18,LIMITED COMPANY,SEFE MARKETING & TRADING LIMITED ,300000250807105
Portsmouth City Council,PCC,Housing Revenue Account,Special Services,"Housing, Neighbourhood and Building Services",Premises-Related Expenditure,Energy costs,13-Oct-23,6742560,16.1,LIMITED COMPANY,SEFE MARKETING & TRADING LIMITED ,300000250807105
Portsmouth City Council,PCC,Housing Revenue Account,Special Services,"Housing, Neighbourhood and Building Services",Premises-Related Expenditure,Energy costs,13-Oct-23,6742560,15.75,LIMITED COMPANY,SEFE MARKETING & TRADING LIMITED ,300000250807105
Portsmouth City Council,PCC,Adult Social Care,Learning Disability Support Adults (18 - 64),Adult Care,Third Party Payments,Other establishments,25-Oct-23,6744676,"5,141.57",SUPPLIER,ACHIEVE TOGETHER LIMITED,300000020469986
Portsmouth City Council,PCC,Housing Revenue Account,Special Services,"Housing, Neighbourhood and Building Services",Premises-Related Expenditure,Energy costs,13-Oct-23,6742560,15.19,LIMITED COMPANY,SEFE MARKETING & TRADING LIMITED ,300000250807105
